Body Name,Transaction Number,Account Code Description,Expenses Type,Service Code,Service Area Categorisation,Supplier Name,Payment Date,Amount
Bath & North East Somerset Council,21095977,LM9,Day Care,C03,Adult Social Services & Housing,GLOUCESTERSHIRE COUNTY COUNCIL,22/02/11,29.24
Bath & North East Somerset Council,21095977,LM9,Day Care,C03,Adult Social Services & Housing,GLOUCESTERSHIRE COUNTY COUNCIL,22/02/11,146.2
Bath & North East Somerset Council,21095977,LM9,Day Care,C03,Adult Social Services & Housing,GLOUCESTERSHIRE COUNTY COUNCIL,22/02/11,146.2
Bath & North East Somerset Council,21095977,LM9,Day Care,C03,Adult Social Services & Housing,GLOUCESTERSHIRE COUNTY COUNCIL,22/02/11,146.2
Bath & North East Somerset Council,21095977,LM9,Day Care,C03,Adult Social Services & Housing,GLOUCESTERSHIRE COUNTY COUNCIL,22/02/11,146.2
Bath & North East Somerset Council,21095977,LM9,Day Care,C03,Adult Social Services & Housing,GLOUCESTERSHIRE COUNTY COUNCIL,22/02/11,146.2
Bath & North East Somerset Council,21095977,LM9,Day Care,C03,Adult Social Services & Housing,GLOUCESTERSHIRE COUNTY COUNCIL,22/02/11,146.2
Bath & North East Somerset Council,21095977,LM9,Day Care,C03,Adult Social Services & Housing,GLOUCESTERSHIRE COUNTY COUNCIL,22/02/11,146.2
Bath & North East Somerset Council,21095977,LM9,Day Care,C03,Adult Social Services & Housing,GLOUCESTERSHIRE COUNTY COUNCIL,22/02/11,146.2
Bath & North East Somerset Council,21095977,LM9,Day Care,C03,Adult Social Services & Housing,GLOUCESTERSHIRE COUNTY COUNCIL,22/02/11,146.2
Bath & North East Somerset Council,21095977,LM9,Day Care,C03,Adult Social Services & Housing,GLOUCESTERSHIRE COUNTY COUNCIL,22/02/11,146.2
Bath & North East Somerset Council,10618045,3F7,PCB External Fees,C05,Children's Services,REDACTED,18/03/11,289658
Bath & North East Somerset Council,10616949,DB1,Agency Staff,C02,Resources,HAYS OFFICE SUPPORT,31/03/11,4335.55
Bath & North East Somerset Council,10616949,DB1,Agency Staff,C02,Resources,HAYS OFFICE SUPPORT,31/03/11,17929.66
Bath & North East Somerset Council,10608450,LA5,Materials,C06,Service Delivery,GELPACK EXCELSIOR LTD,07/04/11,1666.2
Bath & North East Somerset Council,10609570,3F7,PCB External Fees,C05,Children's Services,REDACTED,20/04/11,31457
Bath & North East Somerset Council,10609570,3F7,PCB External Fees,C05,Children's Services,REDACTED,20/04/11,65592
Bath & North East Somerset Council,10608547,LJ1,Consultants Fees,C06,Service Delivery,SLR CONSULTING,21/04/11,763.1
Bath & North East Somerset Council,10611194,LA3,Equipment Maintenance,C06,Service Delivery,FACULTATIEVE TECHNOLOGIES LTD,04/05/11,483.88
Bath & North East Somerset Council,10614745,LA7,Purchases for Resale,C06,Service Delivery,J & N PRODUCTSTS,11/05/11,1296
Bath & North East Somerset Council,10615237,LK1,Fees,C05,Children's Services,HAY GROUP MANAGEMENT LTD,26/05/11,35578.19
Bath & North East Somerset Council,10615237,LK1,Fees,C05,Children's Services,HAY GROUP MANAGEMENT LTD,26/05/11,35578.19
Bath & North East Somerset Council,10615237,LK1,Fees,C05,Children's Services,HAY GROUP MANAGEMENT LTD,26/05/11,35578.19
Bath & North East Somerset Council,10615237,LK1,Fees,C05,Children's Services,HAY GROUP MANAGEMENT LTD,26/05/11,35578.19
Bath & North East Somerset Council,10610661,LA5,Materials,C06,Service Delivery,BATH SAFE & SECURITY,01/06/11,27.65
Bath & North East Somerset Council,10613408,LW9,Other Expenses,C02,Resources,CYCLESCHEME LTD,01/06/11,34.99
Bath & North East Somerset Council,10613750,HA4,Responsive Maintenance PCB,C02,Resources,TPM (SOUTH WEST) LTD,01/06/11,38.71
Bath & North East Somerset Council,10613210,EA1,Training,C02,Resources,GAS FLARE SERVICES LIMITED,01/06/11,45
Bath & North East Somerset Council,10610661,LA5,Materials,C06,Service Delivery,BATH SAFE & SECURITY,01/06/11,60
Bath & North East Somerset Council,21090373,LM8,Home Care,C03,Adult Social Services & Housing,STAR HOME CARE SERVICES LIMITED,01/06/11,89.35
Bath & North East Somerset Council,10610661,LA5,Materials,C06,Service Delivery,BATH SAFE & SECURITY,01/06/11,143.72
Bath & North East Somerset Council,10613210,EA1,Training,C02,Resources,GAS FLARE SERVICES LIMITED,01/06/11,255
Bath & North East Somerset Council,10613210,EA1,Training,C02,Resources,GAS FLARE SERVICES LIMITED,01/06/11,295
Bath & North East Somerset Council,10610872,HA4,Responsive Maintenance PCB,C02,Resources,THEMEJOB LTD,01/06/11,300
Bath & North East Somerset Council,10613750,HA4,Responsive Maintenance PCB,C02,Resources,TPM (SOUTH WEST) LTD,01/06/11,379.75
Bath & North East Somerset Council,10610661,LA5,Materials,C06,Service Delivery,BATH SAFE & SECURITY,01/06/11,385.25
Bath & North East Somerset Council,10610868,HA4,Responsive Maintenance PCB,C02,Resources,THEMEJOB LTD,01/06/11,400
Bath & North East Somerset Council,10611591,LF5,Postages,C02,Resources,CFH TOTAL DOCUMENT MANAGEMENT LTD,01/06/11,440.99
Bath & North East Somerset Council,10613408,LW9,Other Expenses,C02,Resources,CYCLESCHEME LTD,01/06/11,444.13
Bath & North East Somerset Council,10610649,LH2,Advertising,C06,Service Delivery,ALLIANCE P C LIMITED,01/06/11,480
Bath & North East Somerset Council,10612694,KA1,Repairs & Maintenance,C06,Service Delivery,FAUN MUNICIPAL VEHICLES LTD,01/06/11,480.25
Bath & North East Somerset Council,10611872,LH3,Publicity,C02,Resources,MJD PUBLIC RELATIONS  LTD,01/06/11,500
Bath & North East Somerset Council,21090615,PG1,Rent Allowances,C02,Resources,REDACTED,01/06/11,507.68
Bath & North East Somerset Council,21090627,PG1,Rent Allowances,C02,Resources,REDACTED,01/06/11,507.68
Bath & North East Somerset Council,10611878,LA7,Purchases for Resale,C06,Service Delivery,THE BRITISH MUSEUM COMPANY LTD,01/06/11,510
Bath & North East Somerset Council,21090610,PG1,Rent Allowances,C02,Resources,REDACTED,01/06/11,520
Bath & North East Somerset Council,21090642,PG1,Rent Allowances,C02,Resources,REDACTED,01/06/11,520
Bath & North East Somerset Council,21090373,LM8,Home Care,C03,Adult Social Services & Housing,STAR HOME CARE SERVICES LIMITED,01/06/11,524.03
Bath & North East Somerset Council,21090374,LM8,Home Care,C03,Adult Social Services & Housing,STAR HOME CARE SERVICES LIMITED,01/06/11,524.03
Bath & North East Somerset Council,10611885,LA7,Purchases for Resale,C06,Service Delivery,JONES THE THIMBLE LTD,01/06/11,533.71
Bath & North East Somerset Council,21090630,PG1,Rent Allowances,C02,Resources,REDACTED,01/06/11,535.4
Bath & North East Somerset Council,21090618,PG1,Rent Allowances,C02,Resources,CENTRIX PROPERTIES LTD,01/06/11,540
Bath & North East Somerset Council,21090628,PG1,Rent Allowances,C02,Resources,REDACTED,01/06/11,547.72
Bath & North East Somerset Council,21090611,PG1,Rent Allowances,C02,Resources,REDACTED,01/06/11,549.24
Bath & North East Somerset Council,10613152,LT4,Conferences,C06,Service Delivery,CRUSE BEREAVEMENT CARE,01/06/11,550
Bath & North East Somerset Council,10611907,LA7,Purchases for Resale,C06,Service Delivery,RHODAWN LIMITED T/A BOOKSPEED,01/06/11,551.42
Bath & North East Somerset Council,21090634,PG1,Rent Allowances,C02,Resources,REDACTED,01/06/11,556.16
Bath & North East Somerset Council,10611741,LA7,Purchases for Resale,C06,Service Delivery,HARPER COLLINS PUBLISHERS,01/06/11,573.86
Bath & North East Somerset Council,10611912,LA7,Purchases for Resale,C06,Service Delivery,GREEK CONNECTION 2000 LTD,01/06/11,585.61
Bath & North East Somerset Council,10610656,LA4,Equipment Hire/Rent,C06,Service Delivery,GEORGIAN HIRE LTD,01/06/11,600
Bath & North East Somerset Council,10610655,LA4,Equipment Hire/Rent,C06,Service Delivery,GEORGIAN HIRE LTD,01/06/11,600
Bath & North East Somerset Council,10611267,KA3,Fuel,C06,Service Delivery,FORD FUELS LTD,01/06/11,614.16
Bath & North East Somerset Council,10612707,KA1,Repairs & Maintenance,C06,Service Delivery,FAUN MUNICIPAL VEHICLES LTD,01/06/11,617.94
Bath & North East Somerset Council,10612559,EA1,Training,C03,Adult Social Services & Housing,LOUISE CLOSE LTD,01/06/11,650.1
Bath & North East Somerset Council,21090637,PG1,Rent Allowances,C02,Resources,REDACTED,01/06/11,660
Bath & North East Somerset Council,10612092,LJ3,Other Services to the Council,C06,Service Delivery,TOM LEDBURY,01/06/11,662.49
Bath & North East Somerset Council,10611422,3C4,PCB Building Works,C05,Children's Services,HAWKINS INSULATION LIMITED,01/06/11,674
Bath & North East Somerset Council,10610592,LP5,Software Support,C02,Resources,SYSTEMSLINK 2000 LIMITED,01/06/11,675
Bath & North East Somerset Council,10611894,LA7,Purchases for Resale,C06,Service Delivery,ANCESTORS OF DOVER LTD,01/06/11,675
Bath & North East Somerset Council,10612920,HA4,Responsive Maintenance PCB,C02,Resources,M D BUILDING SERVICES LTD,01/06/11,684.85
Bath & North East Somerset Council,10611883,LA7,Purchases for Resale,C06,Service Delivery,THE HISTORY PRESS LTD,01/06/11,686.13
Bath & North East Somerset Council,10611879,LA7,Purchases for Resale,C06,Service Delivery,CRAWFORD HENDERSON LIMITED,01/06/11,700
Bath & North East Somerset Council,21090644,PG1,Rent Allowances,C02,Resources,REDACTED,01/06/11,707.13
Bath & North East Somerset Council,10613733,HA4,Responsive Maintenance PCB,C02,Resources,MDL ENVIRONMENTAL SERVICES,01/06/11,720
Bath & North East Somerset Council,10612632,HA5,Service Contract PCB,C02,Resources,ORONA LTD,01/06/11,725
Bath & North East Somerset Council,10613115,LH5,Marketing,C06,Service Delivery,LYRECO UK LIMITED,01/06/11,741.62
Bath & North East Somerset Council,10611637,LJ8,PCB External Fees,C04,Development & Major Projects,IMAGE CENTRE UK,01/06/11,750
Bath & North East Somerset Council,10610329,LK1,Fees,C02,Resources,FIRST AID TRAINING (BATH) LIMITED,01/06/11,775
Bath & North East Somerset Council,10613146,LH5,Marketing,C06,Service Delivery,BURROWS COMMUNICATIONS LTD,01/06/11,787.25
Bath & North East Somerset Council,10611767,LL1,Services to Clients,C05,Children's Services,LEARNING PARTNERSHIP WEST LIMITED,01/06/11,817
Bath & North East Somerset Council,10611463,LA5,Materials,C06,Service Delivery,AVANTI CLEANING SOLUTIONS,01/06/11,833
Bath & North East Somerset Council,10612895,HA4,Responsive Maintenance PCB,C02,Resources,M D BUILDING SERVICES LTD,01/06/11,833.86
Bath & North East Somerset Council,10612099,LL1,Services to Clients,C03,Adult Social Services & Housing,CONNOLLY & CALLAGHAN LTD,01/06/11,880
Bath & North East Somerset Council,10610556,3C4,PCB Building Works,C06,Service Delivery,MICHAEL JAMES HARWOOD,01/06/11,922
Bath & North East Somerset Council,10611321,EG3,Recruitment Advertising,C06,Service Delivery,TMP (UK) LTD,01/06/11,940.6
Bath & North East Somerset Council,10611747,LA7,Purchases for Resale,C06,Service Delivery,REVIVAL ARTS OF BATH,01/06/11,945.66
Bath & North East Somerset Council,10610472,3J2,PCB Consultants,C02,Resources,MANN WILLIAMS LTD,01/06/11,950
Bath & North East Somerset Council,10604460,LF1,Printing/Design,C02,Resources,CFH TOTAL DOCUMENT MANAGEMENT LTD,01/06/11,957.55
Bath & North East Somerset Council,21090612,PG1,Rent Allowances,C02,Resources,REDACTED,01/06/11,964.64
Bath & North East Somerset Council,10611890,LA7,Purchases for Resale,C06,Service Delivery,ROMAN VISION LTD,01/06/11,975
Bath & North East Somerset Council,10610968,LA4,Equipment Hire/Rent,C02,Resources,XEROX FINANCE LIMITED,01/06/11,992.73
Bath & North East Somerset Council,10610659,LP5,Software Support,C06,Service Delivery,AEA TECHNOLOGY,01/06/11,995
Bath & North East Somerset Council,10610556,3C4,PCB Building Works,C06,Service Delivery,MICHAEL JAMES HARWOOD,01/06/11,1050
Bath & North East Somerset Council,10613599,LT2,Hospitality,C02,Resources,REDACTED,01/06/11,1062
Bath & North East Somerset Council,10613526,HA4,Responsive Maintenance PCB,C02,Resources,MANNINGS FACILITIES MANAGEMENT LTD,01/06/11,1103.05
Bath & North East Somerset Council,21090632,PG1,Rent Allowances,C02,Resources,REDACTED,01/06/11,1104
Bath & North East Somerset Council,10611264,KA3,Fuel,C06,Service Delivery,FORD FUELS LTD,01/06/11,1107.31
Bath & North East Somerset Council,10612721,3N7,PCB Misc. Costs,C02,Resources,L D CUNDICK T/A CUNDICK TRANSPORT,01/06/11,1240
Bath & North East Somerset Council,10612721,3N7,PCB Misc. Costs,C02,Resources,L D CUNDICK T/A CUNDICK TRANSPORT,01/06/11,1250
Bath & North East Somerset Council,10611978,HX1,Property Insurance,Z99,Outside Revenue Accounts,ZMCD RECEIPTS,01/06/11,1258.43
Bath & North East Somerset Council,10611746,LA7,Purchases for Resale,C06,Service Delivery,NEW BARN POTTERY,01/06/11,1290
Bath & North East Somerset Council,21090614,PG1,Rent Allowances,C02,Resources,ASSURED PROPERTY RENTALS,01/06/11,1292.08
Bath & North East Somerset Council,10611899,LA7,Purchases for Resale,C06,Service Delivery,SOMERSET TOILETRY COMPANY LTD,01/06/11,1303.2
Bath & North East Somerset Council,10613732,3C4,PCB Building Works,C05,Children's Services,STATS UTILITY CONNECTIONS LTD,01/06/11,1370
Bath & North East Somerset Council,10611266,KA3,Fuel,C06,Service Delivery,FORD FUELS LTD,01/06/11,1465.7
Bath & North East Somerset Council,10611269,KA3,Fuel,C06,Service Delivery,FORD FUELS LTD,01/06/11,1501.5
Bath & North East Somerset Council,21090377,LM8,Home Care,C03,Adult Social Services & Housing,NURSING SOLUTIONS LIMITED,01/06/11,1552
Bath & North East Somerset Council,10611745,LA7,Purchases for Resale,C06,Service Delivery,CLEO MUSSI,01/06/11,1654.97
Bath & North East Somerset Council,21090607,PG1,Rent Allowances,C02,Resources,ST JOHNS HOSPITAL,01/06/11,1712.86
Bath & North East Somerset Council,10610310,LA1,Equipment Purchase,C02,Resources,T R HAYES LTD,01/06/11,1720.83
Bath & North East Somerset Council,10613451,PB4,Payments to Private Contractors,C06,Service Delivery,VIRIDOR WASTE MANAGEMENT LTD,01/06/11,1735.65
Bath & North East Somerset Council,10611068,LJ1,Consultants Fees,C05,Children's Services,SALLY BOULTER,01/06/11,1750
Bath & North East Somerset Council,10610872,HA4,Responsive Maintenance PCB,C02,Resources,THEMEJOB LTD,01/06/11,1780
Bath & North East Somerset Council,10613457,PA1,Payments to Joint Authorities,C06,Service Delivery,SOUTH GLOUCESTERSHIRE COUNCIL,01/06/11,1783
Bath & North East Somerset Council,10612250,LK1,Fees,C06,Service Delivery,COMMUNITY FIRST PARTNERSHIP LTD,01/06/11,1844.8
Bath & North East Somerset Council,21090633,PG1,Rent Allowances,C02,Resources,ADVANCE HOUSING SUPPORT & SUPPOR,01/06/11,1991.92
Bath & North East Somerset Council,10613730,HA6,Planned Maintenance PCB,C02,Resources,R & J DECORATORS,01/06/11,2014.9
Bath & North East Somerset Council,21090606,PG1,Rent Allowances,C02,Resources,KILMERSDON RURAL HOUSING ASSOCIA,01/06/11,2018.52
Bath & North East Somerset Council,10612210,LA1,Equipment Purchase,C03,Adult Social Services & Housing,DRIVE MEDICAL LTD,01/06/11,2048.3
Bath & North East Somerset Council,10613111,LK1,Fees,C02,Resources,COLLIERS CRE,01/06/11,2300
Bath & North East Somerset Council,10613011,LH5,Marketing,C06,Service Delivery,CONSTELLATION MEDIA,01/06/11,2358
Bath & North East Somerset Council,10612192,LM1,Volunt Homes Placements Top/Up,C05,Children's Services,HERTFORDSHIRE COUNTY COUNCIL,01/06/11,2359.2
Bath & North East Somerset Council,21090608,PG1,Rent Allowances,C02,Resources,METHODIST HOMES HOUSING ASSOCIAT,01/06/11,2373.84
Bath & North East Somerset Council,21090619,PG1,Rent Allowances,C02,Resources,WESTERN CHALLENGE HOUSING ASSOCI,01/06/11,2376.64
Bath & North East Somerset Council,10610476,HA3,Planned Maintenance,C06,Service Delivery,THEMEJOB LTD,01/06/11,2400
Bath & North East Somerset Council,10613737,HA4,Responsive Maintenance PCB,C02,Resources,EMERYS OF BATH LTD,01/06/11,2986
Bath & North East Somerset Council,10612193,HK1,Highway Maintenance,C06,Service Delivery,WDM LIMITED,01/06/11,3000
Bath & North East Somerset Council,10612911,3G1,Grants/Advances,C03,Adult Social Services & Housing,MARK NASH LTD,01/06/11,3071.4
Bath & North East Somerset Council,21090602,PG1,Rent Allowances,C02,Resources,BATH AND NORTH EAST SOMERSET COU,01/06/11,3176.38
Bath & North East Somerset Council,10610502,LM2,Foster Carer Allowances,C05,Children's Services,PATHWAY CARE (BRISTOL) LTD,01/06/11,3275.95
Bath & North East Somerset Council,10612362,3F7,PCB External Fees,C06,Service Delivery,COLLIERS CRE,01/06/11,3335.6
Bath & North East Somerset Council,10610501,LM2,Foster Carer Allowances,C05,Children's Services,PATHWAY CARE (BRISTOL) LTD,01/06/11,3472
Bath & North East Somerset Council,10610499,LM2,Foster Carer Allowances,C05,Children's Services,PATHWAY CARE (BRISTOL) LTD,01/06/11,3472
Bath & North East Somerset Council,10610498,LM2,Foster Carer Allowances,C05,Children's Services,PATHWAY CARE (BRISTOL) LTD,01/06/11,3472
Bath & North East Somerset Council,10610497,LM2,Foster Carer Allowances,C05,Children's Services,PATHWAY CARE (BRISTOL) LTD,01/06/11,3542.86
Bath & North East Somerset Council,10610496,LM2,Foster Carer Allowances,C05,Children's Services,PATHWAY CARE (BRISTOL) LTD,01/06/11,3542.86
Bath & North East Somerset Council,10610868,HA4,Responsive Maintenance PCB,C02,Resources,THEMEJOB LTD,01/06/11,3615
Bath & North East Somerset Council,10612956,HA4,Responsive Maintenance PCB,C02,Resources,C & R FENCING LIMITED,01/06/11,3750
Bath & North East Somerset Council,21090641,PG1,Rent Allowances,C02,Resources,NEXT LINK,01/06/11,3817.2
Bath & North East Somerset Council,10612340,HK1,Highway Maintenance,C06,Service Delivery,SELECT ELECTRICS LTD,01/06/11,3909
Bath & North East Somerset Council,10613290,LM8,Home Care,C03,Adult Social Services & Housing,CARE SOUTH,01/06/11,4010
Bath & North East Somerset Council,10611268,KA3,Fuel,C06,Service Delivery,FORD FUELS LTD,01/06/11,4173.02
Bath & North East Somerset Council,10606733,3N7,PCB Misc. Costs,C06,Service Delivery,MR MICHAEL BEDFORD,01/06/11,5100
Bath & North East Somerset Council,10613288,LM8,Home Care,C03,Adult Social Services & Housing,CARE SOUTH,01/06/11,5170
Bath & North East Somerset Council,10611327,PB4,Payments to Private Contractors,C06,Service Delivery,MAY GURNEY,01/06/11,6178.08
Bath & North East Somerset Council,10612894,HA4,Responsive Maintenance PCB,C02,Resources,MELHUISH & SAUNDERS LTD,01/06/11,6881.69
Bath & North East Somerset Council,10606733,3N7,PCB Misc. Costs,C06,Service Delivery,MR MICHAEL BEDFORD,01/06/11,6962.5
Bath & North East Somerset Council,10613407,DB1,Agency Staff,C02,Resources,HAYS HR PERSONNEL,01/06/11,7868.07
Bath & North East Somerset Council,10611263,KA3,Fuel,C06,Service Delivery,FORD FUELS LTD,01/06/11,8085
Bath & North East Somerset Council,10609569,LK2,Licences,C06,Service Delivery,ASTUN TECHNOLOGY LTD,01/06/11,8506
Bath & North East Somerset Council,10612341,HK1,Highway Maintenance,C06,Service Delivery,SELECT ELECTRICS LTD,01/06/11,8679.28
Bath & North East Somerset Council,10611265,KA3,Fuel,C06,Service Delivery,FORD FUELS LTD,01/06/11,9817.5
Bath & North East Somerset Council,10613493,LA5,Materials,C02,Resources,BSS,01/06/11,10205.24
Bath & North East Somerset Council,10613450,PB4,Payments to Private Contractors,C06,Service Delivery,CORY ENVIRONMENTAL (GLOUCS) LT,01/06/11,10725.26
Bath & North East Somerset Council,10613591,LH1,Liability Insurance,Z99,Outside Revenue Accounts,ZURICH MUNICIPAL,01/06/11,13500
Bath & North East Somerset Council,21090624,PG1,Rent Allowances,C02,Resources,WESTERN CHALLENGE HOUSING ASSOCI,01/06/11,14445.59
Bath & North East Somerset Council,10613450,LW6,Tax,C06,Service Delivery,CORY ENVIRONMENTAL (GLOUCS) LT,01/06/11,21800.8
Bath & North East Somerset Council,10610476,HA3,Planned Maintenance,C06,Service Delivery,THEMEJOB LTD,01/06/11,22548
Bath & North East Somerset Council,10613636,7F1,Rent,,,SOMER COMMUNITY HOUSING TRUST,01/06/11,37413.38
Bath & North East Somerset Council,10611326,PB4,Payments to Private Contractors,C06,Service Delivery,MAY GURNEY,01/06/11,217433.22
Bath & North East Somerset Council,10616157,LP9,IT Support Costs,C02,Resources,MOUCHEL BUSINESS SERVICES LTD,01/06/11,343461
Bath & North East Somerset Council,10613791,LH2,Advertising,C03,Adult Social Services & Housing,NORTHCLIFFE MEDIA LTD,02/06/11,444.44
Bath & North East Somerset Council,21091055,PG1,Rent Allowances,C02,Resources,REDACTED,02/06/11,507.68
Bath & North East Somerset Council,21091061,PG1,Rent Allowances,C02,Resources,REDACTED,02/06/11,507.68
Bath & North East Somerset Council,21091085,PG1,Rent Allowances,C02,Resources,REDACTED,02/06/11,507.68
Bath & North East Somerset Council,21091097,PG1,Rent Allowances,C02,Resources,REDACTED,02/06/11,507.68
Bath & North East Somerset Council,21091001,PG1,Rent Allowances,C02,Resources,REDACTED,02/06/11,522.65
Bath & North East Somerset Council,21091069,PG1,Rent Allowances,C02,Resources,REDACTED,02/06/11,530.76
Bath & North East Somerset Council,21091050,PG1,Rent Allowances,C02,Resources,REDACTED,02/06/11,535.4
Bath & North East Somerset Council,21090956,PG1,Rent Allowances,C02,Resources,REDACTED,02/06/11,542.44
Bath & North East Somerset Council,21091073,PG1,Rent Allowances,C02,Resources,REDACTED,02/06/11,544.6
Bath & North East Somerset Council,21091049,PG1,Rent Allowances,C02,Resources,WEST OF ENGLAND ESTATE MANAGEMEN,02/06/11,547.72
Bath & North East Somerset Council,21091090,PG1,Rent Allowances,C02,Resources,REDACTED,02/06/11,547.72
Bath & North East Somerset Council,21091044,PG1,Rent Allowances,C02,Resources,REDACTED,02/06/11,553.84
Bath & North East Somerset Council,21091054,PG1,Rent Allowances,C02,Resources,REDACTED,02/06/11,553.84
Bath & North East Somerset Council,21091071,PG1,Rent Allowances,C02,Resources,REDACTED,02/06/11,553.84
Bath & North East Somerset Council,21091091,PG1,Rent Allowances,C02,Resources,REDACTED,02/06/11,553.84
Bath & North East Somerset Council,10612876,LA7,Purchases for Resale,C06,Service Delivery,NEW ENGLISH TEAS LIMITED,02/06/11,576.72
Bath & North East Somerset Council,21091053,PG1,Rent Allowances,C02,Resources,REDACTED,02/06/11,576.96
Bath & North East Somerset Council,21091047,PG1,Rent Allowances,C02,Resources,REDACTED,02/06/11,600
Bath & North East Somerset Council,21091084,PG1,Rent Allowances,C02,Resources,REDACTED,02/06/11,600
Bath & North East Somerset Council,10613706,LJ2,Legal Fees,C05,Children's Services,TRICHO-TECH LTD,02/06/11,623.34
Bath & North East Somerset Council,21091096,PG1,Rent Allowances,C02,Resources,SCANLAN PROPERTY MANAGEMENT,02/06/11,641.52
Bath & North East Somerset Council,21091092,PG1,Rent Allowances,C02,Resources,REDACTED,02/06/11,648.92
Bath & North East Somerset Council,21091019,PG1,Rent Allowances,C02,Resources,HERMVALE LTD,02/06/11,650.11
Bath & North East Somerset Council,21091032,PG1,Rent Allowances,C02,Resources,HANOVER HOUSING ASSOCIATION,02/06/11,663.62
Bath & North East Somerset Council,21091095,PG1,Rent Allowances,C02,Resources,REDACTED,02/06/11,669.24
Bath & North East Somerset Council,21091036,PG1,Rent Allowances,C02,Resources,REDACTED,02/06/11,683.08
Bath & North East Somerset Council,21091074,PG1,Rent Allowances,C02,Resources,AQUA SULIS FINANCIAL MANAGEMENT,02/06/11,690.4
Bath & North East Somerset Council,21091067,PG1,Rent Allowances,C02,Resources,REDACTED,02/06/11,692.32
Bath & North East Somerset Council,10611209,HV3,Window Cleaning,C06,Service Delivery,MINSTER CLEANING SERVICES,02/06/11,741.08
Bath & North East Somerset Council,10613456,HP6,Water Charges,C06,Service Delivery,BWBSL,02/06/11,759.19
Bath & North East Somerset Council,21090994,PG1,Rent Allowances,C02,Resources,REDACTED,02/06/11,772
Bath & North East Somerset Council,21091000,PG1,Rent Allowances,C02,Resources,REDACTED,02/06/11,781
Bath & North East Somerset Council,21091051,PG1,Rent Allowances,C02,Resources,REDACTED,02/06/11,784.6
Bath & North East Somerset Council,21090970,PG1,Rent Allowances,C02,Resources,REDACTED,02/06/11,941.53
Bath & North East Somerset Council,21091068,PG1,Rent Allowances,C02,Resources,REDACTED,02/06/11,975
Bath & North East Somerset Council,21090992,PG1,Rent Allowances,C02,Resources,REDACTED,02/06/11,993
Bath & North East Somerset Council,21091081,PG1,Rent Allowances,C02,Resources,REDACTED,02/06/11,1000
Bath & North East Somerset Council,21090982,PG1,Rent Allowances,C02,Resources,REDACTED,02/06/11,1064
Bath & North East Somerset Council,21091023,PG1,Rent Allowances,C02,Resources,MICHAEL GOULD LETTINGS,02/06/11,1070.28
Bath & North East Somerset Council,10613833,3J2,PCB Consultants,C02,Resources,INTEGRA ASSOCIATES LTD,02/06/11,1100
Bath & North East Somerset Council,21091087,PG1,Rent Allowances,C02,Resources,THE SULIS PARTNERSHIP,02/06/11,1103.08
Bath & North East Somerset Council,21090934,PG1,Rent Allowances,C02,Resources,REDACTED,02/06/11,1123.04
Bath & North East Somerset Council,21091033,PG1,Rent Allowances,C02,Resources,REDACTED,02/06/11,1129.88
Bath & North East Somerset Council,10613834,3J2,PCB Consultants,C02,Resources,INTEGRA ASSOCIATES LTD,02/06/11,1200
Bath & North East Somerset Council,21091021,PG1,Rent Allowances,C02,Resources,SANCTUARY HOUSING ASSOCIATION,02/06/11,1257.18
Bath & North East Somerset Council,10613832,3J2,PCB Consultants,C02,Resources,INTEGRA ASSOCIATES LTD,02/06/11,1282.89
Bath & North East Somerset Council,21091035,PG1,Rent Allowances,C02,Resources,SOVEREIGN HOUSING ASSOCIATION,02/06/11,1289.43
Bath & North East Somerset Council,10613831,LH1,Liability Insurance,Z99,Outside Revenue Accounts,ZURICH INSURANCE,02/06/11,1333.6
Bath & North East Somerset Council,10613829,HX1,Property Insurance,Z99,Outside Revenue Accounts,SOUTHDOWN JUNIOR SCHOOL,02/06/11,1382
Bath & North East Somerset Council,10613820,LV1,Grants to Voluntary Bodies,C06,Service Delivery,CREATIVE LEARNING AGENCY,02/06/11,1401.46
Bath & North East Somerset Council,21090984,PG1,Rent Allowances,C02,Resources,REDACTED,02/06/11,1408.22
Bath & North East Somerset Council,21091089,PG1,Rent Allowances,C02,Resources,B.A.S.S,02/06/11,1464.34
Bath & North East Somerset Council,21091013,PG1,Rent Allowances,C02,Resources,SHAPE HOUSING ASSOCIATION,02/06/11,1472.98
Bath & North East Somerset Council,10613821,LJ4,Contracts,C06,Service Delivery,CREATIVE LEARNING AGENCY,02/06/11,1500
Bath & North East Somerset Council,10613753,LH2,Advertising,C06,Service Delivery,NORTHCLIFFE MEDIA LTD,02/06/11,1633.56
Bath & North East Somerset Council,21091030,PG1,Rent Allowances,C02,Resources,HANOVER HOUSING ASSOCIATION,02/06/11,1633.56
Bath & North East Somerset Council,21091094,PG1,Rent Allowances,C02,Resources,BATH PROPERTY LETTING,02/06/11,1656.71
Bath & North East Somerset Council,21090909,PG1,Rent Allowances,C02,Resources,REDACTED,02/06/11,1778.26
Bath & North East Somerset Council,21091020,PG1,Rent Allowances,C02,Resources,PLACES FOR PEOPLE,02/06/11,1786.28
Bath & North East Somerset Council,21091079,PG1,Rent Allowances,C02,Resources,REDACTED,02/06/11,1844.24
Bath & North East Somerset Council,21091065,PG1,Rent Allowances,C02,Resources,P.E.O.P.L.E.,02/06/11,1918
Bath & North East Somerset Council,21091025,PG1,Rent Allowances,C02,Resources,BARONS PROPERTY AGENTS,02/06/11,1984.56
Bath & North East Somerset Council,21091076,PG1,Rent Allowances,C02,Resources,OPTIONS FOR LIVING LTD,02/06/11,2141.96
Bath & North East Somerset Council,10613808,LW9,Other Expenses,C05,Children's Services,BATH & NORTH EAST SOMERSET COUNCIL - OFFICE SERVIC,02/06/11,2488.52
Bath & North East Somerset Council,10613722,LJ3,Other Services to the Council,C06,Service Delivery,TRAFFIC ENFORCEMENT CENTRE,02/06/11,2500
Bath & North East Somerset Council,10613722,LJ3,Other Services to the Council,C06,Service Delivery,TRAFFIC ENFORCEMENT CENTRE,02/06/11,2500
Bath & North East Somerset Council,10613819,LV2,Contributions to Organisations,C06,Service Delivery,KEYNSHAM MUSIC FESTIVAL ASSOCIATION,02/06/11,2500
Bath & North East Somerset Council,21091052,PG1,Rent Allowances,C02,Resources,TRUSTEASE PROPERTY MANAGEMENT LT,02/06/11,2727.21
Bath & North East Somerset Council,21091100,PG1,Rent Allowances,C02,Resources,BATH & DISTRICT LIFE CARE,02/06/11,2906.88
Bath & North East Somerset Council,21091015,PG1,Rent Allowances,C02,Resources,KNIGHTSTONE HOUSING ASSOCIATION,02/06/11,2999.32
Bath & North East Somerset Council,21091057,PG1,Rent Allowances,C02,Resources,REDACTED,02/06/11,3425.76
Bath & North East Somerset Council,10613830,HX1,Property Insurance,Z99,Outside Revenue Accounts,B&NES COUNCIL RE MOORLANDS INFANT SCHOOL,02/06/11,3555.22
Bath & North East Somerset Council,10611670,3C4,PCB Building Works,C04,Development & Major Projects,JUBB CONSULTING ENGINEERS LTD,02/06/11,3805
Bath & North East Somerset Council,21091075,PG1,Rent Allowances,C02,Resources,CREST ESTATE AGENTS,02/06/11,3923.47
Bath & North East Somerset Council,21091018,PG1,Rent Allowances,C02,Resources,THE GUINNESS TRUST,02/06/11,4003.77
Bath & North East Somerset Council,10613380,LA4,Equipment Hire/Rent,C02,Resources,XEROX (UK) LIMITED,02/06/11,4572.18
Bath & North East Somerset Council,21091016,PG1,Rent Allowances,C02,Resources,JULIAN HOUSE,02/06/11,4587.39
Bath & North East Somerset Council,21091014,PG1,Rent Allowances,C02,Resources,PEGASUS PROPERTIES,02/06/11,5246.83
Bath & North East Somerset Council,21091082,PG1,Rent Allowances,C02,Resources,REDACTED,02/06/11,5558.88
Bath & North East Somerset Council,10613191,LL3,Supported Living,C03,Adult Social Services & Housing,DIMENSIONS (UK) LTD,02/06/11,5786.2
Bath & North East Somerset Council,21091017,PG1,Rent Allowances,C02,Resources,GUINNESS HOUSING ASSOCIATION,02/06/11,6096.95
Bath & North East Somerset Council,10612738,LM3,Residential Care,C03,Adult Social Services & Housing,NATIONAL AUTISTIC SOCIETY,02/06/11,6112.11
Bath & North East Somerset Council,21091029,PG1,Rent Allowances,C02,Resources,PLACES FOR PEOPLE HOMES,02/06/11,6170.43
Bath & North East Somerset Council,10612739,LM3,Residential Care,C03,Adult Social Services & Housing,NATIONAL AUTISTIC SOCIETY,02/06/11,6312
Bath & North East Somerset Council,10612747,LM3,Residential Care,C03,Adult Social Services & Housing,NATIONAL AUTISTIC SOCIETY,02/06/11,6563.15
Bath & North East Somerset Council,10612749,LM3,Residential Care,C03,Adult Social Services & Housing,NATIONAL AUTISTIC SOCIETY,02/06/11,6779.92
Bath & North East Somerset Council,10613409,LL3,Supported Living,C03,Adult Social Services & Housing,FREEWAYS TRUST LTD,02/06/11,7123.12
Bath & North East Somerset Council,10613167,LL3,Supported Living,C03,Adult Social Services & Housing,DIMENSIONS (UK) LTD,02/06/11,7812.54
Bath & North East Somerset Council,21091012,PG1,Rent Allowances,C02,Resources,KNIGHTSTONE HOUSING ASSOCIATION,02/06/11,8824.32
Bath & North East Somerset Council,10613728,LH1,Liability Insurance,Z99,Outside Revenue Accounts,ZURICH MUNICIPAL,02/06/11,10000
Bath & North East Somerset Council,10613822,3E4,PCB Furniture/Equipment,C05,Children's Services,THREE HUNDRED AND SIXTY DEGREES,02/06/11,12658.54
Bath & North East Somerset Council,10610333,LM6,Nursing Care,C03,Adult Social Services & Housing,CASTLEBECK CARE (TEESDALE) LTD,02/06/11,13064.29
Bath & North East Somerset Council,21091026,PG1,Rent Allowances,C02,Resources,KNIGHTSTONE HOUSING ASSOCIATION,02/06/11,17387.97
Bath & North East Somerset Council,21091028,PG1,Rent Allowances,C02,Resources,REDLAND HOUSING ASSOCIATION LTD,02/06/11,23739.3
Bath & North East Somerset Council,10613166,LM3,Residential Care,C03,Adult Social Services & Housing,THE BRANDON TRUST,02/06/11,47588.67
Bath & North East Somerset Council,10613105,DB1,Agency Staff,C02,Resources,COMENSURA LTD,02/06/11,55165.93
Bath & North East Somerset Council,10613413,HP3,Room Hire Charges,C06,Service Delivery,RS SECURITY LTD,03/06/11,105
Bath & North East Somerset Council,21091124,LL3,Supported Living,C03,Adult Social Services & Housing,ASPECTS & MILESTONES TRUST,03/06/11,370.3
Bath & North East Somerset Council,21091125,LL3,Supported Living,C03,Adult Social Services & Housing,ASPECTS & MILESTONES TRUST,03/06/11,518.44
Bath & North East Somerset Council,21091125,LL3,Supported Living,C03,Adult Social Services & Housing,ASPECTS & MILESTONES TRUST,03/06/11,518.44
Bath & North East Somerset Council,21091125,LL3,Supported Living,C03,Adult Social Services & Housing,ASPECTS & MILESTONES TRUST,03/06/11,518.44
Bath & North East Somerset Council,21091125,LL3,Supported Living,C03,Adult Social Services & Housing,ASPECTS & MILESTONES TRUST,03/06/11,518.44
Bath & North East Somerset Council,21091125,LL3,Supported Living,C03,Adult Social Services & Housing,ASPECTS & MILESTONES TRUST,03/06/11,518.44
Bath & North East Somerset Council,21091124,LL3,Supported Living,C03,Adult Social Services & Housing,ASPECTS & MILESTONES TRUST,03/06/11,518.44
Bath & North East Somerset Council,21091124,LL3,Supported Living,C03,Adult Social Services & Housing,ASPECTS & MILESTONES TRUST,03/06/11,518.44
Bath & North East Somerset Council,21091124,LL3,Supported Living,C03,Adult Social Services & Housing,ASPECTS & MILESTONES TRUST,03/06/11,518.44
Bath & North East Somerset Council,21091124,LL3,Supported Living,C03,Adult Social Services & Housing,ASPECTS & MILESTONES TRUST,03/06/11,518.44
Bath & North East Somerset Council,10613816,LL1,Services to Clients,C05,Children's Services,PGL TRAVEL LTD,03/06/11,529
Bath & North East Somerset Council,10613751,HA4,Responsive Maintenance PCB,C02,Resources,TPM (SOUTH WEST) LTD,03/06/11,544.61
Bath & North East Somerset Council,10612846,LA7,Purchases for Resale,C06,Service Delivery,ATMOSPHERE POSTCARDS,03/06/11,598.8
Bath & North East Somerset Council,10614057,7P8,Cash Related,,,BANES RE HERITAGE SERVICES,03/06/11,600
Bath & North East Somerset Council,10611387,LF3,Books & Publications,C05,Children's Services,HENRY,03/06/11,605
Bath & North East Somerset Council,10613142,HN1,Electricity,C06,Service Delivery,SOUTHERN ELECTRIC PLC,03/06/11,631.48
Bath & North East Somerset Council,10613658,HK1,Highway Maintenance,C06,Service Delivery,E R HEMMINGS (BUILDING) LTD,03/06/11,632
Bath & North East Somerset Council,10613413,DB1,Agency Staff,C06,Service Delivery,RS SECURITY LTD,03/06/11,714
Bath & North East Somerset Council,10613720,DB1,Agency Staff,C06,Service Delivery,M WIDDOWSON LTD,03/06/11,766.85
Bath & North East Somerset Council,10614035,HA5,Service Contract PCB,C02,Resources,TPM (SOUTH WEST) LTD,03/06/11,812
Bath & North East Somerset Council,10614037,3C4,PCB Building Works,C02,Resources,TPM (SOUTH WEST) LTD,03/06/11,865
Bath & North East Somerset Council,10613906,LJ4,Contracts,C06,Service Delivery,BRISTOL AUTO ELECTRICAL LTD,03/06/11,909.46
Bath & North East Somerset Council,21091126,LL3,Supported Living,C03,Adult Social Services & Housing,ROYAL MENCAP SOCIETY,03/06/11,938
Bath & North East Somerset Council,21091131,LL3,Supported Living,C03,Adult Social Services & Housing,ROYAL MENCAP SOCIETY,03/06/11,938
Bath & North East Somerset Council,21091132,LL3,Supported Living,C03,Adult Social Services & Housing,ROYAL MENCAP SOCIETY,03/06/11,938
Bath & North East Somerset Council,21091130,LL3,Supported Living,C03,Adult Social Services & Housing,ROYAL MENCAP SOCIETY,03/06/11,938
Bath & North East Somerset Council,10613800,3N7,PCB Misc. Costs,C06,Service Delivery,STRUCTURAL SOILS LTD,03/06/11,941.25
Bath & North East Somerset Council,10613864,LJ1,Consultants Fees,C02,Resources,NEWLANDS SPECIAL PROJECTS LTD,03/06/11,1105.5
Bath & North East Somerset Council,10613727,LJ1,Consultants Fees,C02,Resources,NEWLANDS SPECIAL PROJECTS LTD,03/06/11,1237.5
Bath & North East Somerset Council,10613916,DB1,Agency Staff,C06,Service Delivery,IAYAZ CONSULTING ENGINEERS LTD,03/06/11,1281.53
Bath & North East Somerset Council,10613721,DB1,Agency Staff,C06,Service Delivery,C R DAWSON LTD,03/06/11,1350.3
Bath & North East Somerset Council,10614049,HE1,General Maintenance,C06,Service Delivery,E W HOBBS,03/06/11,2403
Bath & North East Somerset Council,10614036,LC1,Provisions,C05,Children's Services,SCHOOL MILK SERVICES LTD,03/06/11,2583.68
Bath & North East Somerset Council,10613922,PB4,Payments to Private Contractors,C06,Service Delivery,WILTSHIRE WASTE RECYCLING LTD,03/06/11,3318
Bath & North East Somerset Council,10613917,DB1,Agency Staff,C06,Service Delivery,S W PERRY LTD,03/06/11,3407.17
Bath & North East Somerset Council,10613862,LJ1,Consultants Fees,C02,Resources,MENDIP SURVEY & DESIGN LTD,03/06/11,3900
Bath & North East Somerset Council,10613652,3C4,PCB Building Works,C06,Service Delivery,COLAS LTD,03/06/11,23825.73
Bath & North East Somerset Council,10612941,3C4,PCB Building Works,C05,Children's Services,M D BUILDING SERVICES LTD,03/06/11,100715.49
Bath & North East Somerset Council,21091173,PG1,Rent Allowances,C02,Resources,SOMER COMMUNITY HOUSING TRUST,03/06/11,111183.41
Bath & North East Somerset Council,10613517,3N7,PCB Misc. Costs,C04,Development & Major Projects,CREST NICHOLSON (BATH WESTERN) LTD,03/06/11,506234.94
Bath & North East Somerset Council,21091174,PG1,Rent Allowances,C02,Resources,SOMER COMMUNITY HOUSING TRUST,03/06/11,1422480.96
Bath & North East Somerset Council,21091259,LM8,Home Care,C03,Adult Social Services & Housing,KUMARI HOMECARE SERVICE,06/06/11,3.97
Bath & North East Somerset Council,21091259,LM8,Home Care,C03,Adult Social Services & Housing,KUMARI HOMECARE SERVICE,06/06/11,3.97
Bath & North East Somerset Council,21091259,LM8,Home Care,C03,Adult Social Services & Housing,KUMARI HOMECARE SERVICE,06/06/11,9.86
Bath & North East Somerset Council,21091259,LM8,Home Care,C03,Adult Social Services & Housing,KUMARI HOMECARE SERVICE,06/06/11,10.82
Bath & North East Somerset Council,10614102,DB1,Agency Staff,C06,Service Delivery,MINIBUS TRAVEL,06/06/11,15
Bath & North East Somerset Council,21091261,LM8,Home Care,C03,Adult Social Services & Housing,SAFE & SOUND HOMECARE SERVICES,06/06/11,30
Bath & North East Somerset Council,21091261,LM8,Home Care,C03,Adult Social Services & Housing,SAFE & SOUND HOMECARE SERVICES,06/06/11,30
Bath & North East Somerset Council,21091259,LM8,Home Care,C03,Adult Social Services & Housing,KUMARI HOMECARE SERVICE,06/06/11,60.96
Bath & North East Somerset Council,21091266,LM3,Residential Care,C03,Adult Social Services & Housing,CHARLTON COURT LTD T/A SUNNYMEDE,06/06/11,76.57
Bath & North East Somerset Council,21091266,LM3,Residential Care,C03,Adult Social Services & Housing,CHARLTON COURT LTD T/A SUNNYMEDE,06/06/11,76.57
Bath & North East Somerset Council,21091261,LM8,Home Care,C03,Adult Social Services & Housing,SAFE & SOUND HOMECARE SERVICES,06/06/11,79.59
Bath & North East Somerset Council,21091261,LM8,Home Care,C03,Adult Social Services & Housing,SAFE & SOUND HOMECARE SERVICES,06/06/11,79.59
Bath & North East Somerset Council,10612579,LC1,Provisions,C03,Adult Social Services & Housing,L & F JONES HOLDINGS LTD,06/06/11,84.13
Bath & North East Somerset Council,21091259,LM8,Home Care,C03,Adult Social Services & Housing,KUMARI HOMECARE SERVICE,06/06/11,89.79
Bath & North East Somerset Council,21091259,LM8,Home Care,C03,Adult Social Services & Housing,KUMARI HOMECARE SERVICE,06/06/11,89.79
Bath & North East Somerset Council,21091594,LM6,Nursing Care,C03,Adult Social Services & Housing,CEDAR CARE HOMES LTD,06/06/11,92.86
Bath & North East Somerset Council,21091262,LM3,Residential Care,C03,Adult Social Services & Housing,BRIDGE CARE LTD,06/06/11,92.86
Bath & North East Somerset Council,10614103,LJ4,Contracts,C06,Service Delivery,MR P S MATTHEWS T/A NORAD TAXIS,06/06/11,106
Bath & North East Somerset Council,10614090,LJ4,Contracts,C06,Service Delivery,HIGHWAY TAXIS & TRAVEL,06/06/11,139.68
Bath & North East Somerset Council,21091259,LM8,Home Care,C03,Adult Social Services & Housing,KUMARI HOMECARE SERVICE,06/06/11,140.28
Bath & North East Somerset Council,21091261,LM8,Home Care,C03,Adult Social Services & Housing,SAFE & SOUND HOMECARE SERVICES,06/06/11,151
Bath & North East Somerset Council,21091261,LM8,Home Care,C03,Adult Social Services & Housing,SAFE & SOUND HOMECARE SERVICES,06/06/11,151
Bath & North East Somerset Council,21091555,LM6,Nursing Care,C03,Adult Social Services & Housing,CHOLWELL HOUSE NURSING HOME,06/06/11,156
Bath & North East Somerset Council,21091555,LM6,Nursing Care,C03,Adult Social Services & Housing,CHOLWELL HOUSE NURSING HOME,06/06/11,156
Bath & North East Somerset Council,21091261,LM8,Home Care,C03,Adult Social Services & Housing,SAFE & SOUND HOMECARE SERVICES,06/06/11,165.56
Bath & North East Somerset Council,21091261,LM8,Home Care,C03,Adult Social Services & Housing,SAFE & SOUND HOMECARE SERVICES,06/06/11,165.56
Bath & North East Somerset Council,21091261,LM8,Home Care,C03,Adult Social Services & Housing,SAFE & SOUND HOMECARE SERVICES,06/06/11,187.5
Bath & North East Somerset Council,21091261,LM8,Home Care,C03,Adult Social Services & Housing,SAFE & SOUND HOMECARE SERVICES,06/06/11,187.5
Bath & North East Somerset Council,21091259,LM8,Home Care,C03,Adult Social Services & Housing,KUMARI HOMECARE SERVICE,06/06/11,192.55
Bath & North East Somerset Council,21091261,LM8,Home Care,C03,Adult Social Services & Housing,SAFE & SOUND HOMECARE SERVICES,06/06/11,226.5
Bath & North East Somerset Council,21091261,LM8,Home Care,C03,Adult Social Services & Housing,SAFE & SOUND HOMECARE SERVICES,06/06/11,226.5
Bath & North East Somerset Council,21091571,LM6,Nursing Care,C03,Adult Social Services & Housing,SHAW HOMES HOUSING ASSOC LTD,06/06/11,241.53
Bath & North East Somerset Council,21091566,LM6,Nursing Care,C03,Adult Social Services & Housing,BARCHESTER HEALTHCARE HOMES LTD,06/06/11,278.57
Bath & North East Somerset Council,21091567,LM6,Nursing Care,C03,Adult Social Services & Housing,LARKHALL SPRINGS NURSING HOME,06/06/11,278.57
Bath & North East Somerset Council,21091588,LM6,Nursing Care,C03,Adult Social Services & Housing,BARKER CHEMICALS LTD T/A ST TERESA'S NH,06/06/11,278.57
Bath & North East Somerset Council,21091594,LM6,Nursing Care,C03,Adult Social Services & Housing,CEDAR CARE HOMES LTD,06/06/11,278.57
Bath & North East Somerset Council,21091262,LM3,Residential Care,C03,Adult Social Services & Housing,BRIDGE CARE LTD,06/06/11,278.57
Bath & North East Somerset Council,21091558,LM6,Nursing Care,C03,Adult Social Services & Housing,STANTON COURT,06/06/11,323.14
Bath & North East Somerset Council,21091558,LM6,Nursing Care,C03,Adult Social Services & Housing,STANTON COURT,06/06/11,323.14
Bath & North East Somerset Council,21091261,LM8,Home Care,C03,Adult Social Services & Housing,SAFE & SOUND HOMECARE SERVICES,06/06/11,323.97
Bath & North East Somerset Council,21091261,LM8,Home Care,C03,Adult Social Services & Housing,SAFE & SOUND HOMECARE SERVICES,06/06/11,323.97
Bath & North East Somerset Council,21091564,LM6,Nursing Care,C03,Adult Social Services & Housing,CULVERHAY NURSING HOME,06/06/11,371.43
Bath & North East Somerset Council,21091549,LM4,Respite Care,C03,Adult Social Services & Housing,REDACTED,06/06/11,403.85
Bath & North East Somerset Council,21091549,LM4,Respite Care,C03,Adult Social Services & Housing,REDACTED,06/06/11,403.85
Bath & North East Somerset Council,21091566,LM6,Nursing Care,C03,Adult Social Services & Housing,BARCHESTER HEALTHCARE HOMES LTD,06/06/11,414.29
Bath & North East Somerset Council,10613987,LK1,Fees,C02,Resources,IOSH SERVICES LTD,06/06/11,430
Bath & North East Somerset Council,10610678,EA1,Training,C03,Adult Social Services & Housing,EDGE SERVICES,06/06/11,440
Bath & North East Somerset Council,10610678,EA1,Training,C03,Adult Social Services & Housing,EDGE SERVICES,06/06/11,440
Bath & North East Somerset Council,10612347,HE1,General Maintenance,C06,Service Delivery,PARKEON LIMITED,06/06/11,474
Bath & North East Somerset Council,21091342,LL8,Individualised Budget,C03,Adult Social Services & Housing,REDACTED,06/06/11,500
Bath & North East Somerset Council,21091457,LL8,Individualised Budget,C03,Adult Social Services & Housing,REDACTED,06/06/11,500
Bath & North East Somerset Council,21091602,LM6,Nursing Care,C03,Adult Social Services & Housing,NEWBRIDGE TOWERS RESIDENTIAL CARE HOME,06/06/11,501
Bath & North East Somerset Council,21091602,LM6,Nursing Care,C03,Adult Social Services & Housing,NEWBRIDGE TOWERS RESIDENTIAL CARE HOME,06/06/11,501
Bath & North East Somerset Council,21091259,LM8,Home Care,C03,Adult Social Services & Housing,KUMARI HOMECARE SERVICE,06/06/11,502.46
Bath & North East Somerset Council,21091259,LM8,Home Care,C03,Adult Social Services & Housing,KUMARI HOMECARE SERVICE,06/06/11,502.46
Bath & North East Somerset Council,21091271,LL8,Individualised Budget,C03,Adult Social Services & Housing,REDACTED - ILSA ACCOUNT,06/06/11,504.12
Bath & North East Somerset Council,21091271,LL8,Individualised Budget,C03,Adult Social Services & Housing,REDACTED - ILSA ACCOUNT,06/06/11,504.12
Bath & North East Somerset Council,21091577,LM6,Nursing Care,C03,Adult Social Services & Housing,EUROPEAN CARE SW LTD - REDACTED AC,06/06/11,519.92
Bath & North East Somerset Council,21091577,LM6,Nursing Care,C03,Adult Social Services & Housing,EUROPEAN CARE SW LTD - REDACTED AC,06/06/11,519.92
Bath & North East Somerset Council,10613986,LK1,Fees,C02,Resources,IOSH SERVICES LTD,06/06/11,520
Bath & North East Somerset Council,21091570,LM6,Nursing Care,C03,Adult Social Services & Housing,BRISTOL AGE CARE,06/06/11,531.43
Bath & North East Somerset Council,21091266,LM3,Residential Care,C03,Adult Social Services & Housing,CHARLTON COURT LTD T/A SUNNYMEDE,06/06/11,536
Bath & North East Somerset Council,21091266,LM3,Residential Care,C03,Adult Social Services & Housing,CHARLTON COURT LTD T/A SUNNYMEDE,06/06/11,536
Bath & North East Somerset Council,10611560,3C4,PCB Building Works,C06,Service Delivery,WESTERN POWER DISTRIBUTION (SO,06/06/11,546.26
Bath & North East Somerset Council,21091549,LM4,Respite Care,C03,Adult Social Services & Housing,REDACTED,06/06/11,550
Bath & North East Somerset Council,21091549,LM4,Respite Care,C03,Adult Social Services & Housing,REDACTED,06/06/11,550
Bath & North East Somerset Council,21091381,LL8,Individualised Budget,C03,Adult Social Services & Housing,REDACTED,06/06/11,552.02
Bath & North East Somerset Council,21091381,LL8,Individualised Budget,C03,Adult Social Services & Housing,REDACTED,06/06/11,552.02
Bath & North East Somerset Council,21091571,LM6,Nursing Care,C03,Adult Social Services & Housing,SHAW HOMES HOUSING ASSOC LTD,06/06/11,553.84
Bath & North East Somerset Council,21091571,LM6,Nursing Care,C03,Adult Social Services & Housing,SHAW HOMES HOUSING ASSOC LTD,06/06/11,553.84
Bath & North East Somerset Council,10614186,LJ4,Contracts,C06,Service Delivery,ANDREWS COACHES,06/06/11,553.92
Bath & North East Somerset Council,21091588,LM6,Nursing Care,C03,Adult Social Services & Housing,BARKER CHEMICALS LTD T/A ST TERESA'S NH,06/06/11,557.14
Bath & North East Somerset Council,21091262,LM3,Residential Care,C03,Adult Social Services & Housing,BRIDGE CARE LTD,06/06/11,557.14
Bath & North East Somerset Council,21091571,LM6,Nursing Care,C03,Adult Social Services & Housing,SHAW HOMES HOUSING ASSOC LTD,06/06/11,558.3
Bath & North East Somerset Council,21091571,LM6,Nursing Care,C03,Adult Social Services & Housing,SHAW HOMES HOUSING ASSOC LTD,06/06/11,558.3
Bath & North East Somerset Council,21091272,LL8,Individualised Budget,C03,Adult Social Services & Housing,ILSA,06/06/11,567.49
Bath & North East Somerset Council,21091272,LL8,Individualised Budget,C03,Adult Social Services & Housing,ILSA,06/06/11,567.49
Bath & North East Somerset Council,21091555,LM6,Nursing Care,C03,Adult Social Services & Housing,CHOLWELL HOUSE NURSING HOME,06/06/11,569
Bath & North East Somerset Council,21091555,LM6,Nursing Care,C03,Adult Social Services & Housing,CHOLWELL HOUSE NURSING HOME,06/06/11,569
Bath & North East Somerset Council,21091499,LL4,Direct Payments,C03,Adult Social Services & Housing,REDACTED,06/06/11,595.54
Bath & North East Somerset Council,21091499,LL4,Direct Payments,C03,Adult Social Services & Housing,REDACTED,06/06/11,595.54
Bath & North East Somerset Council,21091564,LM6,Nursing Care,C03,Adult Social Services & Housing,CULVERHAY NURSING HOME,06/06/11,600
Bath & North East Somerset Council,21091564,LM6,Nursing Care,C03,Adult Social Services & Housing,CULVERHAY NURSING HOME,06/06/11,600
Bath & North East Somerset Council,21091564,LM6,Nursing Care,C03,Adult Social Services & Housing,CULVERHAY NURSING HOME,06/06/11,600
Bath & North East Somerset Council,21091564,LM6,Nursing Care,C03,Adult Social Services & Housing,CULVERHAY NURSING HOME,06/06/11,600
Bath & North East Somerset Council,21091589,LM6,Nursing Care,C03,Adult Social Services & Housing,GROVE CARE LTD T/A ORIEL LODGE,06/06/11,600
Bath & North East Somerset Council,21091589,LM6,Nursing Care,C03,Adult Social Services & Housing,GROVE CARE LTD T/A ORIEL LODGE,06/06/11,600
Bath & North East Somerset Council,10614103,LJ4,Contracts,C06,Service Delivery,MR P S MATTHEWS T/A NORAD TAXIS,06/06/11,608
Bath & North East Somerset Council,10614187,LJ4,Contracts,C06,Service Delivery,ARLEEN COACH & HIRE SERVICES L,06/06/11,610
Bath & North East Somerset Council,21091559,LM6,Nursing Care,C03,Adult Social Services & Housing,WESTCROFT NURSING HOME,06/06/11,610.2
Bath & North East Somerset Council,21091559,LM6,Nursing Care,C03,Adult Social Services & Housing,WESTCROFT NURSING HOME,06/06/11,610.2
Bath & North East Somerset Council,21091570,LM6,Nursing Care,C03,Adult Social Services & Housing,BRISTOL AGE CARE,06/06/11,620
Bath & North East Somerset Council,21091570,LM6,Nursing Care,C03,Adult Social Services & Housing,BRISTOL AGE CARE,06/06/11,620
Bath & North East Somerset Council,21091570,LM6,Nursing Care,C03,Adult Social Services & Housing,BRISTOL AGE CARE,06/06/11,620
Bath & North East Somerset Council,21091570,LM6,Nursing Care,C03,Adult Social Services & Housing,BRISTOL AGE CARE,06/06/11,620
Bath & North East Somerset Council,21091570,LM6,Nursing Care,C03,Adult Social Services & Housing,BRISTOL AGE CARE,06/06/11,620
Bath & North East Somerset Council,21091570,LM6,Nursing Care,C03,Adult Social Services & Housing,BRISTOL AGE CARE,06/06/11,620
Bath & North East Somerset Council,21091570,LM6,Nursing Care,C03,Adult Social Services & Housing,BRISTOL AGE CARE,06/06/11,620
Bath & North East Somerset Council,21091570,LM6,Nursing Care,C03,Adult Social Services & Housing,BRISTOL AGE CARE,06/06/11,620
Bath & North East Somerset Council,21091570,LM6,Nursing Care,C03,Adult Social Services & Housing,BRISTOL AGE CARE,06/06/11,620
Bath & North East Somerset Council,21091570,LM6,Nursing Care,C03,Adult Social Services & Housing,BRISTOL AGE CARE,06/06/11,620
Bath & North East Somerset Council,21091570,LM6,Nursing Care,C03,Adult Social Services & Housing,BRISTOL AGE CARE,06/06/11,620
Bath & North East Somerset Council,21091570,LM6,Nursing Care,C03,Adult Social Services & Housing,BRISTOL AGE CARE,06/06/11,620
Bath & North East Somerset Council,21091570,LM6,Nursing Care,C03,Adult Social Services & Housing,BRISTOL AGE CARE,06/06/11,620
Bath & North East Somerset Council,21091570,LM6,Nursing Care,C03,Adult Social Services & Housing,BRISTOL AGE CARE,06/06/11,620
Bath & North East Somerset Council,21091570,LM6,Nursing Care,C03,Adult Social Services & Housing,BRISTOL AGE CARE,06/06/11,620
Bath & North East Somerset Council,21091570,LM6,Nursing Care,C03,Adult Social Services & Housing,BRISTOL AGE CARE,06/06/11,620
Bath & North East Somerset Council,21091570,LM6,Nursing Care,C03,Adult Social Services & Housing,BRISTOL AGE CARE,06/06/11,620
Bath & North East Somerset Council,21091570,LM6,Nursing Care,C03,Adult Social Services & Housing,BRISTOL AGE CARE,06/06/11,620
Bath & North East Somerset Council,21091570,LM6,Nursing Care,C03,Adult Social Services & Housing,BRISTOL AGE CARE,06/06/11,620
Bath & North East Somerset Council,21091570,LM6,Nursing Care,C03,Adult Social Services & Housing,BRISTOL AGE CARE,06/06/11,620
Bath & North East Somerset Council,21091570,LM6,Nursing Care,C03,Adult Social Services & Housing,BRISTOL AGE CARE,06/06/11,620
Bath & North East Somerset Council,10614107,LJ4,Contracts,C06,Service Delivery,STEPHEN WARREN,06/06/11,622.36
Bath & North East Somerset Council,10612579,LC1,Provisions,C03,Adult Social Services & Housing,L & F JONES HOLDINGS LTD,06/06/11,638.59
Bath & North East Somerset Council,21091577,LM6,Nursing Care,C03,Adult Social Services & Housing,EUROPEAN CARE SW LTD - REDACTED AC,06/06/11,641.22
Bath & North East Somerset Council,21091577,LM6,Nursing Care,C03,Adult Social Services & Housing,EUROPEAN CARE SW LTD - REDACTED AC,06/06/11,641.22
Bath & North East Somerset Council,21091489,LL4,Direct Payments,C03,Adult Social Services & Housing,REDACTED,06/06/11,641.69
Bath & North East Somerset Council,21091489,LL4,Direct Payments,C03,Adult Social Services & Housing,REDACTED,06/06/11,641.69
Bath & North East Somerset Council,21091555,LM6,Nursing Care,C03,Adult Social Services & Housing,CHOLWELL HOUSE NURSING HOME,06/06/11,646.6
Bath & North East Somerset Council,21091555,LM6,Nursing Care,C03,Adult Social Services & Housing,CHOLWELL HOUSE NURSING HOME,06/06/11,646.6
Bath & North East Somerset Council,21091555,LM6,Nursing Care,C03,Adult Social Services & Housing,CHOLWELL HOUSE NURSING HOME,06/06/11,650
Bath & North East Somerset Council,21091555,LM6,Nursing Care,C03,Adult Social Services & Housing,CHOLWELL HOUSE NURSING HOME,06/06/11,650
Bath & North East Somerset Council,21091557,LM6,Nursing Care,C03,Adult Social Services & Housing,BRIDGE CARE LTD,06/06/11,650
Bath & North East Somerset Council,21091557,LM6,Nursing Care,C03,Adult Social Services & Housing,BRIDGE CARE LTD,06/06/11,650
Bath & North East Somerset Council,21091558,LM6,Nursing Care,C03,Adult Social Services & Housing,STANTON COURT,06/06/11,650
Bath & North East Somerset Council,21091558,LM6,Nursing Care,C03,Adult Social Services & Housing,STANTON COURT,06/06/11,650
Bath & North East Somerset Council,21091558,LM6,Nursing Care,C03,Adult Social Services & Housing,STANTON COURT,06/06/11,650
Bath & North East Somerset Council,21091558,LM6,Nursing Care,C03,Adult Social Services & Housing,STANTON COURT,06/06/11,650
Bath & North East Somerset Council,21091558,LM6,Nursing Care,C03,Adult Social Services & Housing,STANTON COURT,06/06/11,650
Bath & North East Somerset Council,21091559,LM6,Nursing Care,C03,Adult Social Services & Housing,WESTCROFT NURSING HOME,06/06/11,650
Bath & North East Somerset Council,21091559,LM6,Nursing Care,C03,Adult Social Services & Housing,WESTCROFT NURSING HOME,06/06/11,650
Bath & North East Somerset Council,21091559,LM6,Nursing Care,C03,Adult Social Services & Housing,WESTCROFT NURSING HOME,06/06/11,650
Bath & North East Somerset Council,21091559,LM6,Nursing Care,C03,Adult Social Services & Housing,WESTCROFT NURSING HOME,06/06/11,650
Bath & North East Somerset Council,21091572,LM6,Nursing Care,C03,Adult Social Services & Housing,CARE FIRST CARE HOMES LTD,06/06/11,650
Bath & North East Somerset Council,21091572,LM6,Nursing Care,C03,Adult Social Services & Housing,CARE FIRST CARE HOMES LTD,06/06/11,650
Bath & North East Somerset Council,21091572,LM6,Nursing Care,C03,Adult Social Services & Housing,CARE FIRST CARE HOMES LTD,06/06/11,650
Bath & North East Somerset Council,21091572,LM6,Nursing Care,C03,Adult Social Services & Housing,CARE FIRST CARE HOMES LTD,06/06/11,650
Bath & North East Somerset Council,21091592,LM6,Nursing Care,C03,Adult Social Services & Housing,CARE FIRST CARE HOMES LTD,06/06/11,650
Bath & North East Somerset Council,21091592,LM6,Nursing Care,C03,Adult Social Services & Housing,CARE FIRST CARE HOMES LTD,06/06/11,650
Bath & North East Somerset Council,21091562,LM6,Nursing Care,C03,Adult Social Services & Housing,PARK STREET HOME,06/06/11,650
Bath & North East Somerset Council,21091562,LM6,Nursing Care,C03,Adult Social Services & Housing,PARK STREET HOME,06/06/11,650
Bath & North East Somerset Council,21091564,LM6,Nursing Care,C03,Adult Social Services & Housing,CULVERHAY NURSING HOME,06/06/11,650
Bath & North East Somerset Council,21091564,LM6,Nursing Care,C03,Adult Social Services & Housing,CULVERHAY NURSING HOME,06/06/11,650
Bath & North East Somerset Council,21091564,LM6,Nursing Care,C03,Adult Social Services & Housing,CULVERHAY NURSING HOME,06/06/11,650
Bath & North East Somerset Council,21091564,LM6,Nursing Care,C03,Adult Social Services & Housing,CULVERHAY NURSING HOME,06/06/11,650
Bath & North East Somerset Council,21091564,LM6,Nursing Care,C03,Adult Social Services & Housing,CULVERHAY NURSING HOME,06/06/11,650
Bath & North East Somerset Council,21091564,LM6,Nursing Care,C03,Adult Social Services & Housing,CULVERHAY NURSING HOME,06/06/11,650
Bath & North East Somerset Council,21091564,LM6,Nursing Care,C03,Adult Social Services & Housing,CULVERHAY NURSING HOME,06/06/11,650
Bath & North East Somerset Council,21091564,LM6,Nursing Care,C03,Adult Social Services & Housing,CULVERHAY NURSING HOME,06/06/11,650
Bath & North East Somerset Council,21091564,LM6,Nursing Care,C03,Adult Social Services & Housing,CULVERHAY NURSING HOME,06/06/11,650
Bath & North East Somerset Council,21091564,LM6,Nursing Care,C03,Adult Social Services & Housing,CULVERHAY NURSING HOME,06/06/11,650
Bath & North East Somerset Council,21091564,LM6,Nursing Care,C03,Adult Social Services & Housing,CULVERHAY NURSING HOME,06/06/11,650
Bath & North East Somerset Council,21091564,LM6,Nursing Care,C03,Adult Social Services & Housing,CULVERHAY NURSING HOME,06/06/11,650
Bath & North East Somerset Council,21091564,LM6,Nursing Care,C03,Adult Social Services & Housing,CULVERHAY NURSING HOME,06/06/11,650
Bath & North East Somerset Council,21091564,LM6,Nursing Care,C03,Adult Social Services & Housing,CULVERHAY NURSING HOME,06/06/11,650
Bath & North East Somerset Council,21091564,LM6,Nursing Care,C03,Adult Social Services & Housing,CULVERHAY NURSING HOME,06/06/11,650
Bath & North East Somerset Council,21091564,LM6,Nursing Care,C03,Adult Social Services & Housing,CULVERHAY NURSING HOME,06/06/11,650
Bath & North East Somerset Council,21091564,LM6,Nursing Care,C03,Adult Social Services & Housing,CULVERHAY NURSING HOME,06/06/11,650
Bath & North East Somerset Council,21091564,LM6,Nursing Care,C03,Adult Social Services & Housing,CULVERHAY NURSING HOME,06/06/11,650
Bath & North East Somerset Council,21091564,LM6,Nursing Care,C03,Adult Social Services & Housing,CULVERHAY NURSING HOME,06/06/11,650
Bath & North East Somerset Council,21091564,LM6,Nursing Care,C03,Adult Social Services & Housing,CULVERHAY NURSING HOME,06/06/11,650
Bath & North East Somerset Council,21091564,LM6,Nursing Care,C03,Adult Social Services & Housing,CULVERHAY NURSING HOME,06/06/11,650
Bath & North East Somerset Council,21091564,LM6,Nursing Care,C03,Adult Social Services & Housing,CULVERHAY NURSING HOME,06/06/11,650
Bath & North East Somerset Council,21091573,LM6,Nursing Care,C03,Adult Social Services & Housing,SOUTHERN CROSS (REDACTED),06/06/11,650
Bath & North East Somerset Council,21091573,LM6,Nursing Care,C03,Adult Social Services & Housing,SOUTHERN CROSS (REDACTED),06/06/11,650
Bath & North East Somerset Council,21091565,LM6,Nursing Care,C03,Adult Social Services & Housing,OAKFIELD,06/06/11,650
Bath & North East Somerset Council,21091565,LM6,Nursing Care,C03,Adult Social Services & Housing,OAKFIELD,06/06/11,650
Bath & North East Somerset Council,21091566,LM6,Nursing Care,C03,Adult Social Services & Housing,BARCHESTER HEALTHCARE HOMES LTD,06/06/11,650
Bath & North East Somerset Council,21091566,LM6,Nursing Care,C03,Adult Social Services & Housing,BARCHESTER HEALTHCARE HOMES LTD,06/06/11,650
Bath & North East Somerset Council,21091566,LM6,Nursing Care,C03,Adult Social Services & Housing,BARCHESTER HEALTHCARE HOMES LTD,06/06/11,650
Bath & North East Somerset Council,21091566,LM6,Nursing Care,C03,Adult Social Services & Housing,BARCHESTER HEALTHCARE HOMES LTD,06/06/11,650
Bath & North East Somerset Council,21091566,LM6,Nursing Care,C03,Adult Social Services & Housing,BARCHESTER HEALTHCARE HOMES LTD,06/06/11,650
Bath & North East Somerset Council,21091566,LM6,Nursing Care,C03,Adult Social Services & Housing,BARCHESTER HEALTHCARE HOMES LTD,06/06/11,650
Bath & North East Somerset Council,21091566,LM6,Nursing Care,C03,Adult Social Services & Housing,BARCHESTER HEALTHCARE HOMES LTD,06/06/11,650
Bath & North East Somerset Council,21091566,LM6,Nursing Care,C03,Adult Social Services & Housing,BARCHESTER HEALTHCARE HOMES LTD,06/06/11,650
Bath & North East Somerset Council,21091567,LM6,Nursing Care,C03,Adult Social Services & Housing,LARKHALL SPRINGS NURSING HOME,06/06/11,650
Bath & North East Somerset Council,21091567,LM6,Nursing Care,C03,Adult Social Services & Housing,LARKHALL SPRINGS NURSING HOME,06/06/11,650
Bath & North East Somerset Council,21091567,LM6,Nursing Care,C03,Adult Social Services & Housing,LARKHALL SPRINGS NURSING HOME,06/06/11,650
Bath & North East Somerset Council,21091567,LM6,Nursing Care,C03,Adult Social Services & Housing,LARKHALL SPRINGS NURSING HOME,06/06/11,650
Bath & North East Somerset Council,21091588,LM6,Nursing Care,C03,Adult Social Services & Housing,BARKER CHEMICALS LTD T/A ST TERESA'S NH,06/06/11,650
Bath & North East Somerset Council,21091588,LM6,Nursing Care,C03,Adult Social Services & Housing,BARKER CHEMICALS LTD T/A ST TERESA'S NH,06/06/11,650
Bath & North East Somerset Council,21091588,LM6,Nursing Care,C03,Adult Social Services & Housing,BARKER CHEMICALS LTD T/A ST TERESA'S NH,06/06/11,650
Bath & North East Somerset Council,21091588,LM6,Nursing Care,C03,Adult Social Services & Housing,BARKER CHEMICALS LTD T/A ST TERESA'S NH,06/06/11,650
Bath & North East Somerset Council,21091588,LM6,Nursing Care,C03,Adult Social Services & Housing,BARKER CHEMICALS LTD T/A ST TERESA'S NH,06/06/11,650
Bath & North East Somerset Council,21091588,LM6,Nursing Care,C03,Adult Social Services & Housing,BARKER CHEMICALS LTD T/A ST TERESA'S NH,06/06/11,650
Bath & North East Somerset Council,21091588,LM6,Nursing Care,C03,Adult Social Services & Housing,BARKER CHEMICALS LTD T/A ST TERESA'S NH,06/06/11,650
Bath & North East Somerset Council,21091588,LM6,Nursing Care,C03,Adult Social Services & Housing,BARKER CHEMICALS LTD T/A ST TERESA'S NH,06/06/11,650
Bath & North East Somerset Council,21091588,LM6,Nursing Care,C03,Adult Social Services & Housing,BARKER CHEMICALS LTD T/A ST TERESA'S NH,06/06/11,650
Bath & North East Somerset Council,21091588,LM6,Nursing Care,C03,Adult Social Services & Housing,BARKER CHEMICALS LTD T/A ST TERESA'S NH,06/06/11,650
Bath & North East Somerset Council,21091588,LM6,Nursing Care,C03,Adult Social Services & Housing,BARKER CHEMICALS LTD T/A ST TERESA'S NH,06/06/11,650
Bath & North East Somerset Council,21091588,LM6,Nursing Care,C03,Adult Social Services & Housing,BARKER CHEMICALS LTD T/A ST TERESA'S NH,06/06/11,650
Bath & North East Somerset Council,21091588,LM6,Nursing Care,C03,Adult Social Services & Housing,BARKER CHEMICALS LTD T/A ST TERESA'S NH,06/06/11,650
Bath & North East Somerset Council,21091588,LM6,Nursing Care,C03,Adult Social Services & Housing,BARKER CHEMICALS LTD T/A ST TERESA'S NH,06/06/11,650
Bath & North East Somerset Council,21091588,LM6,Nursing Care,C03,Adult Social Services & Housing,BARKER CHEMICALS LTD T/A ST TERESA'S NH,06/06/11,650
Bath & North East Somerset Council,21091588,LM6,Nursing Care,C03,Adult Social Services & Housing,BARKER CHEMICALS LTD T/A ST TERESA'S NH,06/06/11,650
Bath & North East Somerset Council,21091588,LM6,Nursing Care,C03,Adult Social Services & Housing,BARKER CHEMICALS LTD T/A ST TERESA'S NH,06/06/11,650
Bath & North East Somerset Council,21091588,LM6,Nursing Care,C03,Adult Social Services & Housing,BARKER CHEMICALS LTD T/A ST TERESA'S NH,06/06/11,650
Bath & North East Somerset Council,21091594,LM6,Nursing Care,C03,Adult Social Services & Housing,CEDAR CARE HOMES LTD,06/06/11,650
Bath & North East Somerset Council,21091594,LM6,Nursing Care,C03,Adult Social Services & Housing,CEDAR CARE HOMES LTD,06/06/11,650
Bath & North East Somerset Council,21091594,LM6,Nursing Care,C03,Adult Social Services & Housing,CEDAR CARE HOMES LTD,06/06/11,650
Bath & North East Somerset Council,21091594,LM6,Nursing Care,C03,Adult Social Services & Housing,CEDAR CARE HOMES LTD,06/06/11,650
Bath & North East Somerset Council,21091594,LM6,Nursing Care,C03,Adult Social Services & Housing,CEDAR CARE HOMES LTD,06/06/11,650
Bath & North East Somerset Council,21091594,LM6,Nursing Care,C03,Adult Social Services & Housing,CEDAR CARE HOMES LTD,06/06/11,650
Bath & North East Somerset Council,21091594,LM6,Nursing Care,C03,Adult Social Services & Housing,CEDAR CARE HOMES LTD,06/06/11,650
Bath & North East Somerset Council,21091594,LM6,Nursing Care,C03,Adult Social Services & Housing,CEDAR CARE HOMES LTD,06/06/11,650
Bath & North East Somerset Council,21091594,LM6,Nursing Care,C03,Adult Social Services & Housing,CEDAR CARE HOMES LTD,06/06/11,650
Bath & North East Somerset Council,21091594,LM6,Nursing Care,C03,Adult Social Services & Housing,CEDAR CARE HOMES LTD,06/06/11,650
Bath & North East Somerset Council,21091594,LM6,Nursing Care,C03,Adult Social Services & Housing,CEDAR CARE HOMES LTD,06/06/11,650
Bath & North East Somerset Council,21091594,LM6,Nursing Care,C03,Adult Social Services & Housing,CEDAR CARE HOMES LTD,06/06/11,650
Bath & North East Somerset Council,21091594,LM6,Nursing Care,C03,Adult Social Services & Housing,CEDAR CARE HOMES LTD,06/06/11,650
Bath & North East Somerset Council,21091594,LM6,Nursing Care,C03,Adult Social Services & Housing,CEDAR CARE HOMES LTD,06/06/11,650
Bath & North East Somerset Council,21091594,LM6,Nursing Care,C03,Adult Social Services & Housing,CEDAR CARE HOMES LTD,06/06/11,650
Bath & North East Somerset Council,21091594,LM6,Nursing Care,C03,Adult Social Services & Housing,CEDAR CARE HOMES LTD,06/06/11,650
Bath & North East Somerset Council,21091594,LM6,Nursing Care,C03,Adult Social Services & Housing,CEDAR CARE HOMES LTD,06/06/11,650
Bath & North East Somerset Council,21091594,LM6,Nursing Care,C03,Adult Social Services & Housing,CEDAR CARE HOMES LTD,06/06/11,650
Bath & North East Somerset Council,21091594,LM6,Nursing Care,C03,Adult Social Services & Housing,CEDAR CARE HOMES LTD,06/06/11,650
Bath & North East Somerset Council,21091594,LM6,Nursing Care,C03,Adult Social Services & Housing,CEDAR CARE HOMES LTD,06/06/11,650
Bath & North East Somerset Council,21091594,LM6,Nursing Care,C03,Adult Social Services & Housing,CEDAR CARE HOMES LTD,06/06/11,650
Bath & North East Somerset Council,21091599,LM6,Nursing Care,C03,Adult Social Services & Housing,SPRINGFIELD BATH LTD,06/06/11,650
Bath & North East Somerset Council,21091599,LM6,Nursing Care,C03,Adult Social Services & Housing,SPRINGFIELD BATH LTD,06/06/11,650
Bath & North East Somerset Council,21091574,LM6,Nursing Care,C03,Adult Social Services & Housing,SOUTHERN CROSS (REDACTED),06/06/11,650
Bath & North East Somerset Council,21091574,LM6,Nursing Care,C03,Adult Social Services & Housing,SOUTHERN CROSS (REDACTED),06/06/11,650
Bath & North East Somerset Council,21091581,LM6,Nursing Care,C03,Adult Social Services & Housing,ROSEVILLE CARE HOMES MELKSHAM,06/06/11,665
Bath & North East Somerset Council,21091581,LM6,Nursing Care,C03,Adult Social Services & Housing,ROSEVILLE CARE HOMES MELKSHAM,06/06/11,665
Bath & North East Somerset Council,21091339,LL8,Individualised Budget,C03,Adult Social Services & Housing,REDACTED,06/06/11,667.25
Bath & North East Somerset Council,21091339,LL8,Individualised Budget,C03,Adult Social Services & Housing,REDACTED,06/06/11,667.25
Bath & North East Somerset Council,10612288,LA7,Purchases for Resale,C06,Service Delivery,B S MOWERS LTD,06/06/11,670
Bath & North East Somerset Council,21091587,LM6,Nursing Care,C03,Adult Social Services & Housing,T C CAREHOME LTD,06/06/11,675
Bath & North East Somerset Council,21091587,LM6,Nursing Care,C03,Adult Social Services & Housing,T C CAREHOME LTD,06/06/11,675
Bath & North East Somerset Council,21091566,LM6,Nursing Care,C03,Adult Social Services & Housing,BARCHESTER HEALTHCARE HOMES LTD,06/06/11,675.61
Bath & North East Somerset Council,21091566,LM6,Nursing Care,C03,Adult Social Services & Housing,BARCHESTER HEALTHCARE HOMES LTD,06/06/11,675.61
Bath & North East Somerset Council,10614101,LJ4,Contracts,C06,Service Delivery,MARIAN CALINOIU,06/06/11,684
Bath & North East Somerset Council,21091564,LM6,Nursing Care,C03,Adult Social Services & Housing,CULVERHAY NURSING HOME,06/06/11,700
Bath & North East Somerset Council,21091564,LM6,Nursing Care,C03,Adult Social Services & Housing,CULVERHAY NURSING HOME,06/06/11,700
Bath & North East Somerset Council,21091564,LM6,Nursing Care,C03,Adult Social Services & Housing,CULVERHAY NURSING HOME,06/06/11,700
Bath & North East Somerset Council,21091564,LM6,Nursing Care,C03,Adult Social Services & Housing,CULVERHAY NURSING HOME,06/06/11,700
Bath & North East Somerset Council,21091564,LM6,Nursing Care,C03,Adult Social Services & Housing,CULVERHAY NURSING HOME,06/06/11,700
Bath & North East Somerset Council,21091564,LM6,Nursing Care,C03,Adult Social Services & Housing,CULVERHAY NURSING HOME,06/06/11,700
Bath & North East Somerset Council,21091564,LM6,Nursing Care,C03,Adult Social Services & Housing,CULVERHAY NURSING HOME,06/06/11,700
Bath & North East Somerset Council,21091564,LM6,Nursing Care,C03,Adult Social Services & Housing,CULVERHAY NURSING HOME,06/06/11,700
Bath & North East Somerset Council,21091588,LM6,Nursing Care,C03,Adult Social Services & Housing,BARKER CHEMICALS LTD T/A ST TERESA'S NH,06/06/11,700
Bath & North East Somerset Council,21091588,LM6,Nursing Care,C03,Adult Social Services & Housing,BARKER CHEMICALS LTD T/A ST TERESA'S NH,06/06/11,700
Bath & North East Somerset Council,21091261,LM8,Home Care,C03,Adult Social Services & Housing,SAFE & SOUND HOMECARE SERVICES,06/06/11,707
Bath & North East Somerset Council,21091261,LM8,Home Care,C03,Adult Social Services & Housing,SAFE & SOUND HOMECARE SERVICES,06/06/11,707
Bath & North East Somerset Council,21091555,LM6,Nursing Care,C03,Adult Social Services & Housing,CHOLWELL HOUSE NURSING HOME,06/06/11,711.9
Bath & North East Somerset Council,21091555,LM6,Nursing Care,C03,Adult Social Services & Housing,CHOLWELL HOUSE NURSING HOME,06/06/11,711.9
Bath & North East Somerset Council,21091555,LM6,Nursing Care,C03,Adult Social Services & Housing,CHOLWELL HOUSE NURSING HOME,06/06/11,711.9
Bath & North East Somerset Council,21091555,LM6,Nursing Care,C03,Adult Social Services & Housing,CHOLWELL HOUSE NURSING HOME,06/06/11,711.9
Bath & North East Somerset Council,21091559,LM6,Nursing Care,C03,Adult Social Services & Housing,WESTCROFT NURSING HOME,06/06/11,711.9
Bath & North East Somerset Council,21091559,LM6,Nursing Care,C03,Adult Social Services & Housing,WESTCROFT NURSING HOME,06/06/11,711.9
Bath & North East Somerset Council,21091560,LM6,Nursing Care,C03,Adult Social Services & Housing,CRANHILL NURSING HOME,06/06/11,720
Bath & North East Somerset Council,21091560,LM6,Nursing Care,C03,Adult Social Services & Housing,CRANHILL NURSING HOME,06/06/11,720
Bath & North East Somerset Council,21091555,LM6,Nursing Care,C03,Adult Social Services & Housing,CHOLWELL HOUSE NURSING HOME,06/06/11,725
Bath & North East Somerset Council,21091555,LM6,Nursing Care,C03,Adult Social Services & Housing,CHOLWELL HOUSE NURSING HOME,06/06/11,725
Bath & North East Somerset Council,21091555,LM6,Nursing Care,C03,Adult Social Services & Housing,CHOLWELL HOUSE NURSING HOME,06/06/11,725
Bath & North East Somerset Council,21091555,LM6,Nursing Care,C03,Adult Social Services & Housing,CHOLWELL HOUSE NURSING HOME,06/06/11,725
Bath & North East Somerset Council,21091561,LM6,Nursing Care,C03,Adult Social Services & Housing,CEDAR PARK NURSING HOME,06/06/11,725
Bath & North East Somerset Council,21091561,LM6,Nursing Care,C03,Adult Social Services & Housing,CEDAR PARK NURSING HOME,06/06/11,725
Bath & North East Somerset Council,21091564,LM6,Nursing Care,C03,Adult Social Services & Housing,CULVERHAY NURSING HOME,06/06/11,725
Bath & North East Somerset Council,21091564,LM6,Nursing Care,C03,Adult Social Services & Housing,CULVERHAY NURSING HOME,06/06/11,725
Bath & North East Somerset Council,21091566,LM6,Nursing Care,C03,Adult Social Services & Housing,BARCHESTER HEALTHCARE HOMES LTD,06/06/11,725
Bath & North East Somerset Council,21091566,LM6,Nursing Care,C03,Adult Social Services & Housing,BARCHESTER HEALTHCARE HOMES LTD,06/06/11,725
Bath & North East Somerset Council,21091588,LM6,Nursing Care,C03,Adult Social Services & Housing,BARKER CHEMICALS LTD T/A ST TERESA'S NH,06/06/11,725
Bath & North East Somerset Council,21091588,LM6,Nursing Care,C03,Adult Social Services & Housing,BARKER CHEMICALS LTD T/A ST TERESA'S NH,06/06/11,725
Bath & North East Somerset Council,21091283,LL8,Individualised Budget,C03,Adult Social Services & Housing,REDACTED,06/06/11,739.96
Bath & North East Somerset Council,21091283,LL8,Individualised Budget,C03,Adult Social Services & Housing,REDACTED,06/06/11,739.96
Bath & North East Somerset Council,10612348,LA3,Equipment Maintenance,C06,Service Delivery,PARKEON LIMITED,06/06/11,742
Bath & North East Somerset Council,21091593,LM6,Nursing Care,C03,Adult Social Services & Housing,MILLENNIUM CARE HOMES LTD,06/06/11,745
Bath & North East Somerset Council,21091593,LM6,Nursing Care,C03,Adult Social Services & Housing,MILLENNIUM CARE HOMES LTD,06/06/11,745
Bath & North East Somerset Council,21091597,LM6,Nursing Care,C03,Adult Social Services & Housing,BUPA CARE SERVICES BACS RECEIPTS,06/06/11,750
Bath & North East Somerset Council,21091597,LM6,Nursing Care,C03,Adult Social Services & Housing,BUPA CARE SERVICES BACS RECEIPTS,06/06/11,750
Bath & North East Somerset Council,21091557,LM6,Nursing Care,C03,Adult Social Services & Housing,BRIDGE CARE LTD,06/06/11,750
Bath & North East Somerset Council,21091557,LM6,Nursing Care,C03,Adult Social Services & Housing,BRIDGE CARE LTD,06/06/11,750
Bath & North East Somerset Council,21091558,LM6,Nursing Care,C03,Adult Social Services & Housing,STANTON COURT,06/06/11,750
Bath & North East Somerset Council,21091558,LM6,Nursing Care,C03,Adult Social Services & Housing,STANTON COURT,06/06/11,750
Bath & North East Somerset Council,21091563,LM6,Nursing Care,C03,Adult Social Services & Housing,BYBROOK HOUSE,06/06/11,750
Bath & North East Somerset Council,21091563,LM6,Nursing Care,C03,Adult Social Services & Housing,BYBROOK HOUSE,06/06/11,750
Bath & North East Somerset Council,21091563,LM6,Nursing Care,C03,Adult Social Services & Housing,BYBROOK HOUSE,06/06/11,750
Bath & North East Somerset Council,21091563,LM6,Nursing Care,C03,Adult Social Services & Housing,BYBROOK HOUSE,06/06/11,750
Bath & North East Somerset Council,21091564,LM6,Nursing Care,C03,Adult Social Services & Housing,CULVERHAY NURSING HOME,06/06/11,750
Bath & North East Somerset Council,21091564,LM6,Nursing Care,C03,Adult Social Services & Housing,CULVERHAY NURSING HOME,06/06/11,750
Bath & North East Somerset Council,21091564,LM6,Nursing Care,C03,Adult Social Services & Housing,CULVERHAY NURSING HOME,06/06/11,750
Bath & North East Somerset Council,21091564,LM6,Nursing Care,C03,Adult Social Services & Housing,CULVERHAY NURSING HOME,06/06/11,750
Bath & North East Somerset Council,21091564,LM6,Nursing Care,C03,Adult Social Services & Housing,CULVERHAY NURSING HOME,06/06/11,750
Bath & North East Somerset Council,21091564,LM6,Nursing Care,C03,Adult Social Services & Housing,CULVERHAY NURSING HOME,06/06/11,750
Bath & North East Somerset Council,21091564,LM6,Nursing Care,C03,Adult Social Services & Housing,CULVERHAY NURSING HOME,06/06/11,750
Bath & North East Somerset Council,21091564,LM6,Nursing Care,C03,Adult Social Services & Housing,CULVERHAY NURSING HOME,06/06/11,750
Bath & North East Somerset Council,21091564,LM6,Nursing Care,C03,Adult Social Services & Housing,CULVERHAY NURSING HOME,06/06/11,750
Bath & North East Somerset Council,21091564,LM6,Nursing Care,C03,Adult Social Services & Housing,CULVERHAY NURSING HOME,06/06/11,750
Bath & North East Somerset Council,21091564,LM6,Nursing Care,C03,Adult Social Services & Housing,CULVERHAY NURSING HOME,06/06/11,750
Bath & North East Somerset Council,21091564,LM6,Nursing Care,C03,Adult Social Services & Housing,CULVERHAY NURSING HOME,06/06/11,750
Bath & North East Somerset Council,21091566,LM6,Nursing Care,C03,Adult Social Services & Housing,BARCHESTER HEALTHCARE HOMES LTD,06/06/11,750
Bath & North East Somerset Council,21091566,LM6,Nursing Care,C03,Adult Social Services & Housing,BARCHESTER HEALTHCARE HOMES LTD,06/06/11,750
Bath & North East Somerset Council,21091594,LM6,Nursing Care,C03,Adult Social Services & Housing,CEDAR CARE HOMES LTD,06/06/11,750
Bath & North East Somerset Council,21091594,LM6,Nursing Care,C03,Adult Social Services & Housing,CEDAR CARE HOMES LTD,06/06/11,750
Bath & North East Somerset Council,21091592,LM6,Nursing Care,C03,Adult Social Services & Housing,CARE FIRST CARE HOMES LTD,06/06/11,754.61
Bath & North East Somerset Council,21091592,LM6,Nursing Care,C03,Adult Social Services & Housing,CARE FIRST CARE HOMES LTD,06/06/11,754.61
Bath & North East Somerset Council,10614088,LJ4,Contracts,C06,Service Delivery,M M PALMER,06/06/11,760
Bath & North East Somerset Council,21091580,LM6,Nursing Care,C03,Adult Social Services & Housing,EXTRAFRIEND LTD,06/06/11,762.75
Bath & North East Somerset Council,21091580,LM6,Nursing Care,C03,Adult Social Services & Housing,EXTRAFRIEND LTD,06/06/11,762.75
Bath & North East Somerset Council,21091566,LM6,Nursing Care,C03,Adult Social Services & Housing,BARCHESTER HEALTHCARE HOMES LTD,06/06/11,762.75
Bath & North East Somerset Council,21091566,LM6,Nursing Care,C03,Adult Social Services & Housing,BARCHESTER HEALTHCARE HOMES LTD,06/06/11,762.75
Bath & North East Somerset Council,21091566,LM6,Nursing Care,C03,Adult Social Services & Housing,BARCHESTER HEALTHCARE HOMES LTD,06/06/11,762.75
Bath & North East Somerset Council,21091566,LM6,Nursing Care,C03,Adult Social Services & Housing,BARCHESTER HEALTHCARE HOMES LTD,06/06/11,762.75
Bath & North East Somerset Council,21091566,LM6,Nursing Care,C03,Adult Social Services & Housing,BARCHESTER HEALTHCARE HOMES LTD,06/06/11,762.75
Bath & North East Somerset Council,21091566,LM6,Nursing Care,C03,Adult Social Services & Housing,BARCHESTER HEALTHCARE HOMES LTD,06/06/11,762.75
Bath & North East Somerset Council,10614111,KB1,Hire of Vehicles,C06,Service Delivery,PHOENIX VEHICLE HIRE LTD,06/06/11,775
Bath & North East Somerset Council,21091596,LM6,Nursing Care,C03,Adult Social Services & Housing,REDACTED,06/06/11,787
Bath & North East Somerset Council,21091596,LM6,Nursing Care,C03,Adult Social Services & Housing,REDACTED,06/06/11,787
Bath & North East Somerset Council,21091566,LM6,Nursing Care,C03,Adult Social Services & Housing,BARCHESTER HEALTHCARE HOMES LTD,06/06/11,798.35
Bath & North East Somerset Council,21091566,LM6,Nursing Care,C03,Adult Social Services & Housing,BARCHESTER HEALTHCARE HOMES LTD,06/06/11,798.35
Bath & North East Somerset Council,21091564,LM6,Nursing Care,C03,Adult Social Services & Housing,CULVERHAY NURSING HOME,06/06/11,800
Bath & North East Somerset Council,21091564,LM6,Nursing Care,C03,Adult Social Services & Housing,CULVERHAY NURSING HOME,06/06/11,800
Bath & North East Somerset Council,21091588,LM6,Nursing Care,C03,Adult Social Services & Housing,BARKER CHEMICALS LTD T/A ST TERESA'S NH,06/06/11,800
Bath & North East Somerset Council,21091588,LM6,Nursing Care,C03,Adult Social Services & Housing,BARKER CHEMICALS LTD T/A ST TERESA'S NH,06/06/11,800
Bath & North East Somerset Council,21091594,LM6,Nursing Care,C03,Adult Social Services & Housing,CEDAR CARE HOMES LTD,06/06/11,800
Bath & North East Somerset Council,21091594,LM6,Nursing Care,C03,Adult Social Services & Housing,CEDAR CARE HOMES LTD,06/06/11,800
Bath & North East Somerset Council,21091594,LM6,Nursing Care,C03,Adult Social Services & Housing,CEDAR CARE HOMES LTD,06/06/11,800
Bath & North East Somerset Council,21091594,LM6,Nursing Care,C03,Adult Social Services & Housing,CEDAR CARE HOMES LTD,06/06/11,800
Bath & North East Somerset Council,10614053,HA4,Responsive Maintenance PCB,C02,Resources,AVON ALARMS LIMITED,06/06/11,822
Bath & North East Somerset Council,21091558,LM6,Nursing Care,C03,Adult Social Services & Housing,STANTON COURT,06/06/11,836.8
Bath & North East Somerset Council,21091558,LM6,Nursing Care,C03,Adult Social Services & Housing,STANTON COURT,06/06/11,836.8
Bath & North East Somerset Council,21091566,LM6,Nursing Care,C03,Adult Social Services & Housing,BARCHESTER HEALTHCARE HOMES LTD,06/06/11,839.03
Bath & North East Somerset Council,21091566,LM6,Nursing Care,C03,Adult Social Services & Housing,BARCHESTER HEALTHCARE HOMES LTD,06/06/11,839.03
Bath & North East Somerset Council,21091558,LM6,Nursing Care,C03,Adult Social Services & Housing,STANTON COURT,06/06/11,843.09
Bath & North East Somerset Council,21091558,LM6,Nursing Care,C03,Adult Social Services & Housing,STANTON COURT,06/06/11,843.09
Bath & North East Somerset Council,21091592,LM6,Nursing Care,C03,Adult Social Services & Housing,CARE FIRST CARE HOMES LTD,06/06/11,894.96
Bath & North East Somerset Council,21091592,LM6,Nursing Care,C03,Adult Social Services & Housing,CARE FIRST CARE HOMES LTD,06/06/11,894.96
Bath & North East Somerset Council,21091592,LM6,Nursing Care,C03,Adult Social Services & Housing,CARE FIRST CARE HOMES LTD,06/06/11,894.96
Bath & North East Somerset Council,21091592,LM6,Nursing Care,C03,Adult Social Services & Housing,CARE FIRST CARE HOMES LTD,06/06/11,894.96
Bath & North East Somerset Council,21091592,LM6,Nursing Care,C03,Adult Social Services & Housing,CARE FIRST CARE HOMES LTD,06/06/11,894.96
Bath & North East Somerset Council,21091592,LM6,Nursing Care,C03,Adult Social Services & Housing,CARE FIRST CARE HOMES LTD,06/06/11,894.96
Bath & North East Somerset Council,21091592,LM6,Nursing Care,C03,Adult Social Services & Housing,CARE FIRST CARE HOMES LTD,06/06/11,894.96
Bath & North East Somerset Council,21091592,LM6,Nursing Care,C03,Adult Social Services & Housing,CARE FIRST CARE HOMES LTD,06/06/11,894.96
Bath & North East Somerset Council,21091566,LM6,Nursing Care,C03,Adult Social Services & Housing,BARCHESTER HEALTHCARE HOMES LTD,06/06/11,912
Bath & North East Somerset Council,21091566,LM6,Nursing Care,C03,Adult Social Services & Housing,BARCHESTER HEALTHCARE HOMES LTD,06/06/11,912
Bath & North East Somerset Council,21091578,LM6,Nursing Care,C03,Adult Social Services & Housing,BARCHESTER HEALTHCARE,06/06/11,915.3
Bath & North East Somerset Council,21091578,LM6,Nursing Care,C03,Adult Social Services & Housing,BARCHESTER HEALTHCARE,06/06/11,915.3
Bath & North East Somerset Council,21091577,LM6,Nursing Care,C03,Adult Social Services & Housing,EUROPEAN CARE SW LTD - REDACTED AC,06/06/11,937.17
Bath & North East Somerset Council,21091577,LM6,Nursing Care,C03,Adult Social Services & Housing,EUROPEAN CARE SW LTD - REDACTED AC,06/06/11,937.17
Bath & North East Somerset Council,21091579,LM6,Nursing Care,C03,Adult Social Services & Housing,LEONARD CHESHIRE FOUNDATION,06/06/11,955.21
Bath & North East Somerset Council,21091579,LM6,Nursing Care,C03,Adult Social Services & Housing,LEONARD CHESHIRE FOUNDATION,06/06/11,955.21
Bath & North East Somerset Council,21091590,LM6,Nursing Care,C03,Adult Social Services & Housing,WESTMINSTER HEALTHCARE LTD,06/06/11,966.15
Bath & North East Somerset Council,21091590,LM6,Nursing Care,C03,Adult Social Services & Housing,WESTMINSTER HEALTHCARE LTD,06/06/11,966.15
Bath & North East Somerset Council,21091311,LL8,Individualised Budget,C03,Adult Social Services & Housing,REDACTED,06/06/11,992.07
Bath & North East Somerset Council,21091311,LL8,Individualised Budget,C03,Adult Social Services & Housing,REDACTED,06/06/11,992.07
Bath & North East Somerset Council,10614090,LJ4,Contracts,C06,Service Delivery,HIGHWAY TAXIS & TRAVEL,06/06/11,1005.84
Bath & North East Somerset Council,21091579,LM6,Nursing Care,C03,Adult Social Services & Housing,LEONARD CHESHIRE FOUNDATION,06/06/11,1013.81
Bath & North East Somerset Council,21091579,LM6,Nursing Care,C03,Adult Social Services & Housing,LEONARD CHESHIRE FOUNDATION,06/06/11,1013.81
Bath & North East Somerset Council,21091596,LM6,Nursing Care,C03,Adult Social Services & Housing,REDACTED,06/06/11,1015
Bath & North East Somerset Council,21091596,LM6,Nursing Care,C03,Adult Social Services & Housing,REDACTED,06/06/11,1015
Bath & North East Somerset Council,10611932,KA1,Repairs & Maintenance,C03,Adult Social Services & Housing,SMITCARE LTD,06/06/11,1060
Bath & North East Somerset Council,21091582,LM6,Nursing Care,C03,Adult Social Services & Housing,DORSET LODGE LTD,06/06/11,1060.81
Bath & North East Somerset Council,21091582,LM6,Nursing Care,C03,Adult Social Services & Housing,DORSET LODGE LTD,06/06/11,1060.81
Bath & North East Somerset Council,10614193,LJ4,Contracts,C06,Service Delivery,SOMERSET TRANSPORT SERVICES LTD,06/06/11,1084
Bath & North East Somerset Council,21091579,LM6,Nursing Care,C03,Adult Social Services & Housing,LEONARD CHESHIRE FOUNDATION,06/06/11,1086
Bath & North East Somerset Council,21091579,LM6,Nursing Care,C03,Adult Social Services & Housing,LEONARD CHESHIRE FOUNDATION,06/06/11,1086
Bath & North East Somerset Council,21091601,LM6,Nursing Care,C03,Adult Social Services & Housing,MIRAMAR (OPERATIONS) LTD,06/06/11,1087.5
Bath & North East Somerset Council,21091601,LM6,Nursing Care,C03,Adult Social Services & Housing,MIRAMAR (OPERATIONS) LTD,06/06/11,1087.5
Bath & North East Somerset Council,10611897,LA7,Purchases for Resale,C06,Service Delivery,GRANTHAM BOOK SERVICES LTD,06/06/11,1094.5
Bath & North East Somerset Council,21091454,LL8,Individualised Budget,C03,Adult Social Services & Housing,REDACTED,06/06/11,1100
Bath & North East Somerset Council,10613506,LA5,Materials,C06,Service Delivery,ECOSOLVE,06/06/11,1150
Bath & North East Somerset Council,21091579,LM6,Nursing Care,C03,Adult Social Services & Housing,LEONARD CHESHIRE FOUNDATION,06/06/11,1176.5
Bath & North East Somerset Council,21091579,LM6,Nursing Care,C03,Adult Social Services & Housing,LEONARD CHESHIRE FOUNDATION,06/06/11,1176.5
Bath & North East Somerset Council,21091579,LM6,Nursing Care,C03,Adult Social Services & Housing,LEONARD CHESHIRE FOUNDATION,06/06/11,1194.83
Bath & North East Somerset Council,21091579,LM6,Nursing Care,C03,Adult Social Services & Housing,LEONARD CHESHIRE FOUNDATION,06/06/11,1194.83
Bath & North East Somerset Council,10611428,HA4,Responsive Maintenance PCB,C02,Resources,N K S CONTRACTS LTD,06/06/11,1207
Bath & North East Somerset Council,10611949,LA7,Purchases for Resale,C06,Service Delivery,TYMEAGAIN LTD,06/06/11,1209.1
Bath & North East Somerset Council,21091273,LL8,Individualised Budget,C03,Adult Social Services & Housing,REDACTED,06/06/11,1223.25
Bath & North East Somerset Council,21091273,LL8,Individualised Budget,C03,Adult Social Services & Housing,REDACTED,06/06/11,1223.25
Bath & North East Somerset Council,10610259,LJ1,Consultants Fees,C05,Children's Services,G4S ASSESSMENT SERVICES (UK) LTD,06/06/11,1245
Bath & North East Somerset Council,21091575,LM6,Nursing Care,C03,Adult Social Services & Housing,REDACTED,06/06/11,1277.5
Bath & North East Somerset Council,21091575,LM6,Nursing Care,C03,Adult Social Services & Housing,REDACTED,06/06/11,1277.5
Bath & North East Somerset Council,21091482,LL4,Direct Payments,C03,Adult Social Services & Housing,REDACTED,06/06/11,1293.48
Bath & North East Somerset Council,21091482,LL4,Direct Payments,C03,Adult Social Services & Housing,REDACTED,06/06/11,1293.48
Bath & North East Somerset Council,21090381,LM8,Home Care,C03,Adult Social Services & Housing,ACTIVE ASSISTANCE,06/06/11,1300
Bath & North East Somerset Council,21091579,LM6,Nursing Care,C03,Adult Social Services & Housing,LEONARD CHESHIRE FOUNDATION,06/06/11,1321.05
Bath & North East Somerset Council,21091579,LM6,Nursing Care,C03,Adult Social Services & Housing,LEONARD CHESHIRE FOUNDATION,06/06/11,1321.05
Bath & North East Somerset Council,21091377,LL8,Individualised Budget,C03,Adult Social Services & Housing,REDACTED,06/06/11,1333.47
Bath & North East Somerset Council,21091377,LL8,Individualised Budget,C03,Adult Social Services & Housing,REDACTED,06/06/11,1333.47
Bath & North East Somerset Council,21091556,LM6,Nursing Care,C03,Adult Social Services & Housing,SHERWOOD LODGE,06/06/11,1361.76
Bath & North East Somerset Council,21091556,LM6,Nursing Care,C03,Adult Social Services & Housing,SHERWOOD LODGE,06/06/11,1361.76
Bath & North East Somerset Council,10614097,LJ4,Contracts,C06,Service Delivery,MR C A HIGGS T/A LIBRA TRAVEL,06/06/11,1388.14
Bath & North East Somerset Council,21091595,LM6,Nursing Care,C03,Adult Social Services & Housing,THE SUSSEX BEACON,06/06/11,1400
Bath & North East Somerset Council,21091595,LM6,Nursing Care,C03,Adult Social Services & Housing,THE SUSSEX BEACON,06/06/11,1400
Bath & North East Somerset Council,21091585,LM6,Nursing Care,C03,Adult Social Services & Housing,GLENSIDE MANOR HEALTHCARE SERVICES LTD,06/06/11,1401.43
Bath & North East Somerset Council,21091585,LM6,Nursing Care,C03,Adult Social Services & Housing,GLENSIDE MANOR HEALTHCARE SERVICES LTD,06/06/11,1401.43
Bath & North East Somerset Council,21091564,LM6,Nursing Care,C03,Adult Social Services & Housing,CULVERHAY NURSING HOME,06/06/11,1409
Bath & North East Somerset Council,21091564,LM6,Nursing Care,C03,Adult Social Services & Housing,CULVERHAY NURSING HOME,06/06/11,1409
Bath & North East Somerset Council,21091421,LL8,Individualised Budget,C03,Adult Social Services & Housing,REDACTED,06/06/11,1472.72
Bath & North East Somerset Council,21091421,LL8,Individualised Budget,C03,Adult Social Services & Housing,REDACTED,06/06/11,1472.72
Bath & North East Somerset Council,21091585,LM6,Nursing Care,C03,Adult Social Services & Housing,GLENSIDE MANOR HEALTHCARE SERVICES LTD,06/06/11,1511.26
Bath & North East Somerset Council,21091585,LM6,Nursing Care,C03,Adult Social Services & Housing,GLENSIDE MANOR HEALTHCARE SERVICES LTD,06/06/11,1511.26
Bath & North East Somerset Council,10614100,LJ4,Contracts,C06,Service Delivery,MR C A HIGGS T/A LIBRA TRAVEL,06/06/11,1520
Bath & North East Somerset Council,21091586,LM6,Nursing Care,C03,Adult Social Services & Housing,GLENSIDE MANOR HEALTHCARE SERVICES LTD,06/06/11,1528.55
Bath & North East Somerset Council,21091586,LM6,Nursing Care,C03,Adult Social Services & Housing,GLENSIDE MANOR HEALTHCARE SERVICES LTD,06/06/11,1528.55
Bath & North East Somerset Council,21091583,LM6,Nursing Care,C03,Adult Social Services & Housing,COMMUNITY OF ST ANTONY & ST ELIAS & REV FR BGPR &,06/06/11,1586.06
Bath & North East Somerset Council,21091583,LM6,Nursing Care,C03,Adult Social Services & Housing,COMMUNITY OF ST ANTONY & ST ELIAS & REV FR BGPR &,06/06/11,1586.06
Bath & North East Somerset Council,21091583,LM6,Nursing Care,C03,Adult Social Services & Housing,COMMUNITY OF ST ANTONY & ST ELIAS & REV FR BGPR &,06/06/11,1586.66
Bath & North East Somerset Council,21091583,LM6,Nursing Care,C03,Adult Social Services & Housing,COMMUNITY OF ST ANTONY & ST ELIAS & REV FR BGPR &,06/06/11,1586.66
Bath & North East Somerset Council,10614098,LJ4,Contracts,C06,Service Delivery,MR C A HIGGS T/A LIBRA TRAVEL,06/06/11,1763.96
Bath & North East Somerset Council,10611931,LA1,Equipment Purchase,C03,Adult Social Services & Housing,KAROMED,06/06/11,1876.5
Bath & North East Somerset Council,21091270,LL8,Individualised Budget,C03,Adult Social Services & Housing,REDACTED,06/06/11,1893.13
Bath & North East Somerset Council,21091270,LL8,Individualised Budget,C03,Adult Social Services & Housing,REDACTED,06/06/11,1893.13
Bath & North East Somerset Council,21091576,LM6,Nursing Care,C03,Adult Social Services & Housing,REDACTED,06/06/11,1947.52
Bath & North East Somerset Council,21091576,LM6,Nursing Care,C03,Adult Social Services & Housing,REDACTED,06/06/11,1947.52
Bath & North East Somerset Council,10612246,LA1,Equipment Purchase,C03,Adult Social Services & Housing,AQUAJOY BATHLIFTS,06/06/11,1968
Bath & North East Somerset Council,21091556,LM6,Nursing Care,C03,Adult Social Services & Housing,SHERWOOD LODGE,06/06/11,2095.02
Bath & North East Somerset Council,21091556,LM6,Nursing Care,C03,Adult Social Services & Housing,SHERWOOD LODGE,06/06/11,2095.02
Bath & North East Somerset Council,10611426,HA4,Responsive Maintenance PCB,C02,Resources,N K S CONTRACTS LTD,06/06/11,2102
Bath & North East Somerset Council,10614096,LJ4,Contracts,C06,Service Delivery,MR C A HIGGS T/A LIBRA TRAVEL,06/06/11,2116.22
Bath & North East Somerset Council,21091598,LM6,Nursing Care,C03,Adult Social Services & Housing,HAVENMERE HEALTHCARE LTD,06/06/11,2269.25
Bath & North East Somerset Council,21091598,LM6,Nursing Care,C03,Adult Social Services & Housing,HAVENMERE HEALTHCARE LTD,06/06/11,2269.25
Bath & North East Somerset Council,10611424,HA4,Responsive Maintenance PCB,C02,Resources,N K S CONTRACTS LTD,06/06/11,2276
Bath & North East Somerset Council,10614156,HP1,Rent Payable,C05,Children's Services,BERKLEY ESTATES LTD NO 1 ACCOUNT,06/06/11,2375
Bath & North East Somerset Council,10614191,LJ4,Contracts,C06,Service Delivery,SOMERSET TRANSPORT SERVICES LTD,06/06/11,2466.32
Bath & North East Somerset Council,10611427,HA4,Responsive Maintenance PCB,C02,Resources,N K S CONTRACTS LTD,06/06/11,2577
Bath & North East Somerset Council,10614105,LJ4,Contracts,C06,Service Delivery,SOMERBUS LTD,06/06/11,2601.67
Bath & North East Somerset Council,10611270,KA3,Fuel,C06,Service Delivery,FORD FUELS LTD,06/06/11,2798
Bath & North East Somerset Council,10612391,HA4,Responsive Maintenance PCB,C02,Resources,K P WILTON & SON LTD,06/06/11,2862
Bath & North East Somerset Council,21091600,LM6,Nursing Care,C03,Adult Social Services & Housing,TRU REHABILITATION UNIT LTD,06/06/11,2870
Bath & North East Somerset Council,21091600,LM6,Nursing Care,C03,Adult Social Services & Housing,TRU REHABILITATION UNIT LTD,06/06/11,2870
Bath & North East Somerset Council,10614099,LJ4,Contracts,C06,Service Delivery,MR C A HIGGS T/A LIBRA TRAVEL,06/06/11,2888
Bath & North East Somerset Council,10614103,LJ4,Contracts,C06,Service Delivery,MR P S MATTHEWS T/A NORAD TAXIS,06/06/11,3135
Bath & North East Somerset Council,10613519,3N7,PCB Misc. Costs,C04,Development & Major Projects,DTZ CONSULTING & RESEARCH,06/06/11,3159.27
Bath & North East Somerset Council,10614103,LJ4,Contracts,C06,Service Delivery,MR P S MATTHEWS T/A NORAD TAXIS,06/06/11,3219.33
Bath & North East Somerset Council,10611900,LA7,Purchases for Resale,C06,Service Delivery,UNEX DESIGNS LTD,06/06/11,3522.75
Bath & North East Somerset Council,10614090,LJ4,Contracts,C06,Service Delivery,HIGHWAY TAXIS & TRAVEL,06/06/11,3885.06
Bath & North East Somerset Council,10614106,LJ4,Contracts,C06,Service Delivery,SOMERBUS LTD,06/06/11,4184.75
Bath & North East Somerset Council,10616898,HN2,Gas,C02,Resources,SOUTHERN ELECTRIC PLC,06/06/11,4298.56
Bath & North East Somerset Council,10614095,LJ4,Contracts,C06,Service Delivery,JASON KING LTD,06/06/11,5407.9
Bath & North East Somerset Council,10614104,LJ4,Contracts,C06,Service Delivery,ROAD RUNNER TAXI BUSES,06/06/11,5470.56
Bath & North East Somerset Council,10611122,3C4,PCB Building Works,C02,Resources,AVON ALARMS LIMITED,06/06/11,6563
Bath & North East Somerset Council,10613308,DB1,Agency Staff,C06,Service Delivery,MOTT MACDONALD LIMITED,06/06/11,6646.11
Bath & North East Somerset Council,10610473,HA3,Planned Maintenance,C06,Service Delivery,SYSCO AV LTD,06/06/11,6766.25
Bath & North East Somerset Council,10611425,HA4,Responsive Maintenance PCB,C02,Resources,N K S CONTRACTS LTD,06/06/11,7161
Bath & North East Somerset Council,10611170,LJ4,Contracts,C06,Service Delivery,MCC - PATROL/BUS,06/06/11,9415.9
Bath & North East Somerset Council,10614192,LJ4,Contracts,C06,Service Delivery,SOMERSET TRANSPORT SERVICES LTD,06/06/11,11147.66
Bath & North East Somerset Council,10614102,LJ4,Contracts,C06,Service Delivery,MINIBUS TRAVEL,06/06/11,13387.24
Bath & North East Somerset Council,10614086,LJ4,Contracts,C06,Service Delivery,CENTURION TRAVEL,06/06/11,17756.18
Bath & North East Somerset Council,10614191,LJ4,Contracts,C06,Service Delivery,SOMERSET TRANSPORT SERVICES LTD,06/06/11,19463.16
Bath & North East Somerset Council,10611516,KB2,Vehicle Leasing,C06,Service Delivery,JCB FINANCE LTD,06/06/11,21928.58
Bath & North East Somerset Council,10613813,LM1,Volunt Homes Placements Top/Up,C05,Children's Services,COTSWOLD CHINE SCHOOL,06/06/11,47533.33
Bath & North East Somerset Council,10614159,3V1,Vehicle Purchase,C06,Service Delivery,LONDONDERRY GARAGE,06/06/11,113060
Bath & North East Somerset Council,10614387,LW1,Rechargeable Works/Expenses,C03,Adult Social Services & Housing,BNES-LEWIS HOUSE IMPREST A/C,07/06/11,5.98
Bath & North East Somerset Council,21090379,LM8,Home Care,C03,Adult Social Services & Housing,ROBERT SAGE LTD T/A PRESTIGE NURSING PAYROLL,07/06/11,42
Bath & North East Somerset Council,21090379,LM8,Home Care,C03,Adult Social Services & Housing,ROBERT SAGE LTD T/A PRESTIGE NURSING PAYROLL,07/06/11,51.34
Bath & North East Somerset Council,21090379,LM8,Home Care,C03,Adult Social Services & Housing,ROBERT SAGE LTD T/A PRESTIGE NURSING PAYROLL,07/06/11,66.52
Bath & North East Somerset Council,10612392,3C4,PCB Building Works,C05,Children's Services,MAYLARCH ENVIRONMENTAL LTD,07/06/11,300
Bath & North East Somerset Council,21090379,LM8,Home Care,C03,Adult Social Services & Housing,ROBERT SAGE LTD T/A PRESTIGE NURSING PAYROLL,07/06/11,418.32
Bath & North East Somerset Council,10612772,LJ1,Consultants Fees,C06,Service Delivery,MISS LISA BUSCH,07/06/11,450
Bath & North East Somerset Council,10611305,HA1,Responsive Maintenance,C06,Service Delivery,AVON ALARMS LIMITED,07/06/11,463
Bath & North East Somerset Council,10611250,3N7,PCB Misc. Costs,C02,Resources,KINNARPS (UK) LTD,07/06/11,499.8
Bath & North East Somerset Council,10612278,LJ1,Consultants Fees,C02,Resources,MENTORING PLUS LTD,07/06/11,500
Bath & North East Somerset Council,10614237,HP3,Room Hire Charges,C05,Children's Services,UBLEY PARISH HALL,07/06/11,562.37
Bath & North East Somerset Council,21091696,LK4,Nursery/Childcare Vouchers,C05,Children's Services,YMCA DAY NURSERY,07/06/11,630.5
Bath & North East Somerset Council,10613510,EA1,Training,C05,Children's Services,EDUCATIONAL SUPPORT 4 SCHOOLS LTD,07/06/11,664
Bath & North East Somerset Council,21091699,LK4,Nursery/Childcare Vouchers,C05,Children's Services,REDACTED,07/06/11,664.31
Bath & North East Somerset Council,10613611,3E4,PCB Furniture/Equipment,C02,Resources,KINNARPS (UK) LTD,07/06/11,715.94
Bath & North East Somerset Council,10614171,HP6,Water Charges,C06,Service Delivery,BWBSL,07/06/11,734.85
Bath & North East Somerset Council,10611484,LA5,Materials,C06,Service Delivery,TP PACKAGING DESIGN (LONDON) L,07/06/11,789
Bath & North East Somerset Council,21091719,LK4,Nursery/Childcare Vouchers,C05,Children's Services,REDACTED,07/06/11,821.82
Bath & North East Somerset Council,21091711,LK4,Nursery/Childcare Vouchers,C05,Children's Services,REDACTED,07/06/11,969.15
Bath & North East Somerset Council,10611049,LT4,Conferences,C05,Children's Services,FEDERATION OF MUSIC SERVICES,07/06/11,1020
Bath & North East Somerset Council,10614157,HA4,Responsive Maintenance PCB,C02,Resources,AVON ALARMS LIMITED,07/06/11,1293
Bath & North East Somerset Council,10612262,EA2,Professional Subscriptions,C02,Resources,ROYAL INSTITUTION OF CHARTERED SURVEYORS,07/06/11,1305
Bath & North East Somerset Council,10611071,DB1,Agency Staff,C05,Children's Services,CSPIRE LTD,07/06/11,1349.76
Bath & North East Somerset Council,10614459,HA4,Responsive Maintenance PCB,C02,Resources,N GREEN,07/06/11,1350
Bath & North East Somerset Council,10614052,HA4,Responsive Maintenance PCB,C02,Resources,HORDERS,07/06/11,1358.94
Bath & North East Somerset Council,10614369,LX5,Concessionary Fares,C06,Service Delivery,KEYNSHAM & DISTRICT DIAL-A-RIDE,07/06/11,1543.25
Bath & North East Somerset Council,10612678,HA5,Service Contract PCB,C02,Resources,AVON ALARMS LIMITED,07/06/11,1692.9
Bath & North East Somerset Council,10612885,LA7,Purchases for Resale,C06,Service Delivery,TEMPLE ISLAND COLLECTION,07/06/11,1804.7
Bath & North East Somerset Council,10614196,LJ1,Consultants Fees,C06,Service Delivery,POTTERTON ASSOCIATES LTD,07/06/11,1901.75
Bath & North East Somerset Council,10614183,LX5,Concessionary Fares,C06,Service Delivery,MIDSOMER NORTON & RADSTOCK RING & RIDE,07/06/11,1904.5
Bath & North East Somerset Council,21091654,LK4,Nursery/Childcare Vouchers,C05,Children's Services,MONTESSORI KINDERGARTEN,07/06/11,1947.17
Bath & North East Somerset Council,10614343,LL1,Services to Clients,C05,Children's Services,THEATRE ROYAL (BATH) LIMITED,07/06/11,2160
Bath & North East Somerset Council,21091655,LK4,Nursery/Childcare Vouchers,C05,Children's Services,TIPPEE TOES NURSERY,07/06/11,2265.75
Bath & North East Somerset Council,10611567,LJ1,Consultants Fees,Z98,West of England Partnership,MOTT MACDONALD LIMITED,07/06/11,2378.97
Bath & North East Somerset Council,21091693,LK4,Nursery/Childcare Vouchers,C05,Children's Services,BARNABY PRE-SCHOOL,07/06/11,2386.2
Bath & North East Somerset Council,21091716,LK4,Nursery/Childcare Vouchers,C05,Children's Services,REDACTED,07/06/11,2412.23
Bath & North East Somerset Council,21091628,LK4,Nursery/Childcare Vouchers,C05,Children's Services,BATHAMPTON PLAYGROUP,07/06/11,2449.54
Bath & North East Somerset Council,21091672,LK4,Nursery/Childcare Vouchers,C05,Children's Services,SUNFLOWERS NURSERY LTD,07/06/11,2522
Bath & North East Somerset Council,21091657,LK4,Nursery/Childcare Vouchers,C05,Children's Services,OAK TREE DAY NURSERY,07/06/11,2584.4
Bath & North East Somerset Council,21091646,LK4,Nursery/Childcare Vouchers,C05,Children's Services,LITTLE FIDGETS PLAYGROUP,07/06/11,3276.66
Bath & North East Somerset Council,21091734,LK4,Nursery/Childcare Vouchers,C05,Children's Services,LAUREL FARM KINDERGARTEN,07/06/11,3305.52
Bath & North East Somerset Council,10611447,LM1,Volunt Homes Placements Top/Up,C05,Children's Services,NEW HORIZON CENTRE LTD,07/06/11,3325
Bath & North East Somerset Council,21091705,LK4,Nursery/Childcare Vouchers,C05,Children's Services,MAGNA MINORS DAY NURSERY,07/06/11,3511.32
Bath & North East Somerset Council,10612033,HE5,Security of Premises,C06,Service Delivery,SCAN COIN LTD,07/06/11,3618.4
Bath & North East Somerset Council,10614388,XF3,Recoveries,Z99,Outside Revenue Accounts,ASSEMBLY ANTIQUE LTD,07/06/11,3732.71
Bath & North East Somerset Council,10613754,LM3,Residential Care,C03,Adult Social Services & Housing,PARADISE HOUSE ASSOCIATION LTD,07/06/11,3768.67
Bath & North East Somerset Council,10614009,HP8,Service Charges,C02,Resources,RADSTOCK TOWN COUNCIL,07/06/11,3786.78
Bath & North East Somerset Council,10614008,HP8,Service Charges,C02,Resources,RADSTOCK TOWN COUNCIL,07/06/11,3859.9
Bath & North East Somerset Council,10611895,LA7,Purchases for Resale,C06,Service Delivery,CUSTOMWORKS,07/06/11,3900.5
Bath & North East Somerset Council,21091644,LK4,Nursery/Childcare Vouchers,C05,Children's Services,BRIGHT HORIZONS FAMILY SOLUTIONS,07/06/11,3914.62
Bath & North East Somerset Council,21091704,LK4,Nursery/Childcare Vouchers,C05,Children's Services,TEDDIES @ CGM,07/06/11,3938.36
Bath & North East Somerset Council,10613428,LJ1,Consultants Fees,C02,Resources,MSS MARKETING RESEARCH LTD,07/06/11,4000
Bath & North East Somerset Council,21091688,LK4,Nursery/Childcare Vouchers,C05,Children's Services,ALICE PARK NURSERY,07/06/11,4033.26
Bath & North East Somerset Council,21091650,LK4,Nursery/Childcare Vouchers,C05,Children's Services,MARKSBURY & DISTRICT PLAYGROUP,07/06/11,4038.12
Bath & North East Somerset Council,21091697,LK4,Nursery/Childcare Vouchers,C05,Children's Services,SUNFLOWER PRE-SCHOOL,07/06/11,4268.87
Bath & North East Somerset Council,21091689,LK4,Nursery/Childcare Vouchers,C05,Children's Services,LITTLE LEARNERS,07/06/11,4291.5
Bath & North East Somerset Council,21091729,LK4,Nursery/Childcare Vouchers,C05,Children's Services,CHILDBASE LTD,07/06/11,4552.87
Bath & North East Somerset Council,21091652,LK4,Nursery/Childcare Vouchers,C05,Children's Services,MOGGHILL HOUSE NURSERY SCHOOL,07/06/11,4574.17
Bath & North East Somerset Council,10612679,HA5,Service Contract PCB,C02,Resources,AVON ALARMS LIMITED,07/06/11,4618.13
Bath & North East Somerset Council,10612392,3C4,PCB Building Works,C05,Children's Services,MAYLARCH ENVIRONMENTAL LTD,07/06/11,4625.17
Bath & North East Somerset Council,21091690,LK4,Nursery/Childcare Vouchers,C05,Children's Services,APPLE TREE DAY NURSERY,07/06/11,4745.03
Bath & North East Somerset Council,10611472,LJ1,Consultants Fees,C06,Service Delivery,BAT CONSERVATION TRUST,07/06/11,4800
Bath & North East Somerset Council,21091678,LK4,Nursery/Childcare Vouchers,C05,Children's Services,TREASURE ISLAND PRE-SCHOOL,07/06/11,4891.9
Bath & North East Somerset Council,21091645,LK4,Nursery/Childcare Vouchers,C05,Children's Services,KING EDWARDS PRE PREP SCHOOL,07/06/11,4909.67
Bath & North East Somerset Council,21091692,LK4,Nursery/Childcare Vouchers,C05,Children's Services,BARNABY PRE-SCHOOL,07/06/11,5030.35
Bath & North East Somerset Council,21091682,LK4,Nursery/Childcare Vouchers,C05,Children's Services,WESTWOOD NURSERY SCHOOL,07/06/11,5221.35
Bath & North East Somerset Council,21091685,LK4,Nursery/Childcare Vouchers,C05,Children's Services,WRITHLINGTON PLAYGROUP,07/06/11,5468.77
Bath & North East Somerset Council,10614387,LW1,Rechargeable Works/Expenses,C03,Adult Social Services & Housing,BNES-LEWIS HOUSE IMPREST A/C,07/06/11,5796.75
Bath & North East Somerset Council,21091642,LK4,Nursery/Childcare Vouchers,C05,Children's Services,JACK & JILL PLAYGROUP,07/06/11,5825.57
Bath & North East Somerset Council,21091664,LK4,Nursery/Childcare Vouchers,C05,Children's Services,THE SALTFORD BUSY BEES,07/06/11,5837.98
Bath & North East Somerset Council,21091724,LK4,Nursery/Childcare Vouchers,C05,Children's Services,FRESHFORD PRE-SCHOOL,07/06/11,5884.16
Bath & North East Somerset Council,21091626,LK4,Nursery/Childcare Vouchers,C05,Children's Services,ACORN PRE-SCHOOL,07/06/11,5953.35
Bath & North East Somerset Council,21091637,LK4,Nursery/Childcare Vouchers,C05,Children's Services,FARMBOROUGH PLAYGROUP,07/06/11,6161.2
Bath & North East Somerset Council,21091649,LK4,Nursery/Childcare Vouchers,C05,Children's Services,MAGIC BOX PRE-SCHOOL,07/06/11,6188.55
Bath & North East Somerset Council,21091670,LK4,Nursery/Childcare Vouchers,C05,Children's Services,STANTON DREW & PENSFORD PRESCH,07/06/11,6262.2
Bath & North East Somerset Council,21091647,LK4,Nursery/Childcare Vouchers,C05,Children's Services,LONGVERNAL NURSERY SCHOOL,07/06/11,6358.3
Bath & North East Somerset Council,10612720,HA5,Service Contract PCB,C02,Resources,AVON ALARMS LIMITED,07/06/11,6468.5
Bath & North East Somerset Council,21091653,LK4,Nursery/Childcare Vouchers,C05,Children's Services,MONKTON COMBE PRE-PREPATORY SCHOOL,07/06/11,6553.69
Bath & North East Somerset Council,21091680,LK4,Nursery/Childcare Vouchers,C05,Children's Services,UBLEY PRE-SCHOOL,07/06/11,6645.61
Bath & North East Somerset Council,21091702,LK4,Nursery/Childcare Vouchers,C05,Children's Services,GROOVY MONSTERS LTD,07/06/11,6832.83
Bath & North East Somerset Council,21091629,LK4,Nursery/Childcare Vouchers,C05,Children's Services,BEAR FLAT PRE-SCHOOL PLAYGROUP,07/06/11,6945.65
Bath & North East Somerset Council,21091683,LK4,Nursery/Childcare Vouchers,C05,Children's Services,WHISTY PLAYGROUP,07/06/11,7447.46
Bath & North East Somerset Council,21091715,LK4,Nursery/Childcare Vouchers,C05,Children's Services,BABYFACE NURSERY,07/06/11,7491.66
Bath & North East Somerset Council,21091723,LK4,Nursery/Childcare Vouchers,C05,Children's Services,LITTLE STAR NURSERY,07/06/11,7497.11
Bath & North East Somerset Council,10614206,LJ1,Consultants Fees,C06,Service Delivery,BRISTOL CITY COUNCIL,07/06/11,7500
Bath & North East Somerset Council,21091707,LK4,Nursery/Childcare Vouchers,C05,Children's Services,STEPPING STONES PLAYGROUP,07/06/11,7522.45
Bath & North East Somerset Council,21091627,LK4,Nursery/Childcare Vouchers,C05,Children's Services,BATH OPPORTUNITY PRE-SCHOOL,07/06/11,7614.77
Bath & North East Somerset Council,21091733,LK4,Nursery/Childcare Vouchers,C05,Children's Services,LITTLE WILLOW DAY NURSERY,07/06/11,7639.45
Bath & North East Somerset Council,21091687,LK4,Nursery/Childcare Vouchers,C05,Children's Services,ST ANDREWS PRIMARY SCHOOL,07/06/11,7679.75
Bath & North East Somerset Council,21091673,LK4,Nursery/Childcare Vouchers,C05,Children's Services,SUNSHINE PRE SCHOOL,07/06/11,7960.87
Bath & North East Somerset Council,21091632,LK4,Nursery/Childcare Vouchers,C05,Children's Services,BUSY BEES PRE-SCHOOL (BATH),07/06/11,8136.6
Bath & North East Somerset Council,21091730,LK4,Nursery/Childcare Vouchers,C05,Children's Services,BUTTERCUP BARN NURSERY,07/06/11,8179.21
Bath & North East Somerset Council,21091728,LK4,Nursery/Childcare Vouchers,C05,Children's Services,NORLAND COLLEGE,07/06/11,8185.17
Bath & North East Somerset Council,21091635,LK4,Nursery/Childcare Vouchers,C05,Children's Services,S J SCUDAMORE,07/06/11,8560.9
Bath & North East Somerset Council,21091665,LK4,Nursery/Childcare Vouchers,C05,Children's Services,ZEBEDEES PEASEDOWN ST JOHN LTD,07/06/11,8588.5
Bath & North East Somerset Council,21091641,LK4,Nursery/Childcare Vouchers,C05,Children's Services,HOPSCOTCH NURSERY SCHOOL,07/06/11,8653.14
Bath & North East Somerset Council,21091713,LK4,Nursery/Childcare Vouchers,C05,Children's Services,FOOTSTEPS (SOUTHWEST) LTD,07/06/11,8730.86
Bath & North East Somerset Council,21091630,LK4,Nursery/Childcare Vouchers,C05,Children's Services,BISHOP SUTTON PRE-SCHOOL,07/06/11,8768.57
Bath & North East Somerset Council,21091631,LK4,Nursery/Childcare Vouchers,C05,Children's Services,BO PEEP PRE SCHOOL,07/06/11,8860.8
Bath & North East Somerset Council,21091694,LK4,Nursery/Childcare Vouchers,C05,Children's Services,3-2-4 PLAYGROUP,07/06/11,9171.42
Bath & North East Somerset Council,21091706,LK4,Nursery/Childcare Vouchers,C05,Children's Services,OLDFIELD PARK BAPTIST PRE-SCHOOL,07/06/11,9190.12
Bath & North East Somerset Council,21091666,LK4,Nursery/Childcare Vouchers,C05,Children's Services,SNAPDRAGONS NURSERY,07/06/11,9276.48
Bath & North East Somerset Council,21091659,LK4,Nursery/Childcare Vouchers,C05,Children's Services,PEPPERPOT BATHFORD PRE-SCHOOL,07/06/11,9580.62
Bath & North East Somerset Council,21091667,LK4,Nursery/Childcare Vouchers,C05,Children's Services,ST NICHOLAS PRESCHOOL,07/06/11,9610.79
Bath & North East Somerset Council,21091633,LK4,Nursery/Childcare Vouchers,C05,Children's Services,CATERPILLARS DAY NURSERY,07/06/11,9739.23
Bath & North East Somerset Council,21091661,LK4,Nursery/Childcare Vouchers,C05,Children's Services,PINOCCHIO DAY NURSERY,07/06/11,9750.98
Bath & North East Somerset Council,21091718,LK4,Nursery/Childcare Vouchers,C05,Children's Services,LITTLE SCRIBBLERS LTD,07/06/11,9905.23
Bath & North East Somerset Council,21091686,LK4,Nursery/Childcare Vouchers,C05,Children's Services,ZEBEDEES BATH LIMITED,07/06/11,9907.95
Bath & North East Somerset Council,10610531,HA6,Planned Maintenance PCB,C02,Resources,N K S CONTRACTS LTD,07/06/11,9990.9
Bath & North East Somerset Council,21091660,LK4,Nursery/Childcare Vouchers,C05,Children's Services,PETER PAN PLAYGROUP,07/06/11,10014.61
Bath & North East Somerset Council,21091634,LK4,Nursery/Childcare Vouchers,C05,Children's Services,CLUTTON PLAYGROUP,07/06/11,10060.71
Bath & North East Somerset Council,21091677,LK4,Nursery/Childcare Vouchers,C05,Children's Services,TIMSBURY PRE-SCHOOL,07/06/11,10314.53
Bath & North East Somerset Council,21091698,LK4,Nursery/Childcare Vouchers,C05,Children's Services,NOAH'S ARK PRE-SCHOOL,07/06/11,10334.06
Bath & North East Somerset Council,21091695,LK4,Nursery/Childcare Vouchers,C05,Children's Services,YMCA DAY NURSERY,07/06/11,10344.1
Bath & North East Somerset Council,21091732,LK4,Nursery/Childcare Vouchers,C05,Children's Services,MULBERRY KIDZ,07/06/11,10469.13
Bath & North East Somerset Council,21091731,LK4,Nursery/Childcare Vouchers,C05,Children's Services,CASTLE PRIMARY SCHOOL,07/06/11,10719.8
Bath & North East Somerset Council,21091700,LK4,Nursery/Childcare Vouchers,C05,Children's Services,SOUTHDOWN INFANTS SCHOOL,07/06/11,12178.69
Bath & North East Somerset Council,21091725,LK4,Nursery/Childcare Vouchers,C05,Children's Services,COMBE DOWN NURSERY,07/06/11,12249.5
Bath & North East Somerset Council,21091656,LK4,Nursery/Childcare Vouchers,C05,Children's Services,NOAHS ARK PRE-SCHOOL,07/06/11,12337.01
Bath & North East Somerset Council,21091663,LK4,Nursery/Childcare Vouchers,C05,Children's Services,ROYAL HIGH SCHOOL,07/06/11,12833.25
Bath & North East Somerset Council,21091675,LK4,Nursery/Childcare Vouchers,C05,Children's Services,THE MEWS NURSERY,07/06/11,13072.48
Bath & North East Somerset Council,21091676,LK4,Nursery/Childcare Vouchers,C05,Children's Services,TIDDLERS DAY NURSERY LTD,07/06/11,13167.44
Bath & North East Somerset Council,21091668,LK4,Nursery/Childcare Vouchers,C05,Children's Services,ST NICHOLAS PRE-SCHOOL,07/06/11,13216.66
Bath & North East Somerset Council,21091703,LK4,Nursery/Childcare Vouchers,C05,Children's Services,ST SAVIOURS C OF E INFANTS SCHOOL,07/06/11,13276.6
Bath & North East Somerset Council,21091648,LK4,Nursery/Childcare Vouchers,C05,Children's Services,LONGVERNAL NURSERY SCHOOL,07/06/11,13722.19
Bath & North East Somerset Council,21091684,LK4,Nursery/Childcare Vouchers,C05,Children's Services,WIDCOMBE ACORNS PRE-SCHOOL,07/06/11,14567.16
Bath & North East Somerset Council,21091727,LK4,Nursery/Childcare Vouchers,C05,Children's Services,NEXT STEPS NURSERY,07/06/11,15300.83
Bath & North East Somerset Council,21091662,LK4,Nursery/Childcare Vouchers,C05,Children's Services,QUEENS ROAD CHURCH PRE SCHOOL,07/06/11,15875.6
Bath & North East Somerset Council,21091726,LK4,Nursery/Childcare Vouchers,C05,Children's Services,ST KEYNA PRIMARY SCHOOL,07/06/11,16922.1
Bath & North East Somerset Council,21091651,LK4,Nursery/Childcare Vouchers,C05,Children's Services,MIDSOMER NORTON PRIMARY SCHOO,07/06/11,17029.69
Bath & North East Somerset Council,21091636,LK4,Nursery/Childcare Vouchers,C05,Children's Services,EAST HARPTREE PRE-SCHOOL,07/06/11,17248.1
Bath & North East Somerset Council,21091679,LK4,Nursery/Childcare Vouchers,C05,Children's Services,TWERTON INFANT SCHOOL,07/06/11,17649.13
Bath & North East Somerset Council,21091639,LK4,Nursery/Childcare Vouchers,C05,Children's Services,FIRST STEPS NURSERY,07/06/11,18334.88
Bath & North East Somerset Council,21091671,LK4,Nursery/Childcare Vouchers,C05,Children's Services,SUNFLOWERS NURSERY LTD,07/06/11,18366.78
Bath & North East Somerset Council,21091638,LK4,Nursery/Childcare Vouchers,C05,Children's Services,FIRST STEPS NURSERY,07/06/11,19233.7
Bath & North East Somerset Council,21091640,LK4,Nursery/Childcare Vouchers,C05,Children's Services,FIRST STEPS NURSERY,07/06/11,20224.5
Bath & North East Somerset Council,21091658,LK4,Nursery/Childcare Vouchers,C05,Children's Services,PEASEDOWN ST JOHN PRIMARY SCHOOL,07/06/11,28520.5
Bath & North East Somerset Council,21091708,LK4,Nursery/Childcare Vouchers,C05,Children's Services,SNAPDRAGONS NURSERY,07/06/11,29680.02
Bath & North East Somerset Council,10612745,3N7,PCB Misc. Costs,C06,Service Delivery,ISO DESIGN,07/06/11,31240
Bath & North East Somerset Council,10614216,7F1,Rent,,,SOMER COMMUNITY HOUSING TRUST,07/06/11,44522.75
Bath & North East Somerset Council,10614355,LJ4,Contracts,C06,Service Delivery,BATH TAXIS (UK) LTD,08/06/11,6
Bath & North East Somerset Council,21092147,KE3,Transport & Travel,C05,Children's Services,REDACTED,08/06/11,10.44
Bath & North East Somerset Council,21092130,LM2,Foster Carer Allowances,C05,Children's Services,REDACTED,08/06/11,27.1
Bath & North East Somerset Council,21092147,LL6,Needs & Services,C05,Children's Services,REDACTED,08/06/11,31.99
Bath & North East Somerset Council,10614469,LA5,Materials,C02,Resources,RELYON GUARDING & SECURITY SERVICES,08/06/11,35
Bath & North East Somerset Council,10614469,LB3,PCB Rechargeable Subcontractors,C02,Resources,RELYON GUARDING & SECURITY SERVICES,08/06/11,35
Bath & North East Somerset Council,10614469,LB3,PCB Rechargeable Subcontractors,C02,Resources,RELYON GUARDING & SECURITY SERVICES,08/06/11,35
Bath & North East Somerset Council,10614469,LB3,PCB Rechargeable Subcontractors,C02,Resources,RELYON GUARDING & SECURITY SERVICES,08/06/11,35
Bath & North East Somerset Council,10614469,LB3,PCB Rechargeable Subcontractors,C02,Resources,RELYON GUARDING & SECURITY SERVICES,08/06/11,35
Bath & North East Somerset Council,10614469,LB3,PCB Rechargeable Subcontractors,C02,Resources,RELYON GUARDING & SECURITY SERVICES,08/06/11,35
Bath & North East Somerset Council,10614469,LB3,PCB Rechargeable Subcontractors,C02,Resources,RELYON GUARDING & SECURITY SERVICES,08/06/11,35
Bath & North East Somerset Council,10614469,LB3,PCB Rechargeable Subcontractors,C02,Resources,RELYON GUARDING & SECURITY SERVICES,08/06/11,35
Bath & North East Somerset Council,10614469,LB3,PCB Rechargeable Subcontractors,C02,Resources,RELYON GUARDING & SECURITY SERVICES,08/06/11,35
Bath & North East Somerset Council,10614469,LB3,PCB Rechargeable Subcontractors,C02,Resources,RELYON GUARDING & SECURITY SERVICES,08/06/11,35
Bath & North East Somerset Council,10614469,LB3,PCB Rechargeable Subcontractors,C02,Resources,RELYON GUARDING & SECURITY SERVICES,08/06/11,35
Bath & North East Somerset Council,21092130,LM4,Respite Care,C05,Children's Services,REDACTED,08/06/11,42.86
Bath & North East Somerset Council,21092167,KE3,Transport & Travel,C05,Children's Services,REDACTED,08/06/11,54.81
Bath & North East Somerset Council,10614472,LC1,Provisions,C03,Adult Social Services & Housing,L & F JONES HOLDINGS LTD,08/06/11,55.46
Bath & North East Somerset Council,10614469,LB3,PCB Rechargeable Subcontractors,C02,Resources,RELYON GUARDING & SECURITY SERVICES,08/06/11,70
Bath & North East Somerset Council,10614469,LB3,PCB Rechargeable Subcontractors,C02,Resources,RELYON GUARDING & SECURITY SERVICES,08/06/11,70
Bath & North East Somerset Council,10614477,LC1,Provisions,C03,Adult Social Services & Housing,L & F JONES HOLDINGS LTD,08/06/11,78.41
Bath & North East Somerset Council,10614189,LJ4,Contracts,C06,Service Delivery,STEPHEN WARREN,08/06/11,80
Bath & North East Somerset Council,21091875,YF2,Fees & Charges,C03,Adult Social Services & Housing,HOME FARM TRUST LTD,08/06/11,84.1
Bath & North East Somerset Council,21091875,YF2,Fees & Charges,C03,Adult Social Services & Housing,HOME FARM TRUST LTD,08/06/11,84.1
Bath & North East Somerset Council,21091875,YF2,Fees & Charges,C03,Adult Social Services & Housing,HOME FARM TRUST LTD,08/06/11,84.1
Bath & North East Somerset Council,21091875,YF2,Fees & Charges,C03,Adult Social Services & Housing,HOME FARM TRUST LTD,08/06/11,84.1
Bath & North East Somerset Council,21091875,YF2,Fees & Charges,C03,Adult Social Services & Housing,HOME FARM TRUST LTD,08/06/11,84.1
Bath & North East Somerset Council,21091875,YF2,Fees & Charges,C03,Adult Social Services & Housing,HOME FARM TRUST LTD,08/06/11,84.1
Bath & North East Somerset Council,21091875,YF2,Fees & Charges,C03,Adult Social Services & Housing,HOME FARM TRUST LTD,08/06/11,84.1
Bath & North East Somerset Council,21091827,LL3,Supported Living,C03,Adult Social Services & Housing,DIMENSIONS (UK) LTD,08/06/11,87.85
Bath & North East Somerset Council,21091827,LL3,Supported Living,C03,Adult Social Services & Housing,DIMENSIONS (UK) LTD,08/06/11,87.85
Bath & North East Somerset Council,10612947,LN4,Mobile Phones,C02,Resources,ORANGE PCS,08/06/11,100
Bath & North East Somerset Council,21092127,LM2,Foster Carer Allowances,C05,Children's Services,REDACTED,08/06/11,100
Bath & North East Somerset Council,21092130,LM4,Respite Care,C05,Children's Services,REDACTED,08/06/11,103.17
Bath & North East Somerset Council,10614355,LJ4,Contracts,C06,Service Delivery,BATH TAXIS (UK) LTD,08/06/11,112.9
Bath & North East Somerset Council,10614467,LB3,PCB Rechargeable Subcontractors,C02,Resources,K SANDERS,08/06/11,120
Bath & North East Somerset Council,21092162,LL2,Personal Needs of Clients,C05,Children's Services,REDACTED,08/06/11,130
Bath & North East Somerset Council,21092131,LM2,Foster Carer Allowances,C05,Children's Services,REDACTED,08/06/11,149.76
Bath & North East Somerset Council,21091910,LL3,Supported Living,C03,Adult Social Services & Housing,OPTIONS FOR LIVING LTD,08/06/11,150.4
Bath & North East Somerset Council,21091910,LL3,Supported Living,C03,Adult Social Services & Housing,OPTIONS FOR LIVING LTD,08/06/11,150.4
Bath & North East Somerset Council,21092130,LM4,Respite Care,C05,Children's Services,REDACTED,08/06/11,159.8
Bath & North East Somerset Council,21091910,LL3,Supported Living,C03,Adult Social Services & Housing,OPTIONS FOR LIVING LTD,08/06/11,169.2
Bath & North East Somerset Council,21091910,LL3,Supported Living,C03,Adult Social Services & Housing,OPTIONS FOR LIVING LTD,08/06/11,169.2
Bath & North East Somerset Council,21092162,LL2,Personal Needs of Clients,C05,Children's Services,REDACTED,08/06/11,200
Bath & North East Somerset Council,10614621,HA4,Responsive Maintenance PCB,C02,Resources,TPM (SOUTH WEST) LTD,08/06/11,215.84
Bath & North East Somerset Council,21091802,LL3,Supported Living,C03,Adult Social Services & Housing,SUPPORTED INDEPENDENCE,08/06/11,217.01
Bath & North East Somerset Council,21091802,LL3,Supported Living,C03,Adult Social Services & Housing,SUPPORTED INDEPENDENCE,08/06/11,217.01
Bath & North East Somerset Council,21092170,LM2,Foster Carer Allowances,C05,Children's Services,REDACTED,08/06/11,226.74
Bath & North East Somerset Council,21092171,LM2,Foster Carer Allowances,C05,Children's Services,REDACTED,08/06/11,226.74
Bath & North East Somerset Council,21091822,LM6,Nursing Care,C03,Adult Social Services & Housing,CARE FIRST CARE HOMES LTD,08/06/11,229.71
Bath & North East Somerset Council,21091773,LM6,Nursing Care,C03,Adult Social Services & Housing,CEDAR PARK NURSING HOME,08/06/11,229.71
Bath & North East Somerset Council,10613069,LJ8,PCB External Fees,C04,Development & Major Projects,SYLVIE PIERCE,08/06/11,239
Bath & North East Somerset Council,21092127,LM2,Foster Carer Allowances,C05,Children's Services,REDACTED,08/06/11,240.72
Bath & North East Somerset Council,21091802,LL3,Supported Living,C03,Adult Social Services & Housing,SUPPORTED INDEPENDENCE,08/06/11,264.18
Bath & North East Somerset Council,21091802,LL3,Supported Living,C03,Adult Social Services & Housing,SUPPORTED INDEPENDENCE,08/06/11,264.18
Bath & North East Somerset Council,21091810,LM3,Residential Care,C03,Adult Social Services & Housing,ANCHOR TRUST,08/06/11,278.57
Bath & North East Somerset Council,21091856,LM6,Nursing Care,C03,Adult Social Services & Housing,CHARLTON COURT LTD T/A SUNNYMEDE,08/06/11,306.29
Bath & North East Somerset Council,10614546,HA4,Responsive Maintenance PCB,C02,Resources,TPM (SOUTH WEST) LTD,08/06/11,324
Bath & North East Somerset Council,21091754,LL3,Supported Living,C03,Adult Social Services & Housing,SWALLOW LTD,08/06/11,337.53
Bath & North East Somerset Council,21091754,LL3,Supported Living,C03,Adult Social Services & Housing,SWALLOW LTD,08/06/11,337.53
Bath & North East Somerset Council,10614621,HA4,Responsive Maintenance PCB,C02,Resources,TPM (SOUTH WEST) LTD,08/06/11,348.5
Bath & North East Somerset Council,10614188,LJ4,Contracts,C06,Service Delivery,REDACTED,08/06/11,360
Bath & North East Somerset Council,10612947,LN4,Mobile Phones,C02,Resources,ORANGE PCS,08/06/11,370
Bath & North East Somerset Council,21092127,LM2,Foster Carer Allowances,C05,Children's Services,REDACTED,08/06/11,372.86
Bath & North East Somerset Council,21092130,LM2,Foster Carer Allowances,C05,Children's Services,REDACTED,08/06/11,372.86
Bath & North East Somerset Council,21091802,LL3,Supported Living,C03,Adult Social Services & Housing,SUPPORTED INDEPENDENCE,08/06/11,407.34
Bath & North East Somerset Council,21091802,LL3,Supported Living,C03,Adult Social Services & Housing,SUPPORTED INDEPENDENCE,08/06/11,407.34
Bath & North East Somerset Council,21091937,LM3,Residential Care,C03,Adult Social Services & Housing,CAMPANIA CARE HOME,08/06/11,411.43
Bath & North East Somerset Council,21091810,LM3,Residential Care,C03,Adult Social Services & Housing,ANCHOR TRUST,08/06/11,413
Bath & North East Somerset Council,21091810,LM3,Residential Care,C03,Adult Social Services & Housing,ANCHOR TRUST,08/06/11,413
Bath & North East Somerset Council,21091810,LM3,Residential Care,C03,Adult Social Services & Housing,ANCHOR TRUST,08/06/11,413
Bath & North East Somerset Council,21091810,LM3,Residential Care,C03,Adult Social Services & Housing,ANCHOR TRUST,08/06/11,413
Bath & North East Somerset Council,21091810,LM3,Residential Care,C03,Adult Social Services & Housing,ANCHOR TRUST,08/06/11,413
Bath & North East Somerset Council,21091810,LM3,Residential Care,C03,Adult Social Services & Housing,ANCHOR TRUST,08/06/11,413
Bath & North East Somerset Council,10614084,LJ4,Contracts,C06,Service Delivery,BERKELEY COACH & TRAVEL LTD,08/06/11,420
Bath & North East Somerset Council,10613102,HA5,Service Contract PCB,C02,Resources,FACULTATIEVE TECHNOLOGIES LTD,08/06/11,422.76
Bath & North East Somerset Council,21091910,LL3,Supported Living,C03,Adult Social Services & Housing,OPTIONS FOR LIVING LTD,08/06/11,425.52
Bath & North East Somerset Council,21091910,LL3,Supported Living,C03,Adult Social Services & Housing,OPTIONS FOR LIVING LTD,08/06/11,425.52
Bath & North East Somerset Council,21091802,LL3,Supported Living,C03,Adult Social Services & Housing,SUPPORTED INDEPENDENCE,08/06/11,431.67
Bath & North East Somerset Council,21091802,LL3,Supported Living,C03,Adult Social Services & Housing,SUPPORTED INDEPENDENCE,08/06/11,431.67
Bath & North East Somerset Council,21091754,LL3,Supported Living,C03,Adult Social Services & Housing,SWALLOW LTD,08/06/11,434.51
Bath & North East Somerset Council,21091754,LL3,Supported Living,C03,Adult Social Services & Housing,SWALLOW LTD,08/06/11,434.51
Bath & North East Somerset Council,21091827,LL3,Supported Living,C03,Adult Social Services & Housing,DIMENSIONS (UK) LTD,08/06/11,439.37
Bath & North East Somerset Council,21091827,LL3,Supported Living,C03,Adult Social Services & Housing,DIMENSIONS (UK) LTD,08/06/11,439.37
Bath & North East Somerset Council,21091827,LL3,Supported Living,C03,Adult Social Services & Housing,DIMENSIONS (UK) LTD,08/06/11,439.37
Bath & North East Somerset Council,21091827,LL3,Supported Living,C03,Adult Social Services & Housing,DIMENSIONS (UK) LTD,08/06/11,439.37
Bath & North East Somerset Council,10614693,HA5,Service Contract PCB,C02,Resources,TPM (SOUTH WEST) LTD,08/06/11,455
Bath & North East Somerset Council,10611967,LA7,Purchases for Resale,C06,Service Delivery,SAM UBHI,08/06/11,458
Bath & North East Somerset Council,21091856,LM6,Nursing Care,C03,Adult Social Services & Housing,CHARLTON COURT LTD T/A SUNNYMEDE,08/06/11,459.43
Bath & North East Somerset Council,10614355,LJ4,Contracts,C06,Service Delivery,BATH TAXIS (UK) LTD,08/06/11,460
Bath & North East Somerset Council,10612574,EG3,Recruitment Advertising,C03,Adult Social Services & Housing,TMP (UK) LTD,08/06/11,466.1
Bath & North East Somerset Council,10614126,LA1,Equipment Purchase,C03,Adult Social Services & Housing,ETHITEC,08/06/11,466.72
Bath & North East Somerset Council,10611554,KF2,Insurance Excess Payments,C06,Service Delivery,HINTON GARAGE LTD,08/06/11,468.83
Bath & North East Somerset Council,10614688,HA5,Service Contract PCB,C02,Resources,SOUTHERN ELECTRIC CONTRACTING LTD,08/06/11,475.8
Bath & North East Somerset Council,10614546,HA4,Responsive Maintenance PCB,C02,Resources,TPM (SOUTH WEST) LTD,08/06/11,486
Bath & North East Somerset Council,21091827,LL3,Supported Living,C03,Adult Social Services & Housing,DIMENSIONS (UK) LTD,08/06/11,492.09
Bath & North East Somerset Council,21091827,LL3,Supported Living,C03,Adult Social Services & Housing,DIMENSIONS (UK) LTD,08/06/11,492.09
Bath & North East Somerset Council,21092101,LM2,Foster Carer Allowances,C05,Children's Services,REDACTED,08/06/11,494.94
Bath & North East Somerset Council,10614465,LJ3,Other Services to the Council,C02,Resources,RELYON GUARDING & SECURITY SERVICES,08/06/11,500
Bath & North East Somerset Council,21091910,LL3,Supported Living,C03,Adult Social Services & Housing,OPTIONS FOR LIVING LTD,08/06/11,502.04
Bath & North East Somerset Council,21091910,LL3,Supported Living,C03,Adult Social Services & Housing,OPTIONS FOR LIVING LTD,08/06/11,502.04
Bath & North East Somerset Council,10614472,LC1,Provisions,C03,Adult Social Services & Housing,L & F JONES HOLDINGS LTD,08/06/11,509.11
Bath & North East Somerset Council,21091810,LM3,Residential Care,C03,Adult Social Services & Housing,ANCHOR TRUST,08/06/11,510.35
Bath & North East Somerset Council,21091810,LM3,Residential Care,C03,Adult Social Services & Housing,ANCHOR TRUST,08/06/11,510.35
Bath & North East Somerset Council,10612361,LH2,Advertising,C06,Service Delivery,TMP (UK) LTD,08/06/11,510.41
Bath & North East Somerset Council,21091922,LM3,Residential Care,C03,Adult Social Services & Housing,LILLIPUT HOUSE REST HOME,08/06/11,513
Bath & North East Somerset Council,21091922,LM3,Residential Care,C03,Adult Social Services & Housing,LILLIPUT HOUSE REST HOME,08/06/11,513
Bath & North East Somerset Council,21091910,LL3,Supported Living,C03,Adult Social Services & Housing,OPTIONS FOR LIVING LTD,08/06/11,518.36
Bath & North East Somerset Council,21091910,LL3,Supported Living,C03,Adult Social Services & Housing,OPTIONS FOR LIVING LTD,08/06/11,518.36
Bath & North East Somerset Council,21091914,LM3,Residential Care,C03,Adult Social Services & Housing,AVERY HOMES BRISTOL LIMITED,08/06/11,525
Bath & North East Somerset Council,21091914,LM3,Residential Care,C03,Adult Social Services & Housing,AVERY HOMES BRISTOL LIMITED,08/06/11,525
Bath & North East Somerset Council,10611687,HK2,Street Lighting Maintenance,C06,Service Delivery,WESTERN POWER DISTRIBUTION (SO,08/06/11,528.63
Bath & North East Somerset Council,21092143,LM2,Foster Carer Allowances,C05,Children's Services,REDACTED,08/06/11,530.6
Bath & North East Somerset Council,21091822,LM6,Nursing Care,C03,Adult Social Services & Housing,CARE FIRST CARE HOMES LTD,08/06/11,536
Bath & North East Somerset Council,21091822,LM6,Nursing Care,C03,Adult Social Services & Housing,CARE FIRST CARE HOMES LTD,08/06/11,536
Bath & North East Somerset Council,21091822,LM6,Nursing Care,C03,Adult Social Services & Housing,CARE FIRST CARE HOMES LTD,08/06/11,536
Bath & North East Somerset Council,21091822,LM6,Nursing Care,C03,Adult Social Services & Housing,CARE FIRST CARE HOMES LTD,08/06/11,536
Bath & North East Somerset Council,21091822,LM6,Nursing Care,C03,Adult Social Services & Housing,CARE FIRST CARE HOMES LTD,08/06/11,536
Bath & North East Somerset Council,21091822,LM6,Nursing Care,C03,Adult Social Services & Housing,CARE FIRST CARE HOMES LTD,08/06/11,536
Bath & North East Somerset Council,21091822,LM6,Nursing Care,C03,Adult Social Services & Housing,CARE FIRST CARE HOMES LTD,08/06/11,536
Bath & North East Somerset Council,21091822,LM6,Nursing Care,C03,Adult Social Services & Housing,CARE FIRST CARE HOMES LTD,08/06/11,536
Bath & North East Somerset Council,21091822,LM6,Nursing Care,C03,Adult Social Services & Housing,CARE FIRST CARE HOMES LTD,08/06/11,536
Bath & North East Somerset Council,21091773,LM6,Nursing Care,C03,Adult Social Services & Housing,CEDAR PARK NURSING HOME,08/06/11,536
Bath & North East Somerset Council,21091773,LM6,Nursing Care,C03,Adult Social Services & Housing,CEDAR PARK NURSING HOME,08/06/11,536
Bath & North East Somerset Council,21091773,LM6,Nursing Care,C03,Adult Social Services & Housing,CEDAR PARK NURSING HOME,08/06/11,536
Bath & North East Somerset Council,21091773,LM6,Nursing Care,C03,Adult Social Services & Housing,CEDAR PARK NURSING HOME,08/06/11,536
Bath & North East Somerset Council,21091773,LM6,Nursing Care,C03,Adult Social Services & Housing,CEDAR PARK NURSING HOME,08/06/11,536
Bath & North East Somerset Council,21091773,LM6,Nursing Care,C03,Adult Social Services & Housing,CEDAR PARK NURSING HOME,08/06/11,536
Bath & North East Somerset Council,21091773,LM6,Nursing Care,C03,Adult Social Services & Housing,CEDAR PARK NURSING HOME,08/06/11,536
Bath & North East Somerset Council,21091773,LM6,Nursing Care,C03,Adult Social Services & Housing,CEDAR PARK NURSING HOME,08/06/11,536
Bath & North East Somerset Council,21091773,LM6,Nursing Care,C03,Adult Social Services & Housing,CEDAR PARK NURSING HOME,08/06/11,536
Bath & North East Somerset Council,21091773,LM6,Nursing Care,C03,Adult Social Services & Housing,CEDAR PARK NURSING HOME,08/06/11,536
Bath & North East Somerset Council,21091773,LM6,Nursing Care,C03,Adult Social Services & Housing,CEDAR PARK NURSING HOME,08/06/11,536
Bath & North East Somerset Council,21091773,LM6,Nursing Care,C03,Adult Social Services & Housing,CEDAR PARK NURSING HOME,08/06/11,536
Bath & North East Somerset Council,21091773,LM6,Nursing Care,C03,Adult Social Services & Housing,CEDAR PARK NURSING HOME,08/06/11,536
Bath & North East Somerset Council,21091773,LM6,Nursing Care,C03,Adult Social Services & Housing,CEDAR PARK NURSING HOME,08/06/11,536
Bath & North East Somerset Council,21091773,LM6,Nursing Care,C03,Adult Social Services & Housing,CEDAR PARK NURSING HOME,08/06/11,536
Bath & North East Somerset Council,21091773,LM6,Nursing Care,C03,Adult Social Services & Housing,CEDAR PARK NURSING HOME,08/06/11,536
Bath & North East Somerset Council,21091773,LM6,Nursing Care,C03,Adult Social Services & Housing,CEDAR PARK NURSING HOME,08/06/11,536
Bath & North East Somerset Council,21091773,LM6,Nursing Care,C03,Adult Social Services & Housing,CEDAR PARK NURSING HOME,08/06/11,536
Bath & North East Somerset Council,21091773,LM6,Nursing Care,C03,Adult Social Services & Housing,CEDAR PARK NURSING HOME,08/06/11,536
Bath & North East Somerset Council,21091773,LM6,Nursing Care,C03,Adult Social Services & Housing,CEDAR PARK NURSING HOME,08/06/11,536
Bath & North East Somerset Council,21091773,LM6,Nursing Care,C03,Adult Social Services & Housing,CEDAR PARK NURSING HOME,08/06/11,536
Bath & North East Somerset Council,21091773,LM6,Nursing Care,C03,Adult Social Services & Housing,CEDAR PARK NURSING HOME,08/06/11,536
Bath & North East Somerset Council,21091773,LM6,Nursing Care,C03,Adult Social Services & Housing,CEDAR PARK NURSING HOME,08/06/11,536
Bath & North East Somerset Council,21091773,LM6,Nursing Care,C03,Adult Social Services & Housing,CEDAR PARK NURSING HOME,08/06/11,536
Bath & North East Somerset Council,21091773,LM6,Nursing Care,C03,Adult Social Services & Housing,CEDAR PARK NURSING HOME,08/06/11,536
Bath & North East Somerset Council,21091773,LM6,Nursing Care,C03,Adult Social Services & Housing,CEDAR PARK NURSING HOME,08/06/11,536
Bath & North East Somerset Council,21091773,LM6,Nursing Care,C03,Adult Social Services & Housing,CEDAR PARK NURSING HOME,08/06/11,536
Bath & North East Somerset Council,21091773,LM6,Nursing Care,C03,Adult Social Services & Housing,CEDAR PARK NURSING HOME,08/06/11,536
Bath & North East Somerset Council,21091773,LM6,Nursing Care,C03,Adult Social Services & Housing,CEDAR PARK NURSING HOME,08/06/11,536
Bath & North East Somerset Council,21091773,LM6,Nursing Care,C03,Adult Social Services & Housing,CEDAR PARK NURSING HOME,08/06/11,536
Bath & North East Somerset Council,21091773,LM6,Nursing Care,C03,Adult Social Services & Housing,CEDAR PARK NURSING HOME,08/06/11,536
Bath & North East Somerset Council,21091773,LM6,Nursing Care,C03,Adult Social Services & Housing,CEDAR PARK NURSING HOME,08/06/11,536
Bath & North East Somerset Council,21091773,LM6,Nursing Care,C03,Adult Social Services & Housing,CEDAR PARK NURSING HOME,08/06/11,536
Bath & North East Somerset Council,21091773,LM6,Nursing Care,C03,Adult Social Services & Housing,CEDAR PARK NURSING HOME,08/06/11,536
Bath & North East Somerset Council,21091773,LM6,Nursing Care,C03,Adult Social Services & Housing,CEDAR PARK NURSING HOME,08/06/11,536
Bath & North East Somerset Council,21091773,LM6,Nursing Care,C03,Adult Social Services & Housing,CEDAR PARK NURSING HOME,08/06/11,536
Bath & North East Somerset Council,21091773,LM6,Nursing Care,C03,Adult Social Services & Housing,CEDAR PARK NURSING HOME,08/06/11,536
Bath & North East Somerset Council,21091773,LM6,Nursing Care,C03,Adult Social Services & Housing,CEDAR PARK NURSING HOME,08/06/11,536
Bath & North East Somerset Council,21091773,LM6,Nursing Care,C03,Adult Social Services & Housing,CEDAR PARK NURSING HOME,08/06/11,536
Bath & North East Somerset Council,21091773,LM6,Nursing Care,C03,Adult Social Services & Housing,CEDAR PARK NURSING HOME,08/06/11,536
Bath & North East Somerset Council,21091773,LM6,Nursing Care,C03,Adult Social Services & Housing,CEDAR PARK NURSING HOME,08/06/11,536
Bath & North East Somerset Council,21091773,LM6,Nursing Care,C03,Adult Social Services & Housing,CEDAR PARK NURSING HOME,08/06/11,536
Bath & North East Somerset Council,21091773,LM6,Nursing Care,C03,Adult Social Services & Housing,CEDAR PARK NURSING HOME,08/06/11,536
Bath & North East Somerset Council,21091773,LM6,Nursing Care,C03,Adult Social Services & Housing,CEDAR PARK NURSING HOME,08/06/11,536
Bath & North East Somerset Council,21091773,LM6,Nursing Care,C03,Adult Social Services & Housing,CEDAR PARK NURSING HOME,08/06/11,536
Bath & North East Somerset Council,21091773,LM6,Nursing Care,C03,Adult Social Services & Housing,CEDAR PARK NURSING HOME,08/06/11,536
Bath & North East Somerset Council,21091773,LM6,Nursing Care,C03,Adult Social Services & Housing,CEDAR PARK NURSING HOME,08/06/11,536
Bath & North East Somerset Council,21091773,LM6,Nursing Care,C03,Adult Social Services & Housing,CEDAR PARK NURSING HOME,08/06/11,536
Bath & North East Somerset Council,21091773,LM6,Nursing Care,C03,Adult Social Services & Housing,CEDAR PARK NURSING HOME,08/06/11,536
Bath & North East Somerset Council,21091773,LM6,Nursing Care,C03,Adult Social Services & Housing,CEDAR PARK NURSING HOME,08/06/11,536
Bath & North East Somerset Council,21091773,LM6,Nursing Care,C03,Adult Social Services & Housing,CEDAR PARK NURSING HOME,08/06/11,536
Bath & North East Somerset Council,21091773,LM6,Nursing Care,C03,Adult Social Services & Housing,CEDAR PARK NURSING HOME,08/06/11,536
Bath & North East Somerset Council,21091773,LM6,Nursing Care,C03,Adult Social Services & Housing,CEDAR PARK NURSING HOME,08/06/11,536
Bath & North East Somerset Council,21091773,LM6,Nursing Care,C03,Adult Social Services & Housing,CEDAR PARK NURSING HOME,08/06/11,536
Bath & North East Somerset Council,21091832,LM6,Nursing Care,C03,Adult Social Services & Housing,SOUTHERN CROSS (REDACTED),08/06/11,536
Bath & North East Somerset Council,21091832,LM6,Nursing Care,C03,Adult Social Services & Housing,SOUTHERN CROSS (REDACTED),08/06/11,536
Bath & North East Somerset Council,21091832,LM6,Nursing Care,C03,Adult Social Services & Housing,SOUTHERN CROSS (REDACTED),08/06/11,536
Bath & North East Somerset Council,21091832,LM6,Nursing Care,C03,Adult Social Services & Housing,SOUTHERN CROSS (REDACTED),08/06/11,536
Bath & North East Somerset Council,21091832,LM6,Nursing Care,C03,Adult Social Services & Housing,SOUTHERN CROSS (REDACTED),08/06/11,536
Bath & North East Somerset Council,21091832,LM6,Nursing Care,C03,Adult Social Services & Housing,SOUTHERN CROSS (REDACTED),08/06/11,536
Bath & North East Somerset Council,21091832,LM6,Nursing Care,C03,Adult Social Services & Housing,SOUTHERN CROSS (REDACTED),08/06/11,536
Bath & North East Somerset Council,21091832,LM6,Nursing Care,C03,Adult Social Services & Housing,SOUTHERN CROSS (REDACTED),08/06/11,536
Bath & North East Somerset Council,21091832,LM6,Nursing Care,C03,Adult Social Services & Housing,SOUTHERN CROSS (REDACTED),08/06/11,536
Bath & North East Somerset Council,21091832,LM6,Nursing Care,C03,Adult Social Services & Housing,SOUTHERN CROSS (REDACTED),08/06/11,536
Bath & North East Somerset Council,21091832,LM6,Nursing Care,C03,Adult Social Services & Housing,SOUTHERN CROSS (REDACTED),08/06/11,536
Bath & North East Somerset Council,21091832,LM6,Nursing Care,C03,Adult Social Services & Housing,SOUTHERN CROSS (REDACTED),08/06/11,536
Bath & North East Somerset Council,21091832,LM6,Nursing Care,C03,Adult Social Services & Housing,SOUTHERN CROSS (REDACTED),08/06/11,536
Bath & North East Somerset Council,21091832,LM6,Nursing Care,C03,Adult Social Services & Housing,SOUTHERN CROSS (REDACTED),08/06/11,536
Bath & North East Somerset Council,21091783,LM6,Nursing Care,C03,Adult Social Services & Housing,OAKFIELD,08/06/11,536
Bath & North East Somerset Council,21091783,LM6,Nursing Care,C03,Adult Social Services & Housing,OAKFIELD,08/06/11,536
Bath & North East Somerset Council,21091783,LM6,Nursing Care,C03,Adult Social Services & Housing,OAKFIELD,08/06/11,536
Bath & North East Somerset Council,21091783,LM6,Nursing Care,C03,Adult Social Services & Housing,OAKFIELD,08/06/11,536
Bath & North East Somerset Council,21091783,LM6,Nursing Care,C03,Adult Social Services & Housing,OAKFIELD,08/06/11,536
Bath & North East Somerset Council,21091783,LM6,Nursing Care,C03,Adult Social Services & Housing,OAKFIELD,08/06/11,536
Bath & North East Somerset Council,21091783,LM6,Nursing Care,C03,Adult Social Services & Housing,OAKFIELD,08/06/11,536
Bath & North East Somerset Council,21091783,LM6,Nursing Care,C03,Adult Social Services & Housing,OAKFIELD,08/06/11,536
Bath & North East Somerset Council,21091783,LM6,Nursing Care,C03,Adult Social Services & Housing,OAKFIELD,08/06/11,536
Bath & North East Somerset Council,21091783,LM6,Nursing Care,C03,Adult Social Services & Housing,OAKFIELD,08/06/11,536
Bath & North East Somerset Council,21091783,LM6,Nursing Care,C03,Adult Social Services & Housing,OAKFIELD,08/06/11,536
Bath & North East Somerset Council,21091783,LM6,Nursing Care,C03,Adult Social Services & Housing,OAKFIELD,08/06/11,536
Bath & North East Somerset Council,21091783,LM6,Nursing Care,C03,Adult Social Services & Housing,OAKFIELD,08/06/11,536
Bath & North East Somerset Council,21091783,LM6,Nursing Care,C03,Adult Social Services & Housing,OAKFIELD,08/06/11,536
Bath & North East Somerset Council,21091783,LM6,Nursing Care,C03,Adult Social Services & Housing,OAKFIELD,08/06/11,536
Bath & North East Somerset Council,21091783,LM6,Nursing Care,C03,Adult Social Services & Housing,OAKFIELD,08/06/11,536
Bath & North East Somerset Council,21091783,LM6,Nursing Care,C03,Adult Social Services & Housing,OAKFIELD,08/06/11,536
Bath & North East Somerset Council,21091783,LM6,Nursing Care,C03,Adult Social Services & Housing,OAKFIELD,08/06/11,536
Bath & North East Somerset Council,21091856,LM6,Nursing Care,C03,Adult Social Services & Housing,CHARLTON COURT LTD T/A SUNNYMEDE,08/06/11,536
Bath & North East Somerset Council,21091856,LM6,Nursing Care,C03,Adult Social Services & Housing,CHARLTON COURT LTD T/A SUNNYMEDE,08/06/11,536
Bath & North East Somerset Council,21091856,LM6,Nursing Care,C03,Adult Social Services & Housing,CHARLTON COURT LTD T/A SUNNYMEDE,08/06/11,536
Bath & North East Somerset Council,21091856,LM6,Nursing Care,C03,Adult Social Services & Housing,CHARLTON COURT LTD T/A SUNNYMEDE,08/06/11,536
Bath & North East Somerset Council,21091856,LM6,Nursing Care,C03,Adult Social Services & Housing,CHARLTON COURT LTD T/A SUNNYMEDE,08/06/11,536
Bath & North East Somerset Council,21091856,LM6,Nursing Care,C03,Adult Social Services & Housing,CHARLTON COURT LTD T/A SUNNYMEDE,08/06/11,536
Bath & North East Somerset Council,21091856,LM6,Nursing Care,C03,Adult Social Services & Housing,CHARLTON COURT LTD T/A SUNNYMEDE,08/06/11,536
Bath & North East Somerset Council,21091856,LM6,Nursing Care,C03,Adult Social Services & Housing,CHARLTON COURT LTD T/A SUNNYMEDE,08/06/11,536
Bath & North East Somerset Council,21091856,LM6,Nursing Care,C03,Adult Social Services & Housing,CHARLTON COURT LTD T/A SUNNYMEDE,08/06/11,536
Bath & North East Somerset Council,21091856,LM6,Nursing Care,C03,Adult Social Services & Housing,CHARLTON COURT LTD T/A SUNNYMEDE,08/06/11,536
Bath & North East Somerset Council,21091856,LM6,Nursing Care,C03,Adult Social Services & Housing,CHARLTON COURT LTD T/A SUNNYMEDE,08/06/11,536
Bath & North East Somerset Council,21091856,LM6,Nursing Care,C03,Adult Social Services & Housing,CHARLTON COURT LTD T/A SUNNYMEDE,08/06/11,536
Bath & North East Somerset Council,21091856,LM6,Nursing Care,C03,Adult Social Services & Housing,CHARLTON COURT LTD T/A SUNNYMEDE,08/06/11,536
Bath & North East Somerset Council,21091856,LM6,Nursing Care,C03,Adult Social Services & Housing,CHARLTON COURT LTD T/A SUNNYMEDE,08/06/11,536
Bath & North East Somerset Council,21091856,LM6,Nursing Care,C03,Adult Social Services & Housing,CHARLTON COURT LTD T/A SUNNYMEDE,08/06/11,536
Bath & North East Somerset Council,21091856,LM6,Nursing Care,C03,Adult Social Services & Housing,CHARLTON COURT LTD T/A SUNNYMEDE,08/06/11,536
Bath & North East Somerset Council,21091856,LM6,Nursing Care,C03,Adult Social Services & Housing,CHARLTON COURT LTD T/A SUNNYMEDE,08/06/11,536
Bath & North East Somerset Council,21091856,LM6,Nursing Care,C03,Adult Social Services & Housing,CHARLTON COURT LTD T/A SUNNYMEDE,08/06/11,536
Bath & North East Somerset Council,21091856,LM6,Nursing Care,C03,Adult Social Services & Housing,CHARLTON COURT LTD T/A SUNNYMEDE,08/06/11,536
Bath & North East Somerset Council,21091856,LM6,Nursing Care,C03,Adult Social Services & Housing,CHARLTON COURT LTD T/A SUNNYMEDE,08/06/11,536
Bath & North East Somerset Council,21091856,LM6,Nursing Care,C03,Adult Social Services & Housing,CHARLTON COURT LTD T/A SUNNYMEDE,08/06/11,536
Bath & North East Somerset Council,21091856,LM6,Nursing Care,C03,Adult Social Services & Housing,CHARLTON COURT LTD T/A SUNNYMEDE,08/06/11,536
Bath & North East Somerset Council,21091856,LM6,Nursing Care,C03,Adult Social Services & Housing,CHARLTON COURT LTD T/A SUNNYMEDE,08/06/11,536
Bath & North East Somerset Council,21091856,LM6,Nursing Care,C03,Adult Social Services & Housing,CHARLTON COURT LTD T/A SUNNYMEDE,08/06/11,536
Bath & North East Somerset Council,21091856,LM6,Nursing Care,C03,Adult Social Services & Housing,CHARLTON COURT LTD T/A SUNNYMEDE,08/06/11,536
Bath & North East Somerset Council,21091856,LM6,Nursing Care,C03,Adult Social Services & Housing,CHARLTON COURT LTD T/A SUNNYMEDE,08/06/11,536
Bath & North East Somerset Council,21091856,LM6,Nursing Care,C03,Adult Social Services & Housing,CHARLTON COURT LTD T/A SUNNYMEDE,08/06/11,536
Bath & North East Somerset Council,21091856,LM6,Nursing Care,C03,Adult Social Services & Housing,CHARLTON COURT LTD T/A SUNNYMEDE,08/06/11,536
Bath & North East Somerset Council,21091856,LM6,Nursing Care,C03,Adult Social Services & Housing,CHARLTON COURT LTD T/A SUNNYMEDE,08/06/11,536
Bath & North East Somerset Council,21091856,LM6,Nursing Care,C03,Adult Social Services & Housing,CHARLTON COURT LTD T/A SUNNYMEDE,08/06/11,536
Bath & North East Somerset Council,21091856,LM6,Nursing Care,C03,Adult Social Services & Housing,CHARLTON COURT LTD T/A SUNNYMEDE,08/06/11,536
Bath & North East Somerset Council,21091856,LM6,Nursing Care,C03,Adult Social Services & Housing,CHARLTON COURT LTD T/A SUNNYMEDE,08/06/11,536
Bath & North East Somerset Council,21091856,LM6,Nursing Care,C03,Adult Social Services & Housing,CHARLTON COURT LTD T/A SUNNYMEDE,08/06/11,536
Bath & North East Somerset Council,21091856,LM6,Nursing Care,C03,Adult Social Services & Housing,CHARLTON COURT LTD T/A SUNNYMEDE,08/06/11,536
Bath & North East Somerset Council,21091856,LM6,Nursing Care,C03,Adult Social Services & Housing,CHARLTON COURT LTD T/A SUNNYMEDE,08/06/11,536
Bath & North East Somerset Council,21091856,LM6,Nursing Care,C03,Adult Social Services & Housing,CHARLTON COURT LTD T/A SUNNYMEDE,08/06/11,536
Bath & North East Somerset Council,21091856,LM6,Nursing Care,C03,Adult Social Services & Housing,CHARLTON COURT LTD T/A SUNNYMEDE,08/06/11,536
Bath & North East Somerset Council,21091856,LM6,Nursing Care,C03,Adult Social Services & Housing,CHARLTON COURT LTD T/A SUNNYMEDE,08/06/11,536
Bath & North East Somerset Council,21091856,LM6,Nursing Care,C03,Adult Social Services & Housing,CHARLTON COURT LTD T/A SUNNYMEDE,08/06/11,536
Bath & North East Somerset Council,21091856,LM6,Nursing Care,C03,Adult Social Services & Housing,CHARLTON COURT LTD T/A SUNNYMEDE,08/06/11,536
Bath & North East Somerset Council,21091856,LM6,Nursing Care,C03,Adult Social Services & Housing,CHARLTON COURT LTD T/A SUNNYMEDE,08/06/11,536
Bath & North East Somerset Council,21091856,LM6,Nursing Care,C03,Adult Social Services & Housing,CHARLTON COURT LTD T/A SUNNYMEDE,08/06/11,536
Bath & North East Somerset Council,21091856,LM6,Nursing Care,C03,Adult Social Services & Housing,CHARLTON COURT LTD T/A SUNNYMEDE,08/06/11,536
Bath & North East Somerset Council,21091856,LM6,Nursing Care,C03,Adult Social Services & Housing,CHARLTON COURT LTD T/A SUNNYMEDE,08/06/11,536
Bath & North East Somerset Council,21091856,LM6,Nursing Care,C03,Adult Social Services & Housing,CHARLTON COURT LTD T/A SUNNYMEDE,08/06/11,536
Bath & North East Somerset Council,21091856,LM6,Nursing Care,C03,Adult Social Services & Housing,CHARLTON COURT LTD T/A SUNNYMEDE,08/06/11,536
Bath & North East Somerset Council,21091856,LM6,Nursing Care,C03,Adult Social Services & Housing,CHARLTON COURT LTD T/A SUNNYMEDE,08/06/11,536
Bath & North East Somerset Council,21091856,LM6,Nursing Care,C03,Adult Social Services & Housing,CHARLTON COURT LTD T/A SUNNYMEDE,08/06/11,536
Bath & North East Somerset Council,21091856,LM6,Nursing Care,C03,Adult Social Services & Housing,CHARLTON COURT LTD T/A SUNNYMEDE,08/06/11,536
Bath & North East Somerset Council,21091856,LM6,Nursing Care,C03,Adult Social Services & Housing,CHARLTON COURT LTD T/A SUNNYMEDE,08/06/11,536
Bath & North East Somerset Council,21091856,LM6,Nursing Care,C03,Adult Social Services & Housing,CHARLTON COURT LTD T/A SUNNYMEDE,08/06/11,536
Bath & North East Somerset Council,21091856,LM6,Nursing Care,C03,Adult Social Services & Housing,CHARLTON COURT LTD T/A SUNNYMEDE,08/06/11,536
Bath & North East Somerset Council,21091856,LM6,Nursing Care,C03,Adult Social Services & Housing,CHARLTON COURT LTD T/A SUNNYMEDE,08/06/11,536
Bath & North East Somerset Council,21091891,LM6,Nursing Care,C03,Adult Social Services & Housing,ASHBOURNE HOMES LTD WICKWAR NURSING HOME,08/06/11,536
Bath & North East Somerset Council,21091891,LM6,Nursing Care,C03,Adult Social Services & Housing,ASHBOURNE HOMES LTD WICKWAR NURSING HOME,08/06/11,536
Bath & North East Somerset Council,21091892,LM6,Nursing Care,C03,Adult Social Services & Housing,T C CAREHOME LTD,08/06/11,536
Bath & North East Somerset Council,21091892,LM6,Nursing Care,C03,Adult Social Services & Housing,T C CAREHOME LTD,08/06/11,536
Bath & North East Somerset Council,21091892,LM6,Nursing Care,C03,Adult Social Services & Housing,T C CAREHOME LTD,08/06/11,536
Bath & North East Somerset Council,21091892,LM6,Nursing Care,C03,Adult Social Services & Housing,T C CAREHOME LTD,08/06/11,536
Bath & North East Somerset Council,21091892,LM6,Nursing Care,C03,Adult Social Services & Housing,T C CAREHOME LTD,08/06/11,536
Bath & North East Somerset Council,21091892,LM6,Nursing Care,C03,Adult Social Services & Housing,T C CAREHOME LTD,08/06/11,536
Bath & North East Somerset Council,21091892,LM6,Nursing Care,C03,Adult Social Services & Housing,T C CAREHOME LTD,08/06/11,536
Bath & North East Somerset Council,21091892,LM6,Nursing Care,C03,Adult Social Services & Housing,T C CAREHOME LTD,08/06/11,536
Bath & North East Somerset Council,21091892,LM6,Nursing Care,C03,Adult Social Services & Housing,T C CAREHOME LTD,08/06/11,536
Bath & North East Somerset Council,21091892,LM6,Nursing Care,C03,Adult Social Services & Housing,T C CAREHOME LTD,08/06/11,536
Bath & North East Somerset Council,21091892,LM6,Nursing Care,C03,Adult Social Services & Housing,T C CAREHOME LTD,08/06/11,536
Bath & North East Somerset Council,21091892,LM6,Nursing Care,C03,Adult Social Services & Housing,T C CAREHOME LTD,08/06/11,536
Bath & North East Somerset Council,21091892,LM6,Nursing Care,C03,Adult Social Services & Housing,T C CAREHOME LTD,08/06/11,536
Bath & North East Somerset Council,21091892,LM6,Nursing Care,C03,Adult Social Services & Housing,T C CAREHOME LTD,08/06/11,536
Bath & North East Somerset Council,21091892,LM6,Nursing Care,C03,Adult Social Services & Housing,T C CAREHOME LTD,08/06/11,536
Bath & North East Somerset Council,21091892,LM6,Nursing Care,C03,Adult Social Services & Housing,T C CAREHOME LTD,08/06/11,536
Bath & North East Somerset Council,21091893,LM6,Nursing Care,C03,Adult Social Services & Housing,MIMOSA HEALTHCARE NO. 4 BRISTOL HOMES,08/06/11,536
Bath & North East Somerset Council,21091893,LM6,Nursing Care,C03,Adult Social Services & Housing,MIMOSA HEALTHCARE NO. 4 BRISTOL HOMES,08/06/11,536
Bath & North East Somerset Council,21091906,LM6,Nursing Care,C03,Adult Social Services & Housing,CARESTREAM LTD,08/06/11,536
Bath & North East Somerset Council,21091906,LM6,Nursing Care,C03,Adult Social Services & Housing,CARESTREAM LTD,08/06/11,536
Bath & North East Somerset Council,21091907,LM6,Nursing Care,C03,Adult Social Services & Housing,BUPA CARE SERVICES BACS RECEIPTS,08/06/11,536
Bath & North East Somerset Council,21091907,LM6,Nursing Care,C03,Adult Social Services & Housing,BUPA CARE SERVICES BACS RECEIPTS,08/06/11,536
Bath & North East Somerset Council,21091911,LM6,Nursing Care,C03,Adult Social Services & Housing,FOREST CARE LTD - OAK LODGE,08/06/11,536
Bath & North East Somerset Council,21091911,LM6,Nursing Care,C03,Adult Social Services & Housing,FOREST CARE LTD - OAK LODGE,08/06/11,536
Bath & North East Somerset Council,21091916,LM6,Nursing Care,C03,Adult Social Services & Housing,MIMOSA HEALTHCARE BRISTOL HOMES,08/06/11,536
Bath & North East Somerset Council,21091916,LM6,Nursing Care,C03,Adult Social Services & Housing,MIMOSA HEALTHCARE BRISTOL HOMES,08/06/11,536
Bath & North East Somerset Council,21091960,LM6,Nursing Care,C03,Adult Social Services & Housing,LAUDCARE LTD RE LADYMEAD CARE HOME,08/06/11,536
Bath & North East Somerset Council,21091960,LM6,Nursing Care,C03,Adult Social Services & Housing,LAUDCARE LTD RE LADYMEAD CARE HOME,08/06/11,536
Bath & North East Somerset Council,21091802,LL3,Supported Living,C03,Adult Social Services & Housing,SUPPORTED INDEPENDENCE,08/06/11,539.43
Bath & North East Somerset Council,21091802,LL3,Supported Living,C03,Adult Social Services & Housing,SUPPORTED INDEPENDENCE,08/06/11,539.43
Bath & North East Somerset Council,21091802,LL3,Supported Living,C03,Adult Social Services & Housing,SUPPORTED INDEPENDENCE,08/06/11,539.43
Bath & North East Somerset Council,21091802,LL3,Supported Living,C03,Adult Social Services & Housing,SUPPORTED INDEPENDENCE,08/06/11,539.43
Bath & North East Somerset Council,10613768,LJ2,Legal Fees,C02,Resources,PREMIER PAPER,08/06/11,540.5
Bath & North East Somerset Council,21091773,LM6,Nursing Care,C03,Adult Social Services & Housing,CEDAR PARK NURSING HOME,08/06/11,547
Bath & North East Somerset Council,21091773,LM6,Nursing Care,C03,Adult Social Services & Housing,CEDAR PARK NURSING HOME,08/06/11,547
Bath & North East Somerset Council,21091887,LM3,Residential Care,C03,Adult Social Services & Housing,BELMONT VILLA RESIDENTIAL NURSING HOME LTD,08/06/11,550
Bath & North East Somerset Council,21091887,LM3,Residential Care,C03,Adult Social Services & Housing,BELMONT VILLA RESIDENTIAL NURSING HOME LTD,08/06/11,550
Bath & North East Somerset Council,10613393,EA1,Training,C02,Resources,IRRV SERVICES LIMITED,08/06/11,550
Bath & North East Somerset Council,10611559,LJ1,Consultants Fees,C06,Service Delivery,BASEMAP LTD,08/06/11,550
Bath & North East Somerset Council,10611871,LJ1,Consultants Fees,C02,Resources,PHIL CHAMBERLAIN,08/06/11,560
Bath & North East Somerset Council,21091925,LM6,Nursing Care,C03,Adult Social Services & Housing,BUPACARE SERVICE BACS RECEIPTS,08/06/11,565.8
Bath & North East Somerset Council,21091925,LM6,Nursing Care,C03,Adult Social Services & Housing,BUPACARE SERVICE BACS RECEIPTS,08/06/11,565.8
Bath & North East Somerset Council,21091808,LM3,Residential Care,C03,Adult Social Services & Housing,ORCHARD VALE TRUST,08/06/11,567.05
Bath & North East Somerset Council,21091808,LM3,Residential Care,C03,Adult Social Services & Housing,ORCHARD VALE TRUST,08/06/11,567.05
Bath & North East Somerset Council,21091953,LM6,Nursing Care,C03,Adult Social Services & Housing,SOUTHERN CROSS HEALTHCARE,08/06/11,568.7
Bath & North East Somerset Council,21091953,LM6,Nursing Care,C03,Adult Social Services & Housing,SOUTHERN CROSS HEALTHCARE,08/06/11,568.7
Bath & North East Somerset Council,21091768,LM6,Nursing Care,C03,Adult Social Services & Housing,STANTON COURT,08/06/11,569
Bath & North East Somerset Council,21091768,LM6,Nursing Care,C03,Adult Social Services & Housing,STANTON COURT,08/06/11,569
Bath & North East Somerset Council,21091816,LM6,Nursing Care,C03,Adult Social Services & Housing,SHAW HOMES HOUSING ASSOC LTD,08/06/11,569
Bath & North East Somerset Council,21091816,LM6,Nursing Care,C03,Adult Social Services & Housing,SHAW HOMES HOUSING ASSOC LTD,08/06/11,569
Bath & North East Somerset Council,21091773,LM6,Nursing Care,C03,Adult Social Services & Housing,CEDAR PARK NURSING HOME,08/06/11,569
Bath & North East Somerset Council,21091773,LM6,Nursing Care,C03,Adult Social Services & Housing,CEDAR PARK NURSING HOME,08/06/11,569
Bath & North East Somerset Council,21091773,LM6,Nursing Care,C03,Adult Social Services & Housing,CEDAR PARK NURSING HOME,08/06/11,569
Bath & North East Somerset Council,21091773,LM6,Nursing Care,C03,Adult Social Services & Housing,CEDAR PARK NURSING HOME,08/06/11,569
Bath & North East Somerset Council,21091773,LM6,Nursing Care,C03,Adult Social Services & Housing,CEDAR PARK NURSING HOME,08/06/11,569
Bath & North East Somerset Council,21091773,LM6,Nursing Care,C03,Adult Social Services & Housing,CEDAR PARK NURSING HOME,08/06/11,569
Bath & North East Somerset Council,21091773,LM6,Nursing Care,C03,Adult Social Services & Housing,CEDAR PARK NURSING HOME,08/06/11,569
Bath & North East Somerset Council,21091773,LM6,Nursing Care,C03,Adult Social Services & Housing,CEDAR PARK NURSING HOME,08/06/11,569
Bath & North East Somerset Council,21091832,LM6,Nursing Care,C03,Adult Social Services & Housing,SOUTHERN CROSS (REDACTED),08/06/11,569
Bath & North East Somerset Council,21091832,LM6,Nursing Care,C03,Adult Social Services & Housing,SOUTHERN CROSS (REDACTED),08/06/11,569
Bath & North East Somerset Council,21091832,LM6,Nursing Care,C03,Adult Social Services & Housing,SOUTHERN CROSS (REDACTED),08/06/11,569
Bath & North East Somerset Council,21091832,LM6,Nursing Care,C03,Adult Social Services & Housing,SOUTHERN CROSS (REDACTED),08/06/11,569
Bath & North East Somerset Council,21091831,LM6,Nursing Care,C03,Adult Social Services & Housing,SOUTHERN CROSS (REDACTED),08/06/11,569
Bath & North East Somerset Council,21091831,LM6,Nursing Care,C03,Adult Social Services & Housing,SOUTHERN CROSS (REDACTED),08/06/11,569
Bath & North East Somerset Council,21091783,LM6,Nursing Care,C03,Adult Social Services & Housing,OAKFIELD,08/06/11,569
Bath & North East Somerset Council,21091783,LM6,Nursing Care,C03,Adult Social Services & Housing,OAKFIELD,08/06/11,569
Bath & North East Somerset Council,21091792,LM3,Residential Care,C03,Adult Social Services & Housing,FERFOOT LTD,08/06/11,569
Bath & North East Somerset Council,21091792,LM3,Residential Care,C03,Adult Social Services & Housing,FERFOOT LTD,08/06/11,569
Bath & North East Somerset Council,21091856,LM6,Nursing Care,C03,Adult Social Services & Housing,CHARLTON COURT LTD T/A SUNNYMEDE,08/06/11,569
Bath & North East Somerset Council,21091856,LM6,Nursing Care,C03,Adult Social Services & Housing,CHARLTON COURT LTD T/A SUNNYMEDE,08/06/11,569
Bath & North East Somerset Council,21091856,LM6,Nursing Care,C03,Adult Social Services & Housing,CHARLTON COURT LTD T/A SUNNYMEDE,08/06/11,569
Bath & North East Somerset Council,21091856,LM6,Nursing Care,C03,Adult Social Services & Housing,CHARLTON COURT LTD T/A SUNNYMEDE,08/06/11,569
Bath & North East Somerset Council,21091892,LM6,Nursing Care,C03,Adult Social Services & Housing,T C CAREHOME LTD,08/06/11,569
Bath & North East Somerset Council,21091892,LM6,Nursing Care,C03,Adult Social Services & Housing,T C CAREHOME LTD,08/06/11,569
Bath & North East Somerset Council,21091910,LL3,Supported Living,C03,Adult Social Services & Housing,OPTIONS FOR LIVING LTD,08/06/11,569.3
Bath & North East Somerset Council,21091910,LL3,Supported Living,C03,Adult Social Services & Housing,OPTIONS FOR LIVING LTD,08/06/11,569.3
Bath & North East Somerset Council,21091773,LM6,Nursing Care,C03,Adult Social Services & Housing,CEDAR PARK NURSING HOME,08/06/11,571
Bath & North East Somerset Council,21091773,LM6,Nursing Care,C03,Adult Social Services & Housing,CEDAR PARK NURSING HOME,08/06/11,571
Bath & North East Somerset Council,21091800,LM3,Residential Care,C03,Adult Social Services & Housing,FREEWAYS TRUST LTD,08/06/11,572.3
Bath & North East Somerset Council,21091800,LM3,Residential Care,C03,Adult Social Services & Housing,FREEWAYS TRUST LTD,08/06/11,572.3
Bath & North East Somerset Council,10611417,LF2,Photocopying,Z98,West of England Partnership,PORTRAYAL LTD,08/06/11,575.86
Bath & North East Somerset Council,21091795,LM3,Residential Care,C03,Adult Social Services & Housing,6 THE AVENUE -KEYNSHAM MENCAP,08/06/11,577.87
Bath & North East Somerset Council,21091795,LM3,Residential Care,C03,Adult Social Services & Housing,6 THE AVENUE -KEYNSHAM MENCAP,08/06/11,577.87
Bath & North East Somerset Council,21091795,LM3,Residential Care,C03,Adult Social Services & Housing,6 THE AVENUE -KEYNSHAM MENCAP,08/06/11,577.87
Bath & North East Somerset Council,21091795,LM3,Residential Care,C03,Adult Social Services & Housing,6 THE AVENUE -KEYNSHAM MENCAP,08/06/11,577.87
Bath & North East Somerset Council,21091795,LM3,Residential Care,C03,Adult Social Services & Housing,6 THE AVENUE -KEYNSHAM MENCAP,08/06/11,577.87
Bath & North East Somerset Council,21091795,LM3,Residential Care,C03,Adult Social Services & Housing,6 THE AVENUE -KEYNSHAM MENCAP,08/06/11,577.87
Bath & North East Somerset Council,21091795,LM3,Residential Care,C03,Adult Social Services & Housing,6 THE AVENUE -KEYNSHAM MENCAP,08/06/11,577.87
Bath & North East Somerset Council,21091795,LM3,Residential Care,C03,Adult Social Services & Housing,6 THE AVENUE -KEYNSHAM MENCAP,08/06/11,577.87
Bath & North East Somerset Council,21091795,LM3,Residential Care,C03,Adult Social Services & Housing,6 THE AVENUE -KEYNSHAM MENCAP,08/06/11,577.87
Bath & North East Somerset Council,21091795,LM3,Residential Care,C03,Adult Social Services & Housing,6 THE AVENUE -KEYNSHAM MENCAP,08/06/11,577.87
Bath & North East Somerset Council,21091802,LL3,Supported Living,C03,Adult Social Services & Housing,SUPPORTED INDEPENDENCE,08/06/11,582.63
Bath & North East Somerset Council,21091802,LL3,Supported Living,C03,Adult Social Services & Housing,SUPPORTED INDEPENDENCE,08/06/11,582.63
Bath & North East Somerset Council,10614477,LC1,Provisions,C03,Adult Social Services & Housing,L & F JONES HOLDINGS LTD,08/06/11,585.46
Bath & North East Somerset Council,21091950,LM6,Nursing Care,C03,Adult Social Services & Housing,STOCKS HALL CARE HOMES LTD,08/06/11,588
Bath & North East Somerset Council,21091950,LM6,Nursing Care,C03,Adult Social Services & Housing,STOCKS HALL CARE HOMES LTD,08/06/11,588
Bath & North East Somerset Council,21091894,LM6,Nursing Care,C03,Adult Social Services & Housing,WOODLANDS & HILL BROW LTD,08/06/11,588.05
Bath & North East Somerset Council,21091894,LM6,Nursing Care,C03,Adult Social Services & Housing,WOODLANDS & HILL BROW LTD,08/06/11,588.05
Bath & North East Somerset Council,21091773,LM6,Nursing Care,C03,Adult Social Services & Housing,CEDAR PARK NURSING HOME,08/06/11,590
Bath & North East Somerset Council,21091773,LM6,Nursing Care,C03,Adult Social Services & Housing,CEDAR PARK NURSING HOME,08/06/11,590
Bath & North East Somerset Council,21091927,LM6,Nursing Care,C03,Adult Social Services & Housing,BUPACARE SERVICES BACS RECEIPTS,08/06/11,591
Bath & North East Somerset Council,21091927,LM6,Nursing Care,C03,Adult Social Services & Housing,BUPACARE SERVICES BACS RECEIPTS,08/06/11,591
Bath & North East Somerset Council,21091843,LL3,Supported Living,C03,Adult Social Services & Housing,HOME FARM TRUST,08/06/11,593.3
Bath & North East Somerset Council,21091843,LL3,Supported Living,C03,Adult Social Services & Housing,HOME FARM TRUST,08/06/11,593.3
Bath & North East Somerset Council,10611951,LA7,Purchases for Resale,C06,Service Delivery,THE BOOK SERVICE LTD,08/06/11,593.39
Bath & North East Somerset Council,21091877,LM3,Residential Care,C03,Adult Social Services & Housing,DEVON SHELTERED HOMES TRUST - REDACTED,08/06/11,594.35
Bath & North East Somerset Council,21091877,LM3,Residential Care,C03,Adult Social Services & Housing,DEVON SHELTERED HOMES TRUST - REDACTED,08/06/11,594.35
Bath & North East Somerset Council,10613195,LM9,Day Care,C03,Adult Social Services & Housing,MR N BRADBURY,08/06/11,595
Bath & North East Somerset Council,21091917,LM6,Nursing Care,C03,Adult Social Services & Housing,LIFESTYLE CARE (2005) PLC,08/06/11,597.4
Bath & North East Somerset Council,21091917,LM6,Nursing Care,C03,Adult Social Services & Housing,LIFESTYLE CARE (2005) PLC,08/06/11,597.4
Bath & North East Somerset Council,10611888,LA7,Purchases for Resale,C06,Service Delivery,NATURAL PRODUCTS,08/06/11,597.6
Bath & North East Somerset Council,10613069,LJ8,PCB External Fees,C04,Development & Major Projects,SYLVIE PIERCE,08/06/11,600
Bath & North East Somerset Council,21091773,LM6,Nursing Care,C03,Adult Social Services & Housing,CEDAR PARK NURSING HOME,08/06/11,600
Bath & North East Somerset Council,21091773,LM6,Nursing Care,C03,Adult Social Services & Housing,CEDAR PARK NURSING HOME,08/06/11,600
Bath & North East Somerset Council,10613192,LM9,Day Care,C03,Adult Social Services & Housing,MR N BRADBURY,08/06/11,600
Bath & North East Somerset Council,10613527,HA4,Responsive Maintenance PCB,C02,Resources,MANNINGS FACILITIES MANAGEMENT LTD,08/06/11,600.2
Bath & North East Somerset Council,21092207,LM2,Foster Carer Allowances,C05,Children's Services,REDACTED,08/06/11,601.01
Bath & North East Somerset Council,21092207,LM2,Foster Carer Allowances,C05,Children's Services,REDACTED,08/06/11,601.01
Bath & North East Somerset Council,21091827,LL3,Supported Living,C03,Adult Social Services & Housing,DIMENSIONS (UK) LTD,08/06/11,615.11
Bath & North East Somerset Council,21091827,LL3,Supported Living,C03,Adult Social Services & Housing,DIMENSIONS (UK) LTD,08/06/11,615.11
Bath & North East Somerset Council,21091917,LM6,Nursing Care,C03,Adult Social Services & Housing,LIFESTYLE CARE (2005) PLC,08/06/11,618
Bath & North East Somerset Council,21091917,LM6,Nursing Care,C03,Adult Social Services & Housing,LIFESTYLE CARE (2005) PLC,08/06/11,618
Bath & North East Somerset Council,21091802,LL3,Supported Living,C03,Adult Social Services & Housing,SUPPORTED INDEPENDENCE,08/06/11,620.37
Bath & North East Somerset Council,21091802,LL3,Supported Living,C03,Adult Social Services & Housing,SUPPORTED INDEPENDENCE,08/06/11,620.37
Bath & North East Somerset Council,21091817,LM3,Residential Care,C03,Adult Social Services & Housing,BATH MIND,08/06/11,639.79
Bath & North East Somerset Council,21091817,LM3,Residential Care,C03,Adult Social Services & Housing,BATH MIND,08/06/11,639.79
Bath & North East Somerset Council,21091817,LM3,Residential Care,C03,Adult Social Services & Housing,BATH MIND,08/06/11,639.79
Bath & North East Somerset Council,21091817,LM3,Residential Care,C03,Adult Social Services & Housing,BATH MIND,08/06/11,639.79
Bath & North East Somerset Council,21091817,LM3,Residential Care,C03,Adult Social Services & Housing,BATH MIND,08/06/11,639.79
Bath & North East Somerset Council,21091817,LM3,Residential Care,C03,Adult Social Services & Housing,BATH MIND,08/06/11,639.79
Bath & North East Somerset Council,21091817,LM3,Residential Care,C03,Adult Social Services & Housing,BATH MIND,08/06/11,639.79
Bath & North East Somerset Council,21091817,LM3,Residential Care,C03,Adult Social Services & Housing,BATH MIND,08/06/11,639.79
Bath & North East Somerset Council,21091817,LM3,Residential Care,C03,Adult Social Services & Housing,BATH MIND,08/06/11,639.79
Bath & North East Somerset Council,21091817,LM3,Residential Care,C03,Adult Social Services & Housing,BATH MIND,08/06/11,639.79
Bath & North East Somerset Council,21091817,LM3,Residential Care,C03,Adult Social Services & Housing,BATH MIND,08/06/11,639.79
Bath & North East Somerset Council,21091817,LM3,Residential Care,C03,Adult Social Services & Housing,BATH MIND,08/06/11,639.79
Bath & North East Somerset Council,21091817,LM3,Residential Care,C03,Adult Social Services & Housing,BATH MIND,08/06/11,639.79
Bath & North East Somerset Council,21091817,LM3,Residential Care,C03,Adult Social Services & Housing,BATH MIND,08/06/11,639.79
Bath & North East Somerset Council,21091921,LM6,Nursing Care,C03,Adult Social Services & Housing,CARE FIRST CARE HOMES LTD,08/06/11,650
Bath & North East Somerset Council,21091921,LM6,Nursing Care,C03,Adult Social Services & Housing,CARE FIRST CARE HOMES LTD,08/06/11,650
Bath & North East Somerset Council,21091932,LM6,Nursing Care,C03,Adult Social Services & Housing,FLOLLIE INVESTMENTS LTD T/A STANTON NURSING HOME,08/06/11,650
Bath & North East Somerset Council,21091932,LM6,Nursing Care,C03,Adult Social Services & Housing,FLOLLIE INVESTMENTS LTD T/A STANTON NURSING HOME,08/06/11,650
Bath & North East Somerset Council,10612891,HA4,Responsive Maintenance PCB,C02,Resources,K DOUGHTY,08/06/11,650
Bath & North East Somerset Council,21091798,LM3,Residential Care,C03,Adult Social Services & Housing,FREEWAYS TRUST LTD,08/06/11,664.7
Bath & North East Somerset Council,21091798,LM3,Residential Care,C03,Adult Social Services & Housing,FREEWAYS TRUST LTD,08/06/11,664.7
Bath & North East Somerset Council,10614160,LW9,Other Expenses,C02,Resources,INFORMATION COMMISSIONER,08/06/11,665
Bath & North East Somerset Council,21091783,LM6,Nursing Care,C03,Adult Social Services & Housing,OAKFIELD,08/06/11,675.99
Bath & North East Somerset Council,21091783,LM6,Nursing Care,C03,Adult Social Services & Housing,OAKFIELD,08/06/11,675.99
Bath & North East Somerset Council,21092127,LM2,Foster Carer Allowances,C05,Children's Services,REDACTED,08/06/11,680.42
Bath & North East Somerset Council,21092207,LM2,Foster Carer Allowances,C05,Children's Services,REDACTED,08/06/11,684.62
Bath & North East Somerset Council,21091798,LM3,Residential Care,C03,Adult Social Services & Housing,FREEWAYS TRUST LTD,08/06/11,694.11
Bath & North East Somerset Council,21091798,LM3,Residential Care,C03,Adult Social Services & Housing,FREEWAYS TRUST LTD,08/06/11,694.11
Bath & North East Somerset Council,10612244,LA1,Equipment Purchase,C05,Children's Services,S DAVIES T/A BATH BLIND CO,08/06/11,695
Bath & North East Somerset Council,10613504,LJ3,Other Services to the Council,C06,Service Delivery,TOM LEDBURY,08/06/11,700
Bath & North East Somerset Council,21091889,LM3,Residential Care,C03,Adult Social Services & Housing,ALPINE VILLA CARE HOME LTD,08/06/11,700
Bath & North East Somerset Council,21091889,LM3,Residential Care,C03,Adult Social Services & Housing,ALPINE VILLA CARE HOME LTD,08/06/11,700
Bath & North East Somerset Council,21091853,LM6,Nursing Care,C03,Adult Social Services & Housing,BARCHESTER HEALTHCARE,08/06/11,700
Bath & North East Somerset Council,21091853,LM6,Nursing Care,C03,Adult Social Services & Housing,BARCHESTER HEALTHCARE,08/06/11,700
Bath & North East Somerset Council,10613196,LM9,Day Care,C03,Adult Social Services & Housing,MR N BRADBURY,08/06/11,700
Bath & North East Somerset Council,21091827,LL3,Supported Living,C03,Adult Social Services & Housing,DIMENSIONS (UK) LTD,08/06/11,702.98
Bath & North East Somerset Council,21091827,LL3,Supported Living,C03,Adult Social Services & Housing,DIMENSIONS (UK) LTD,08/06/11,702.98
Bath & North East Somerset Council,10613959,3C4,PCB Building Works,C05,Children's Services,JANE'S POND LANDSCAPING,08/06/11,705.12
Bath & North East Somerset Council,21091937,LM3,Residential Care,C03,Adult Social Services & Housing,CAMPANIA CARE HOME,08/06/11,720
Bath & North East Somerset Council,10612080,LL1,Services to Clients,C03,Adult Social Services & Housing,ASHGROVE GUEST HOUSE,08/06/11,720
Bath & North East Somerset Council,10611807,LL1,Services to Clients,C03,Adult Social Services & Housing,ASHGROVE GUEST HOUSE,08/06/11,720
Bath & North East Somerset Council,21091881,LM3,Residential Care,C03,Adult Social Services & Housing,BOLE ALLER HOUSE LTD,08/06/11,721.42
Bath & North East Somerset Council,21091881,LM3,Residential Care,C03,Adult Social Services & Housing,BOLE ALLER HOUSE LTD,08/06/11,721.42
Bath & North East Somerset Council,21091797,LM3,Residential Care,C03,Adult Social Services & Housing,CORNERSTONES UK LTD,08/06/11,729.81
Bath & North East Somerset Council,21091797,LM3,Residential Care,C03,Adult Social Services & Housing,CORNERSTONES UK LTD,08/06/11,729.81
Bath & North East Somerset Council,10614267,LF1,Printing/Design,C06,Service Delivery,OPALPRINT,08/06/11,731
Bath & North East Somerset Council,21091783,LM6,Nursing Care,C03,Adult Social Services & Housing,OAKFIELD,08/06/11,733
Bath & North East Somerset Council,21091783,LM6,Nursing Care,C03,Adult Social Services & Housing,OAKFIELD,08/06/11,733
Bath & North East Somerset Council,21092177,LM2,Foster Carer Allowances,C05,Children's Services,REDACTED,08/06/11,733
Bath & North East Somerset Council,21092143,LM2,Foster Carer Allowances,C05,Children's Services,REDACTED,08/06/11,742.84
Bath & North East Somerset Council,21091802,LM3,Residential Care,C03,Adult Social Services & Housing,SUPPORTED INDEPENDENCE,08/06/11,747
Bath & North East Somerset Council,21091802,LM3,Residential Care,C03,Adult Social Services & Housing,SUPPORTED INDEPENDENCE,08/06/11,747
Bath & North East Somerset Council,21091853,LM6,Nursing Care,C03,Adult Social Services & Housing,BARCHESTER HEALTHCARE,08/06/11,750
Bath & North East Somerset Council,21091853,LM6,Nursing Care,C03,Adult Social Services & Housing,BARCHESTER HEALTHCARE,08/06/11,750
Bath & North East Somerset Council,21092171,LM2,Foster Carer Allowances,C05,Children's Services,REDACTED,08/06/11,750
Bath & North East Somerset Council,21092147,LM2,Foster Carer Allowances,C05,Children's Services,REDACTED,08/06/11,771.98
Bath & North East Somerset Council,21092147,LM2,Foster Carer Allowances,C05,Children's Services,REDACTED,08/06/11,771.98
Bath & North East Somerset Council,21092148,LM2,Foster Carer Allowances,C05,Children's Services,REDACTED,08/06/11,771.98
Bath & North East Somerset Council,21092148,LM2,Foster Carer Allowances,C05,Children's Services,REDACTED,08/06/11,771.98
Bath & North East Somerset Council,21091899,LM3,Residential Care,C03,Adult Social Services & Housing,VILLAGE HOMES (SOMERSET) LTD,08/06/11,777.07
Bath & North East Somerset Council,21091899,LM3,Residential Care,C03,Adult Social Services & Housing,VILLAGE HOMES (SOMERSET) LTD,08/06/11,777.07
Bath & North East Somerset Council,21091827,LL3,Supported Living,C03,Adult Social Services & Housing,DIMENSIONS (UK) LTD,08/06/11,782.07
Bath & North East Somerset Council,21091827,LL3,Supported Living,C03,Adult Social Services & Housing,DIMENSIONS (UK) LTD,08/06/11,782.07
Bath & North East Somerset Council,21092101,LM2,Foster Carer Allowances,C05,Children's Services,REDACTED,08/06/11,782.92
Bath & North East Somerset Council,21092145,LM2,Foster Carer Allowances,C05,Children's Services,REDACTED,08/06/11,790.7
Bath & North East Somerset Council,21092145,LM2,Foster Carer Allowances,C05,Children's Services,REDACTED,08/06/11,790.7
Bath & North East Somerset Council,21092145,LM2,Foster Carer Allowances,C05,Children's Services,REDACTED,08/06/11,790.7
Bath & North East Somerset Council,21092149,LM2,Foster Carer Allowances,C05,Children's Services,REDACTED,08/06/11,790.7
Bath & North East Somerset Council,21092149,LM2,Foster Carer Allowances,C05,Children's Services,REDACTED,08/06/11,790.7
Bath & North East Somerset Council,10613793,3G1,Grants/Advances,C03,Adult Social Services & Housing,LIFTECH.ORG LTD,08/06/11,792
Bath & North East Somerset Council,21092092,LM2,Foster Carer Allowances,C05,Children's Services,REDACTED,08/06/11,794.86
Bath & North East Somerset Council,21092092,LM2,Foster Carer Allowances,C05,Children's Services,REDACTED,08/06/11,794.86
Bath & North East Somerset Council,21091848,LM3,Residential Care,C03,Adult Social Services & Housing,MANOR COMMUNITY CARE HOME,08/06/11,798
Bath & North East Somerset Council,21091848,LM3,Residential Care,C03,Adult Social Services & Housing,MANOR COMMUNITY CARE HOME,08/06/11,798
Bath & North East Somerset Council,21091954,LM6,Nursing Care,C03,Adult Social Services & Housing,WOTTON RISE NURSING HOME LTD,08/06/11,800
Bath & North East Somerset Council,21091954,LM6,Nursing Care,C03,Adult Social Services & Housing,WOTTON RISE NURSING HOME LTD,08/06/11,800
Bath & North East Somerset Council,21092170,LM2,Foster Carer Allowances,C05,Children's Services,REDACTED,08/06/11,800
Bath & North East Somerset Council,21092170,LM2,Foster Carer Allowances,C05,Children's Services,REDACTED,08/06/11,800
Bath & North East Somerset Council,21092170,LM2,Foster Carer Allowances,C05,Children's Services,REDACTED,08/06/11,800
Bath & North East Somerset Council,21092171,LM2,Foster Carer Allowances,C05,Children's Services,REDACTED,08/06/11,800
Bath & North East Somerset Council,21092181,LM2,Foster Carer Allowances,C05,Children's Services,REDACTED,08/06/11,806
Bath & North East Somerset Council,21092128,LM2,Foster Carer Allowances,C05,Children's Services,REDACTED,08/06/11,807.36
Bath & North East Somerset Council,21092128,LM2,Foster Carer Allowances,C05,Children's Services,REDACTED,08/06/11,807.36
Bath & North East Somerset Council,21092131,LM2,Foster Carer Allowances,C05,Children's Services,REDACTED,08/06/11,807.36
Bath & North East Somerset Council,21092131,LM2,Foster Carer Allowances,C05,Children's Services,REDACTED,08/06/11,807.36
Bath & North East Somerset Council,21092144,LM2,Foster Carer Allowances,C05,Children's Services,REDACTED,08/06/11,807.36
Bath & North East Somerset Council,21092144,LM2,Foster Carer Allowances,C05,Children's Services,REDACTED,08/06/11,807.36
Bath & North East Somerset Council,21092144,LM2,Foster Carer Allowances,C05,Children's Services,REDACTED,08/06/11,807.36
Bath & North East Somerset Council,21092163,LM2,Foster Carer Allowances,C05,Children's Services,REDACTED,08/06/11,809.88
Bath & North East Somerset Council,21092163,LM2,Foster Carer Allowances,C05,Children's Services,REDACTED,08/06/11,809.88
Bath & North East Somerset Council,21092167,LM2,Foster Carer Allowances,C05,Children's Services,REDACTED,08/06/11,812
Bath & North East Somerset Council,21092167,LM2,Foster Carer Allowances,C05,Children's Services,REDACTED,08/06/11,812
Bath & North East Somerset Council,21092167,LM2,Foster Carer Allowances,C05,Children's Services,REDACTED,08/06/11,812
Bath & North East Somerset Council,21092160,LM2,Foster Carer Allowances,C05,Children's Services,REDACTED,08/06/11,816
Bath & North East Somerset Council,21092160,LM2,Foster Carer Allowances,C05,Children's Services,REDACTED,08/06/11,816
Bath & North East Somerset Council,21092160,LM2,Foster Carer Allowances,C05,Children's Services,REDACTED,08/06/11,816
Bath & North East Somerset Council,21092162,LM2,Foster Carer Allowances,C05,Children's Services,REDACTED,08/06/11,816
Bath & North East Somerset Council,10613014,TJ2,Leasing Charges,C06,Service Delivery,ANGLO FINANCIAL SERVICES NO 3,08/06/11,820
Bath & North East Somerset Council,21091910,LL3,Supported Living,C03,Adult Social Services & Housing,OPTIONS FOR LIVING LTD,08/06/11,823.82
Bath & North East Somerset Council,21091910,LL3,Supported Living,C03,Adult Social Services & Housing,OPTIONS FOR LIVING LTD,08/06/11,823.82
Bath & North East Somerset Council,10610823,LJ1,Consultants Fees,C05,Children's Services,THE MILESTONE SCHOOL,08/06/11,830
Bath & North East Somerset Council,21091811,LM3,Residential Care,C03,Adult Social Services & Housing,ASPECTS & MILESTONES TRUST,08/06/11,834.82
Bath & North East Somerset Council,21091811,LM3,Residential Care,C03,Adult Social Services & Housing,ASPECTS & MILESTONES TRUST,08/06/11,834.82
Bath & North East Somerset Council,21091875,LM3,Residential Care,C03,Adult Social Services & Housing,HOME FARM TRUST LTD,08/06/11,835.87
Bath & North East Somerset Council,21091875,LM3,Residential Care,C03,Adult Social Services & Housing,HOME FARM TRUST LTD,08/06/11,835.87
Bath & North East Somerset Council,10612080,LL1,Services to Clients,C03,Adult Social Services & Housing,ASHGROVE GUEST HOUSE,08/06/11,840
Bath & North East Somerset Council,10614074,HP6,Water Charges,C05,Children's Services,BWBSL,08/06/11,841.39
Bath & North East Somerset Council,21091926,LM3,Residential Care,C03,Adult Social Services & Housing,CAMPHILL DEVON COMMUNITY LTD,08/06/11,841.5
Bath & North East Somerset Council,21091926,LM3,Residential Care,C03,Adult Social Services & Housing,CAMPHILL DEVON COMMUNITY LTD,08/06/11,841.5
Bath & North East Somerset Council,10614627,HA5,Service Contract PCB,C02,Resources,SOVEREIGN FIRE & SECURITY,08/06/11,841.76
Bath & North East Somerset Council,21091930,LM6,Nursing Care,C03,Adult Social Services & Housing,ORDERS OF ST JOHN CARE TRUST,08/06/11,850
Bath & North East Somerset Council,21091930,LM6,Nursing Care,C03,Adult Social Services & Housing,ORDERS OF ST JOHN CARE TRUST,08/06/11,850
Bath & North East Somerset Council,21091948,LM3,Residential Care,C03,Adult Social Services & Housing,THE BRANDON TRUST ELMS HOUSE,08/06/11,850
Bath & North East Somerset Council,21091948,LM3,Residential Care,C03,Adult Social Services & Housing,THE BRANDON TRUST ELMS HOUSE,08/06/11,850
Bath & North East Somerset Council,21091868,LM3,Residential Care,C03,Adult Social Services & Housing,THELMA TURNER HOMES LIMITED,08/06/11,857
Bath & North East Somerset Council,21091868,LM3,Residential Care,C03,Adult Social Services & Housing,THELMA TURNER HOMES LIMITED,08/06/11,857
Bath & North East Somerset Council,21091757,LM3,Residential Care,C03,Adult Social Services & Housing,THE BRANDON TRUST,08/06/11,870.53
Bath & North East Somerset Council,21091757,LM3,Residential Care,C03,Adult Social Services & Housing,THE BRANDON TRUST,08/06/11,870.53
Bath & North East Somerset Council,21091809,LM3,Residential Care,C03,Adult Social Services & Housing,ORCHARD VALE TRUST,08/06/11,872.62
Bath & North East Somerset Council,21091809,LM3,Residential Care,C03,Adult Social Services & Housing,ORCHARD VALE TRUST,08/06/11,872.62
Bath & North East Somerset Council,21091842,LM3,Residential Care,C03,Adult Social Services & Housing,HOME FARM TRUST,08/06/11,879.64
Bath & North East Somerset Council,21091842,LM3,Residential Care,C03,Adult Social Services & Housing,HOME FARM TRUST,08/06/11,879.64
Bath & North East Somerset Council,10611832,LL1,Services to Clients,C03,Adult Social Services & Housing,CONNOLLY & CALLAGHAN LTD,08/06/11,880
Bath & North East Somerset Council,10614355,LJ4,Contracts,C06,Service Delivery,BATH TAXIS (UK) LTD,08/06/11,882
Bath & North East Somerset Council,21091815,LM3,Residential Care,C03,Adult Social Services & Housing,ASPECTS & MILESTONES TRUST,08/06/11,886.06
Bath & North East Somerset Council,21091815,LM3,Residential Care,C03,Adult Social Services & Housing,ASPECTS & MILESTONES TRUST,08/06/11,886.06
Bath & North East Somerset Council,21091815,LM3,Residential Care,C03,Adult Social Services & Housing,ASPECTS & MILESTONES TRUST,08/06/11,900
Bath & North East Somerset Council,21091815,LM3,Residential Care,C03,Adult Social Services & Housing,ASPECTS & MILESTONES TRUST,08/06/11,900
Bath & North East Somerset Council,21091759,LM3,Residential Care,C03,Adult Social Services & Housing,THE BRANDON TRUST,08/06/11,901.25
Bath & North East Somerset Council,21091759,LM3,Residential Care,C03,Adult Social Services & Housing,THE BRANDON TRUST,08/06/11,901.25
Bath & North East Somerset Council,10611807,LL1,Services to Clients,C03,Adult Social Services & Housing,ASHGROVE GUEST HOUSE,08/06/11,910
Bath & North East Somerset Council,21091936,LM6,Nursing Care,C03,Adult Social Services & Housing,LEONARD CHESHIRE DISABILITY,08/06/11,913.53
Bath & North East Somerset Council,21091936,LM6,Nursing Care,C03,Adult Social Services & Housing,LEONARD CHESHIRE DISABILITY,08/06/11,913.53
Bath & North East Somerset Council,10614358,LJ4,Contracts,C06,Service Delivery,R E & V P JEFFRIES,08/06/11,916.56
Bath & North East Somerset Council,21091921,LM6,Nursing Care,C03,Adult Social Services & Housing,CARE FIRST CARE HOMES LTD,08/06/11,918
Bath & North East Somerset Council,21091921,LM6,Nursing Care,C03,Adult Social Services & Housing,CARE FIRST CARE HOMES LTD,08/06/11,918
Bath & North East Somerset Council,10611874,LK1,Fees,C02,Resources,FIRST AID TRAINING (BATH) LIMITED,08/06/11,920
Bath & North East Somerset Council,21091721,LK4,Nursery/Childcare Vouchers,C05,Children's Services,REDACTED,08/06/11,923
Bath & North East Somerset Council,21092077,PG1,Rent Allowances,C02,Resources,ORBIT FIRST STEP,08/06/11,944.06
Bath & North East Somerset Council,10611937,LA7,Purchases for Resale,C06,Service Delivery,THE MASTER HERBALIST LIMITED,08/06/11,945
Bath & North East Somerset Council,21091842,LM3,Residential Care,C03,Adult Social Services & Housing,HOME FARM TRUST,08/06/11,948.05
Bath & North East Somerset Council,21091842,LM3,Residential Care,C03,Adult Social Services & Housing,HOME FARM TRUST,08/06/11,948.05
Bath & North East Somerset Council,21091801,LM3,Residential Care,C03,Adult Social Services & Housing,REDACTED,08/06/11,950
Bath & North East Somerset Council,21091801,LM3,Residential Care,C03,Adult Social Services & Housing,REDACTED,08/06/11,950
Bath & North East Somerset Council,21091802,LM3,Residential Care,C03,Adult Social Services & Housing,SUPPORTED INDEPENDENCE,08/06/11,950
Bath & North East Somerset Council,21091802,LM3,Residential Care,C03,Adult Social Services & Housing,SUPPORTED INDEPENDENCE,08/06/11,950
Bath & North East Somerset Council,21091902,LM3,Residential Care,C03,Adult Social Services & Housing,CRAEGMOOR FACILITIES COMPANY LIMITED,08/06/11,965.03
Bath & North East Somerset Council,21091902,LM3,Residential Care,C03,Adult Social Services & Housing,CRAEGMOOR FACILITIES COMPANY LIMITED,08/06/11,965.03
Bath & North East Somerset Council,21091795,LM3,Residential Care,C03,Adult Social Services & Housing,6 THE AVENUE -KEYNSHAM MENCAP,08/06/11,971.93
Bath & North East Somerset Council,21091795,LM3,Residential Care,C03,Adult Social Services & Housing,6 THE AVENUE -KEYNSHAM MENCAP,08/06/11,971.93
Bath & North East Somerset Council,21091795,LM3,Residential Care,C03,Adult Social Services & Housing,6 THE AVENUE -KEYNSHAM MENCAP,08/06/11,971.93
Bath & North East Somerset Council,21091795,LM3,Residential Care,C03,Adult Social Services & Housing,6 THE AVENUE -KEYNSHAM MENCAP,08/06/11,971.93
Bath & North East Somerset Council,21091812,LM3,Residential Care,C03,Adult Social Services & Housing,ASPECTS & MILESTONES TRUST,08/06/11,976.59
Bath & North East Somerset Council,21091812,LM3,Residential Care,C03,Adult Social Services & Housing,ASPECTS & MILESTONES TRUST,08/06/11,976.59
Bath & North East Somerset Council,21091754,LL3,Supported Living,C03,Adult Social Services & Housing,SWALLOW LTD,08/06/11,977.46
Bath & North East Somerset Council,21091754,LL3,Supported Living,C03,Adult Social Services & Housing,SWALLOW LTD,08/06/11,977.46
Bath & North East Somerset Council,21091481,LL4,Direct Payments,C03,Adult Social Services & Housing,REDACTED,08/06/11,993.53
Bath & North East Somerset Council,21091481,LL4,Direct Payments,C03,Adult Social Services & Housing,REDACTED,08/06/11,993.53
Bath & North East Somerset Council,10613735,HA4,Responsive Maintenance PCB,C02,Resources,BATH DRAIN & JETTING SERV LTD,08/06/11,995
Bath & North East Somerset Council,10614353,LJ4,Contracts,C06,Service Delivery,MR M L BRACEY T/A A B M MINIBUSES,08/06/11,1008
Bath & North East Somerset Council,10611805,LL1,Services to Clients,C03,Adult Social Services & Housing,ASHGROVE GUEST HOUSE,08/06/11,1020
Bath & North East Somerset Council,10614467,LB3,PCB Rechargeable Subcontractors,C02,Resources,K SANDERS,08/06/11,1023
Bath & North East Somerset Council,21092130,LM2,Foster Carer Allowances,C05,Children's Services,REDACTED,08/06/11,1033.24
Bath & North East Somerset Council,10614218,LJ2,Legal Fees,C06,Service Delivery,REDACTED,08/06/11,1055.8
Bath & North East Somerset Council,21091775,LM3,Residential Care,C03,Adult Social Services & Housing,RIDGEWAY HOUSE,08/06/11,1100
Bath & North East Somerset Council,21091775,LM3,Residential Care,C03,Adult Social Services & Housing,RIDGEWAY HOUSE,08/06/11,1100
Bath & North East Somerset Council,21091902,LM3,Residential Care,C03,Adult Social Services & Housing,CRAEGMOOR FACILITIES COMPANY LIMITED,08/06/11,1109.94
Bath & North East Somerset Council,21091902,LM3,Residential Care,C03,Adult Social Services & Housing,CRAEGMOOR FACILITIES COMPANY LIMITED,08/06/11,1109.94
Bath & North East Somerset Council,10613707,LK1,Fees,C06,Service Delivery,BATH CATS & DOGS HOME,08/06/11,1125
Bath & North East Somerset Council,21092162,LM2,Foster Carer Allowances,C05,Children's Services,REDACTED,08/06/11,1130.92
Bath & North East Somerset Council,10612557,EA1,Training,C03,Adult Social Services & Housing,"UWE, BRISTOL",08/06/11,1134
Bath & North East Somerset Council,10613527,HA4,Responsive Maintenance PCB,C02,Resources,MANNINGS FACILITIES MANAGEMENT LTD,08/06/11,1137.36
Bath & North East Somerset Council,21091799,LM3,Residential Care,C03,Adult Social Services & Housing,FREEWAYS TRUST LTD,08/06/11,1149.46
Bath & North East Somerset Council,21091799,LM3,Residential Care,C03,Adult Social Services & Housing,FREEWAYS TRUST LTD,08/06/11,1149.46
Bath & North East Somerset Council,21091824,LM3,Residential Care,C03,Adult Social Services & Housing,DIMENSIONS (UK) LTD,08/06/11,1168.91
Bath & North East Somerset Council,21091824,LM3,Residential Care,C03,Adult Social Services & Housing,DIMENSIONS (UK) LTD,08/06/11,1168.91
Bath & North East Somerset Council,10612346,HF1,Grounds Maintenance - Contract,C06,Service Delivery,W REED (BUILDERS) LIMITED,08/06/11,1178
Bath & North East Somerset Council,10614687,HA5,Service Contract PCB,C02,Resources,SOUTHERN ELECTRIC CONTRACTING LTD,08/06/11,1189.5
Bath & North East Somerset Council,10612905,LA4,Equipment Hire/Rent,C06,Service Delivery,T H WHITE LTD,08/06/11,1200
Bath & North East Somerset Council,21091934,LL3,Supported Living,C03,Adult Social Services & Housing,KCARE NURSING AGENCY LTD,08/06/11,1200
Bath & North East Somerset Council,21091934,LL3,Supported Living,C03,Adult Social Services & Housing,KCARE NURSING AGENCY LTD,08/06/11,1200
Bath & North East Somerset Council,10611801,LL1,Services to Clients,C03,Adult Social Services & Housing,ROMAN CITY GUEST HOUSE,08/06/11,1200
Bath & North East Somerset Council,21091756,LM3,Residential Care,C03,Adult Social Services & Housing,THE BRANDON TRUST,08/06/11,1206.56
Bath & North East Somerset Council,21091756,LM3,Residential Care,C03,Adult Social Services & Housing,THE BRANDON TRUST,08/06/11,1206.56
Bath & North East Somerset Council,21091842,LM3,Residential Care,C03,Adult Social Services & Housing,HOME FARM TRUST,08/06/11,1209.23
Bath & North East Somerset Council,21091842,LM3,Residential Care,C03,Adult Social Services & Housing,HOME FARM TRUST,08/06/11,1209.23
Bath & North East Somerset Council,10613626,EA1,Training,C06,Service Delivery,BLAKE TRAINING,08/06/11,1218
Bath & North East Somerset Council,10612610,PB4,Payments to Private Contractors,C06,Service Delivery,M J CHURCH PLANT HIRE LTD,08/06/11,1286.2
Bath & North East Somerset Council,10611946,LA7,Purchases for Resale,C06,Service Delivery,ST NICOLAS,08/06/11,1295.4
Bath & North East Somerset Council,10614041,3G1,Grants/Advances,C03,Adult Social Services & Housing,LIFTABILITY LIMITED,08/06/11,1306
Bath & North East Somerset Council,21091756,LM3,Residential Care,C03,Adult Social Services & Housing,THE BRANDON TRUST,08/06/11,1326.27
Bath & North East Somerset Council,21091756,LM3,Residential Care,C03,Adult Social Services & Housing,THE BRANDON TRUST,08/06/11,1326.27
Bath & North East Somerset Council,10614354,LJ4,Contracts,C06,Service Delivery,MR M L BRACEY T/A A B M MINIBUSES,08/06/11,1353.96
Bath & North East Somerset Council,21091833,LM3,Residential Care,C03,Adult Social Services & Housing,ATLAS PROJECT TEAM LTD,08/06/11,1356.71
Bath & North East Somerset Council,21091833,LM3,Residential Care,C03,Adult Social Services & Housing,ATLAS PROJECT TEAM LTD,08/06/11,1356.71
Bath & North East Somerset Council,10614545,HA4,Responsive Maintenance PCB,C02,Resources,TPM (SOUTH WEST) LTD,08/06/11,1364
Bath & North East Somerset Council,10612855,LA7,Purchases for Resale,C06,Service Delivery,DROYT PRODUCTS LTD,08/06/11,1365.66
Bath & North East Somerset Council,21091829,LM3,Residential Care,C03,Adult Social Services & Housing,DIMENSIONS (UK) LTD,08/06/11,1381.57
Bath & North East Somerset Council,21091829,LM3,Residential Care,C03,Adult Social Services & Housing,DIMENSIONS (UK) LTD,08/06/11,1381.57
Bath & North East Somerset Council,21091829,LM3,Residential Care,C03,Adult Social Services & Housing,DIMENSIONS (UK) LTD,08/06/11,1381.57
Bath & North East Somerset Council,21091829,LM3,Residential Care,C03,Adult Social Services & Housing,DIMENSIONS (UK) LTD,08/06/11,1381.57
Bath & North East Somerset Council,21091829,LM3,Residential Care,C03,Adult Social Services & Housing,DIMENSIONS (UK) LTD,08/06/11,1382.74
Bath & North East Somerset Council,21091829,LM3,Residential Care,C03,Adult Social Services & Housing,DIMENSIONS (UK) LTD,08/06/11,1382.74
Bath & North East Somerset Council,21091861,LM3,Residential Care,C03,Adult Social Services & Housing,THELMA TURNER HOMES LIMITED,08/06/11,1400
Bath & North East Somerset Council,21091861,LM3,Residential Care,C03,Adult Social Services & Housing,THELMA TURNER HOMES LIMITED,08/06/11,1400
Bath & North East Somerset Council,21091755,LM6,Nursing Care,C03,Adult Social Services & Housing,THE BRANDON TRUST,08/06/11,1409.64
Bath & North East Somerset Council,21091755,LM6,Nursing Care,C03,Adult Social Services & Housing,THE BRANDON TRUST,08/06/11,1409.64
Bath & North East Somerset Council,10614407,DB1,Agency Staff,C03,Adult Social Services & Housing,BS PROJECT SERVICES LTD,08/06/11,1414.87
Bath & North East Somerset Council,10614678,YF2,Fees & Charges,C03,Adult Social Services & Housing,REDACTED,08/06/11,1436.63
Bath & North East Somerset Council,10613958,3C4,PCB Building Works,C05,Children's Services,JANE'S POND LANDSCAPING,08/06/11,1440
Bath & North East Somerset Council,21091860,LM3,Residential Care,C03,Adult Social Services & Housing,THELMA TURNER HOMES LIMITED,08/06/11,1453
Bath & North East Somerset Council,21091860,LM3,Residential Care,C03,Adult Social Services & Housing,THELMA TURNER HOMES LIMITED,08/06/11,1453
Bath & North East Somerset Council,10613794,3G1,Grants/Advances,C03,Adult Social Services & Housing,POWERGUARDS,08/06/11,1462
Bath & North East Somerset Council,10611914,LA7,Purchases for Resale,C06,Service Delivery,THE HOUSE OF DORCHESTER LTD,08/06/11,1462.5
Bath & North East Somerset Council,21091793,LM6,Nursing Care,C03,Adult Social Services & Housing,PROKARE LTD,08/06/11,1470.84
Bath & North East Somerset Council,21091793,LM6,Nursing Care,C03,Adult Social Services & Housing,PROKARE LTD,08/06/11,1470.84
Bath & North East Somerset Council,21091868,LM3,Residential Care,C03,Adult Social Services & Housing,THELMA TURNER HOMES LIMITED,08/06/11,1479
Bath & North East Somerset Council,21091868,LM3,Residential Care,C03,Adult Social Services & Housing,THELMA TURNER HOMES LIMITED,08/06/11,1479
Bath & North East Somerset Council,21091834,LM3,Residential Care,C03,Adult Social Services & Housing,WESTWARD,08/06/11,1498.48
Bath & North East Somerset Council,21091834,LM3,Residential Care,C03,Adult Social Services & Housing,WESTWARD,08/06/11,1498.48
Bath & North East Somerset Council,21091901,LM3,Residential Care,C03,Adult Social Services & Housing,CRAEGMOOR FACILITIES COMPANY LIMITED,08/06/11,1501.63
Bath & North East Somerset Council,21091901,LM3,Residential Care,C03,Adult Social Services & Housing,CRAEGMOOR FACILITIES COMPANY LIMITED,08/06/11,1501.63
Bath & North East Somerset Council,21091848,LM3,Residential Care,C03,Adult Social Services & Housing,MANOR COMMUNITY CARE HOME,08/06/11,1519.15
Bath & North East Somerset Council,21091848,LM3,Residential Care,C03,Adult Social Services & Housing,MANOR COMMUNITY CARE HOME,08/06/11,1519.15
Bath & North East Somerset Council,10614189,LJ4,Contracts,C06,Service Delivery,STEPHEN WARREN,08/06/11,1591.5
Bath & North East Somerset Council,10612091,KA1,Repairs & Maintenance,C06,Service Delivery,MPS ROAD SWEEPERS LTD,08/06/11,1600
Bath & North East Somerset Council,21091824,LM3,Residential Care,C03,Adult Social Services & Housing,DIMENSIONS (UK) LTD,08/06/11,1670.02
Bath & North East Somerset Council,21091824,LM3,Residential Care,C03,Adult Social Services & Housing,DIMENSIONS (UK) LTD,08/06/11,1670.02
Bath & North East Somerset Council,21091786,LM3,Residential Care,C03,Adult Social Services & Housing,PRIORY  THE,08/06/11,1715
Bath & North East Somerset Council,21091786,LM3,Residential Care,C03,Adult Social Services & Housing,PRIORY  THE,08/06/11,1715
Bath & North East Somerset Council,10613503,LJ3,Other Services to the Council,C06,Service Delivery,PAUL LEDBURY,08/06/11,1725
Bath & North East Somerset Council,21091912,LM3,Residential Care,C03,Adult Social Services & Housing,BARCHESTER HEALTHCARE HOMES LTD,08/06/11,1735
Bath & North East Somerset Council,21091912,LM3,Residential Care,C03,Adult Social Services & Housing,BARCHESTER HEALTHCARE HOMES LTD,08/06/11,1735
Bath & North East Somerset Council,10611108,DB1,Agency Staff,C06,Service Delivery,S P WATKINS,08/06/11,1743.75
Bath & North East Somerset Council,21091878,LL3,Supported Living,C03,Adult Social Services & Housing,COMMUNITY OF ST ANTONY & ST ELIAS & REV FR BGPR &,08/06/11,1780
Bath & North East Somerset Council,21091878,LL3,Supported Living,C03,Adult Social Services & Housing,COMMUNITY OF ST ANTONY & ST ELIAS & REV FR BGPR &,08/06/11,1780
Bath & North East Somerset Council,21091761,LM3,Residential Care,C03,Adult Social Services & Housing,WINSLOW COURT,08/06/11,1818.75
Bath & North East Somerset Council,21091761,LM3,Residential Care,C03,Adult Social Services & Housing,WINSLOW COURT,08/06/11,1818.75
Bath & North East Somerset Council,10614188,LJ4,Contracts,C06,Service Delivery,REDACTED,08/06/11,1844.97
Bath & North East Somerset Council,21091813,LM3,Residential Care,C03,Adult Social Services & Housing,ASPECTS & MILESTONES TRUST,08/06/11,1858.66
Bath & North East Somerset Council,21091813,LM3,Residential Care,C03,Adult Social Services & Housing,ASPECTS & MILESTONES TRUST,08/06/11,1858.66
Bath & North East Somerset Council,10614337,3C4,PCB Building Works,C02,Resources,E R HEMMINGS (BUILDING) LTD,08/06/11,1897.13
